Workbook

Sheet 총괄표
C1: 사업수행능력 평가 총괄표
C3: - | D3: 용역명 : 남양주진건지금지구 배수지 건설공사 기본 및 실시설계용역 | G3: 입찰공고일 : | H3: 2012-10-05
C4: - | D4: 추정용역비 : | E4: 572801000 | F4: 원 | G4: 과업규모(배수지): | H4: 24000
G5: 과업규모(가압장,정수장): | H5: 46993
C7: 구 분 | E7: 배 점 | F7: 자기평가 | G7: 확 인 | H7: 비 고
C8: 총 계 | E8: =E9+E27+E31+E34+E38 -> 100 | F8: =F9+F27+F31+F34+F38 -> 82.74 | G8: =G9+G27+G31+G34+G38 -> 0
C9: 1. 참여기술자 | E9: =E10+E16+E20+E24 -> 50 | F9: =F10+F16+F20+F24 -> 39.25 | G9: =G10+G16+G20+G24 -> 0
C10: 가. 사업책임기술자 | E10: =SUM(E11:E15) -> 20 | F10: =SUM(F11:F15) -> 15.2 | G10: =SUM(G11:G15) -> 0
D11: 등급 | E11: ='1(1)참여기술자'!D7 -> 5 | F11: ='1(1)참여기술자'!E7 -> 5 | G11: ='1(1)참여기술자'!F7 -> 0
D12: 경력 | E12: ='1(1)참여기술자'!D8 -> 6 | F12: ='1(1)참여기술자'!E8 -> 6 | G12: ='1(1)참여기술자'!F8 -> 0
D13: 실적 | E13: ='1(1)참여기술자'!D9 -> 7 | F13: ='1(1)참여기술자'!E9 -> 4.2 | G13: ='1(1)참여기술자'!F9 -> 0
D14: 기술능력 | E14: ='1(1)참여기술자'!D10 -> 1 | F14: ='1(1)참여기술자'!E10 -> 0 | G14: ='1(1)참여기술자'!F10 -> 0
D15: 업무관리능력 | E15: ='1(1)참여기술자'!D11 -> 1 | F15: ='1(1)참여기술자'!E11 -> 0 | G15: ='1(1)참여기술자'!F11 -> 0
C16: 나. 분야별 책임기술자 | E16: =SUM(E17:E19) -> 20 | F16: =SUM(F17:F19) -> 15.8 | G16: =SUM(G17:G19) -> 0
D17: 자격및 등급 | E17: ='1(1)참여기술자'!D12 -> 5 | F17: ='1(1)참여기술자'!E12 -> 4.7 | G17: ='1(1)참여기술자'!F12 -> 0
D18: 경력 | E18: ='1(1)참여기술자'!D13 -> 7 | F18: ='1(1)참여기술자'!E13 -> 6.3 | G18: ='1(1)참여기술자'!F13 -> 0
D19: 실적 | E19: ='1(1)참여기술자'!D14 -> 8 | F19: ='1(1)참여기술자'!E14 -> 4.8 | G19: ='1(1)참여기술자'!F14 -> 0
C20: 다. 분야별 참여기술자 | E20: =SUM(E21:E23) -> 8 | F20: =SUM(F21:F23) -> 6.48 | G20: =SUM(G21:G23) -> 0
D21: 자격및 등급 | E21: ='1(1)참여기술자'!D30 -> 2 | F21: ='1(1)참여기술자'!E30 -> 1.98 | G21: ='1(1)참여기술자'!F30 -> 0
D22: 경력 | E22: ='1(1)참여기술자'!D31 -> 3 | F22: ='1(1)참여기술자'!E31 -> 2.7 | G22: ='1(1)참여기술자'!F31 -> 0
D23: 실적 | E23: ='1(1)참여기술자'!D32 -> 3 | F23: ='1(1)참여기술자'!E32 -> 1.8 | G23: ='1(1)참여기술자'!F32 -> 0
C24: 라. 참여기술자 교육훈련, 전차용역실적 | E24: =SUM(E25:E26) -> 2 | F24: =SUM(F25:F26) -> 1.77 | G24: =SUM(G25:G26) -> 0
D25: 교육훈련 | E25: 1 | F25: ='1(1)참여기술자'!M6 -> 0.77 | G25: ='1(1)참여기술자'!N6 -> 0
D26: 전차용역 수행실적 | E26: 1 | F26: 1 | H26: 만점처리
C27: 2. 유사용역 수행실적 | E27: =SUM(E28:E30) -> 15 | F27: =SUM(F28:F30) -> 15 | G27: =SUM(G28:G28) -> 0
C28: 가. 실적 | E28: 7 | F28: ='2.(1)유사용역(실적_배수지, 가압장, 정수장)'!F8 -> 7
C29: 나. 금액 | E29: 7 | F29: ='2.(2)유사용역(금액)'!F8 -> 7
C30: 다. 전차용역 수행실적 | E30: 1 | F30: 1 | H30: 만점처리
C31: 3. 신용도 | E31: =SUM(E32:E33) -> 10 | F31: =SUM(F32:F33) -> 5.45 | G31: =SUM(G32:G33) -> 0
C32: 가. 입찰제한,업무정지,부실벌점 | E32: ='3.신용도'!G7 -> 7 | F32: ='3.신용도'!H7 -> 2.45 | G32: ='3.신용도'!I7 -> 0
C33: 나. 재정상태 건실도 | E33: 3 | F33: ='3.신용도'!K7 -> 3 | G33: 0
C34: 4. 기술개발 및 투자실적 | E34: =SUM(E35:E37) -> 15 | F34: =SUM(F35:F37) -> 13.04 | G34: =SUM(G35:G37) -> 0
C35: 가. 개발실적 | E35: ='4(1)기술개발및투자실적'!D7 -> 2 | F35: ='4(1)기술개발및투자실적'!E7 -> 0.8 | G35: ='4(1)기술개발및투자실적'!F7 -> 0
C36: 나. 투자실적 | E36: 10 | F36: ='4.(2)투자실적'!J7 -> 10 | G36: ='4.(2)투자실적'!K7 -> 0
C37: 다. 활용실적 | E37: ='4(3)활용실적'!D7 -> 3 | F37: ='4(3)활용실적'!E7 -> 2.24 | G37: ='4(3)활용실적'!F7 -> 0
C38: 5. 업무중첩도 | E38: =SUM(E39:E40) -> 10 | F38: =SUM(F39:F40) -> 10 | G38: =SUM(G39:G40) -> 0
C39: 가. 사업책임기술자 | E39: ='5.업무중첩도'!C5 -> 6 | F39: ='5.업무중첩도'!D5 -> 6 | G39: ='5.업무중첩도'!E5 -> 0
C40: 나. 분야별 책임기술자 | E40: ='5.업무중첩도'!C10 -> 4 | F40: ='5.업무중첩도'!D10 -> 4 | G40: ='5.업무중첩도'!E10 -> 0

Sheet 참여업체현황
A1: 참여업체 현황
A3: 구 분 | B3: 상 호 | C3: 지분율 | D3: 참여분야 | E3: 보유면허
E4: 상하수도 | F4: 구조 | G4: 토질 지질 | H4: 일반기계 | I4: 전기설비 | J4: 측량 | K4: 조경 | L4: 수질관리
A5: 공동 | B5: A사 | C5: 0.5 | D5: 참여분야 | E5: O | F5: O | G5: O | H5: O | I5: O | J5: O | K5: O | L5: O
D6: 보유면허 | E6: O | F6: O | G6: O | H6: O | I6: O | J6: O | K6: O | L6: O
A7: 공동 | B7: B사 | C7: 0.3 | D7: 참여분야 | E7: O | F7: O | G7: O | H7: O | I7: O | J7: O | K7: O | L7: O
D8: 보유면허 | E8: O | F8: O | G8: O | H8: O | I8: O | J8: O | K8: O | L8: O
A9: 공동 | B9: C사 | C9: 0.2 | D9: 참여분야 | E9: O | F9: O | G9: O | H9: O | I9: O | J9: O | K9: O | L9: O
D10: 보유면허 | E10: O | F10: O | G10: O | H10: O | I10: O | J10: O | K10: O | L10: O
A11: 공동 | B11: D사 | C11: 0 | D11: 참여분야
D12: 보유면허
A13: 공동 | B13: E사 | C13: 0 | D13: 참여분야
D14: 보유면허

Sheet 1(1)참여기술자
A2: 1. 참여기술자
A4: 구 분 | D4: 배 점 | E4: 자기 평가 | F4: 확 인 | G4: 성 명 | H4: 자 격 | I4: 면허번호 | J4: 경 력(년) | K4: 실적건수 | L4: 교 육 실 적
L5: 기 간 | M5: 점수
A6: 총 계 | D6: - | E6: - | F6: - | G6: - | H6: - | I6: - | J6: - | K6: - | L6: - | M6: =ROUND((M45+M42+M39+M36+M33+M27+M24+M21+M18+M15+M7)/11,2) -> 0.77
A7: 사업책임기술자 | C7: 등급 | D7: 5 | E7: =IF(H7="기술사",5,IF(H7="그외",0)) -> 5 | G7: 김일동 | H7: 기술사 | I7: 00000000000 | J7: 20년이상 | K7: ='1(2)참여기술자실적'!Q5 -> 1 | L7: 2 | M7: =IF(L7>=2,"1",IF(L7=0,"0",IF(L7<2,"0.5"))) -> 1
C8: 경력 | D8: 6 | E8: =IF(J7="20년이상",6,IF(J7>=18,5.4,IF(J7>=16,4.8,IF(J7>=14,4.2,IF(J7<14,3.6))))) -> 6
C9: 실적 | D9: 7 | E9: =IF(K7>=15,7,IF(K7>=13,6.3,IF(K7>=11,5.6,IF(K7>=9,4.9,IF(K7<9,4.2))))) -> 4.2
C10: 기술능력 | D10: 1 | E10: 0
C11: 업무관리 능력 | D11: 1 | E11: 0
A12: 분야별 책임 기술자 | B12: 총계 | C12: 등급 | D12: 5 | E12: =ROUND((E15*0.5+E18*0.2+E21*0.1+E24*0.1+E27*0.1),2) -> 4.7 | F12: =ROUND((F15+F18+F21+F24+F27)/5,2) -> 0 | G12: - | H12: - | I12: - | J12: - | K12: - | L12: - | M12: -
C13: 경력 | D13: 7 | E13: =ROUND((E16*0.5+E19*0.2+E22*0.1+E25*0.1+E28*0.1),2) -> 6.3 | F13: =ROUND((F16+F19+F22+F25+F28)/5,2) -> 0
C14: 실적 | D14: 8 | E14: =ROUND((E17*0.5+E20*0.2+E23*0.1+E26*0.1+E29*0.1),2) -> 4.8 | F14: =ROUND((F17+F20+F23+F26+F29)/5,2) -> 0
B15: =참여업체현황!$E$4 -> 상하수도 | C15: 등급 | D15: 5 | E15: =IF(H15="기술사",5,IF(H15="특급",5,IF(H15="고급",4.5,IF(H15="중급",4,IF(H15="초급",3.5,IF(H15="",0)))))) -> 5 | G15: 김이동 | H15: 기술사 | I15: 00000000000 | J15: 15년이상 | K15: ='1(2)참여기술자실적'!Q35 -> 1 | L15: 1 | M15: =IF(L15>=2,"1",IF(L15=0,"0",IF(L15<2,"0.5"))) -> 0.5
C16: 경력 | D16: 7 | E16: =IF(J15="15년이상",7,IF(J15>=13,6.3,IF(J15>=11,5.6,IF(J15>=9,4.9,IF(J15<9,4.2))))) -> 7
C17: 실적 | D17: 8 | E17: =IF(K15>=15,8,IF(K15>=13,7.2,IF(K15>=11,6.4,IF(K15>=9,5.6,IF(K15<9,4.8))))) -> 4.8
B18: =참여업체현황!$F$4 -> 구조 | C18: 등급 | D18: 5 | E18: =IF(H18="기술사",5,IF(H18="특급",5,IF(H18="고급",4.5,IF(H18="중급",4,IF(H18="초급",3.5,IF(H18="",0)))))) -> 5 | G18: 김삼동 | H18: 특급 | I18: 0000000000 | J18: 14 | K18: ='1(2)참여기술자실적'!Q66 -> 1 | L18: 2 | M18: =IF(L18>=2,"1",IF(L18=0,"0",IF(L18<2,"0.5"))) -> 1
C19: 경력 | D19: 7 | E19: =IF(J18="15년이상",7,IF(J18>=13,6.3,IF(J18>=11,5.6,IF(J18>=9,4.9,IF(J18<9,4.2))))) -> 6.3
C20: 실적 | D20: 8 | E20: =IF(K18>=15,8,IF(K18>=13,7.2,IF(K18>=11,6.4,IF(K18>=9,5.6,IF(K18<9,4.8))))) -> 4.8
B21: =참여업체현황!$G$4 -> 토질 지질 | C21: 등급 | D21: 5 | E21: =IF(H21="기술사",5,IF(H21="특급",5,IF(H21="고급",4.5,IF(H21="중급",4,IF(H21="초급",3.5,IF(H21="",0)))))) -> 4.5 | G21: 김사동 | H21: 고급 | I21: 111111111 | J21: 13 | K21: ='1(2)참여기술자실적'!Q97 -> 1 | L21: 1 | M21: =IF(L21>=2,"1",IF(L21=0,"0",IF(L21<2,"0.5"))) -> 0.5
C22: 경력 | D22: 7 | E22: =IF(J21="15년이상",7,IF(J21>=13,6.3,IF(J21>=11,5.6,IF(J21>=9,4.9,IF(J21<9,4.2))))) -> 6.3
C23: 실적 | D23: 8 | E23: =IF(K21>=15,8,IF(K21>=13,7.2,IF(K21>=11,6.4,IF(K21>=9,5.6,IF(K21<9,4.8))))) -> 4.8
B24: =참여업체현황!$H$4 -> 일반기계 | C24: 등급 | D24: 5 | E24: =IF(H24="기술사",5,IF(H24="특급",5,IF(H24="고급",4.5,IF(H24="중급",4,IF(H24="초급",3.5,IF(H24="",0)))))) -> 4 | G24: 김오동 | H24: 중급 | I24: 2222222222 | J24: 10 | K24: ='1(2)참여기술자실적'!Q128 -> 1 | L24: 1 | M24: =IF(L24>=2,"1",IF(L24=0,"0",IF(L24<2,"0.5"))) -> 0.5
C25: 경력 | D25: 7 | E25: =IF(J24="15년이상",7,IF(J24>=13,6.3,IF(J24>=11,5.6,IF(J24>=9,4.9,IF(J24<9,4.2))))) -> 4.9
C26: 실적 | D26: 8 | E26: =IF(K24>=15,8,IF(K24>=13,7.2,IF(K24>=11,6.4,IF(K24>=9,5.6,IF(K24<9,4.8))))) -> 4.8
B27: =참여업체현황!$I$4 -> 전기설비 | C27: 등급 | D27: 5 | E27: =IF(H27="기술사",5,IF(H27="특급",5,IF(H27="고급",4.5,IF(H27="중급",4,IF(H27="초급",3.5,IF(H27="",0)))))) -> 3.5 | G27: 김육동 | H27: 초급 | I27: 333333333 | J27: 7 | K27: ='1(2)참여기술자실적'!Q159 -> 1 | L27: 2 | M27: =IF(L27>=2,"1",IF(L27=0,"0",IF(L27<2,"0.5"))) -> 1
C28: 경력 | D28: 7 | E28: =IF(J27="15년이상",7,IF(J27>=13,6.3,IF(J27>=11,5.6,IF(J27>=9,4.9,IF(J27<9,4.2))))) -> 4.2
C29: 실적 | D29: 8 | E29: =IF(K27>=15,8,IF(K27>=13,7.2,IF(K27>=11,6.4,IF(K27>=9,5.6,IF(K27<9,4.8))))) -> 4.8
A30: 분야별 참여 기술자 | B30: 총계 | C30: 등급 | D30: 2 | E30: =ROUND((E33*0.5+E36*0.2+E39*0.1+E42*0.1+E45*0.1),2) -> 1.98 | F30: =ROUND((F33+F36+F39+F42+F45)/5,2) -> 0 | G30: - | H30: - | I30: - | J30: - | K30: - | L30: - | M30: -
C31: 경력 | D31: 3 | E31: =ROUND((E34*0.5+E37*0.2+E40*0.1+E43*0.1+E46*0.1),2) -> 2.7 | F31: =ROUND((F34+F37+F40+F43+F46)/5,2) -> 0
C32: 실적 | D32: 3 | E32: =ROUND((E35*0.5+E38*0.2+E41*0.1+E44*0.1+E47*0.1),2) -> 1.8 | F32: =ROUND((F35+F38+F41+F44+F47)/5,2) -> 0
B33: =참여업체현황!$E$4 -> 상하수도 | C33: 등급 | D33: 2 | E33: =IF(H33="기술사",2,IF(H33="특급",2,IF(H33="고급",2,IF(H33="중급",1.8,IF(H33="초급",1.6,IF(H33="",0)))))) -> 2 | G33: 이일동 | H33: 기술사 | I33: 000000000000 | J33: 10년이상 | K33: ='1(2)참여기술자실적'!Q190 -> 1 | L33: 2 | M33: =IF(L33>=2,"1",IF(L33=0,"0",IF(L33<2,"0.5"))) -> 1
C34: 경력 | D34: 3 | E34: =IF(J33>="10년이상",3,IF(J33>=8,2.7,IF(J33>=6,2.4,IF(J33>=4,2.1,IF(J33<4,1.8))))) -> 3
C35: 실적 | D35: 3 | E35: =IF(K33>=10,3,IF(K33>=8,2.7,IF(K33>=6,2.4,IF(K33>=4,2.1,IF(K33<4,1.8))))) -> 1.8
B36: =참여업체현황!$F$4 -> 구조 | C36: 등급 | D36: 2 | E36: =IF(H36="기술사",2,IF(H36="특급",2,IF(H36="고급",2,IF(H36="중급",1.8,IF(H36="초급",1.6,IF(H36="",0)))))) -> 2 | G36: 이이동 | H36: 특급 | I36: 00000000000 | J36: 8 | K36: ='1(2)참여기술자실적'!Q221 -> 1 | L36: 1 | M36: =IF(L36>=2,"1",IF(L36=0,"0",IF(L36<2,"0.5"))) -> 0.5
C37: 경력 | D37: 3 | E37: =IF(J36>="10년이상",3,IF(J36>=8,2.7,IF(J36>=6,2.4,IF(J36>=4,2.1,IF(J36<4,1.8))))) -> 2.7
C38: 실적 | D38: 3 | E38: =IF(K36>=10,3,IF(K36>=8,2.7,IF(K36>=6,2.4,IF(K36>=4,2.1,IF(K36<4,1.8))))) -> 1.8
B39: =참여업체현황!$G$4 -> 토질 지질 | C39: 등급 | D39: 2 | E39: =IF(H39="기술사",2,IF(H39="특급",2,IF(H39="고급",2,IF(H39="중급",1.8,IF(H39="초급",1.6,IF(H39="",0)))))) -> 2 | G39: 이삼동 | H39: 고급 | I39: 00000000000 | J39: 6 | K39: ='1(2)참여기술자실적'!Q252 -> 1 | L39: 2 | M39: =IF(L39>=2,"1",IF(L39=0,"0",IF(L39<2,"0.5"))) -> 1
C40: 경력 | D40: 3 | E40: =IF(J39>="10년이상",3,IF(J39>=8,2.7,IF(J39>=6,2.4,IF(J39>=4,2.1,IF(J39<4,1.8))))) -> 2.4
C41: 실적 | D41: 3 | E41: =IF(K39>=10,3,IF(K39>=8,2.7,IF(K39>=6,2.4,IF(K39>=4,2.1,IF(K39<4,1.8))))) -> 1.8
B42: =참여업체현황!$H$4 -> 일반기계 | C42: 등급 | D42: 2 | E42: =IF(H42="기술사",2,IF(H42="특급",2,IF(H42="고급",2,IF(H42="중급",1.8,IF(H42="초급",1.6,IF(H42="",0)))))) -> 2 | G42: 이사동 | H42: 고급 | I42: 00000000000 | J42: 5 | K42: ='1(2)참여기술자실적'!Q283 -> 1 | L42: 3 | M42: =IF(L42>=2,"1",IF(L42=0,"0",IF(L42<2,"0.5"))) -> 1
C43: 경력 | D43: 3 | E43: =IF(J42>="10년이상",3,IF(J42>=8,2.7,IF(J42>=6,2.4,IF(J42>=4,2.1,IF(J42<4,1.8))))) -> 2.1
C44: 실적 | D44: 3 | E44: =IF(K42>=10,3,IF(K42>=8,2.7,IF(K42>=6,2.4,IF(K42>=4,2.1,IF(K42<4,1.8))))) -> 1.8
B45: =참여업체현황!$I$4 -> 전기설비 | C45: 등급 | D45: 2 | E45: =IF(H45="기술사",2,IF(H45="특급",2,IF(H45="고급",2,IF(H45="중급",1.8,IF(H45="초급",1.6,IF(H45="",0)))))) -> 1.8 | G45: 이오동 | H45: 중급 | I45: 00000000000 | J45: 4 | K45: ='1(2)참여기술자실적'!Q314 -> 1 | L45: 1 | M45: =IF(L45>=2,"1",IF(L45=0,"0",IF(L45<2,"0.5"))) -> 0.5
C46: 경력 | D46: 3 | E46: =IF(J45>="10년이상",3,IF(J45>=8,2.7,IF(J45>=6,2.4,IF(J45>=4,2.1,IF(J45<4,1.8))))) -> 2.1
C47: 실적 | D47: 3 | E47: =IF(K45>=10,3,IF(K45>=8,2.7,IF(K45>=6,2.4,IF(K45>=4,2.1,IF(K45<4,1.8))))) -> 1.8
B59: 기술사 | D59: 기술사 | G59: 1 | H59: 1 | I59: 1
B60: 특급 | D60: 그외 | G60: 2 | H60: 2 | I60: 2
B61: 고급 | G61: 3 | H61: 3 | I61: 3
B62: 중급 | G62: 4 | H62: 4 | I62: 4
B63: 초급 | G63: 5 | H63: 5 | I63: 5
G64: 6 | H64: 6 | I64: 6
G65: 7 | H65: 7 | I65: 7
G66: 8 | H66: 8 | I66: 8
G67: 9 | H67: 9 | I67: 9
G68: 10 | H68: 10 | I68: 10년이상
G69: 11 | H69: 11
G70: 12 | H70: 12
G71: 13 | H71: 13
G72: 14 | H72: 14
G73: 15 | H73: 15년이상
G74: 16
G75: 17
G76: 18
G77: 19
G78: 20년이상

Sheet 1(2)참여기술자실적
A1: 1-2. 참여기술자(실적)
A3: 구 분 | C3: 성 명 | D3: 용역명 | E3: 발주처 | F3: 소속사 | G3: 담당업무 | H3: 계약기간(일) | I3: 참여기간 | L3: 용역준공일 | M3: 참여비율 | N3: 용역금액 (원) | O3: 과업규모 (m,㎥,㎥/일) | P3: 실적계수 | Q3: 실적건수
I4: 참여시작일 | J4: 종료일 | K4: 기간(일)
A5: 사업책임기술자 | C5: 합계 | D5: - | E5: - | F5: - | G5: - | H5: - | I5: - | J5: - | K5: - | L5: - | M5: - | N5: - | O5: - | P5: - | Q5: =Q6+Q7+Q8+Q9+Q10+Q11+Q12+Q13+Q14+Q15+Q16+Q17+Q18+Q19+Q20+Q21+Q22+Q23+Q24+Q25+Q26+Q27+Q28+Q29+Q30+Q31+Q32+Q33+Q34 -> 1
C6: 홍길동 | D6: 00용역 | E6: 00공사 | F6: 00엔지니어링 | G6: 상하수도 | H6: 400 | I6: 2009-10-11 | J6: 2010-10-12 | K6: =IF(J6-I6=0," ",IF(J6-I6>0,J6-I6+1)) -> 367 | L6: 2011-10-12 | M6: =IF(H6=0," ",IF(H6>0,K6/H6)) -> 0.9175 | N6: 756132564 | O6: 10000 | P6: =IF(N6=0," ",IF(N6>0,N6/총괄표!$E$4)) -> 1.320061529 | Q6: =IF(H6<90,"0",IF(S6>10,"0",IF(M6<30%,"0",IF(P6=" ","0",IF(P6>=200%,"2",IF(P6>=150%,"1.5",IF(P6>=100%,"1",IF(P6>=50%,"0.5",IF(P6<50%,"0"))))))))) -> 1 | S6: =IF(L6="","0",(총괄표!$H$3-L6)/365) -> 0.9835616438
D7: 00용역 | E7: 0공사 | F7: 000엔지니어링 | G7: 상하수도 | H7: 600 | I7: 2008-10-10 | J7: 2009-12-11 | K7: =IF(J7-I7=0," ",IF(J7-I7>0,J7-I7+1)) -> 428 | L7: 2009-12-11 | M7: =IF(H7=0," ",IF(H7>0,K7/H7)) -> 0.7133333333 | N7: 123352213 | O7: 1800000 | P7: =IF(N7=0," ",IF(N7>0,N7/총괄표!$E$4)) -> 0.2153491579 | Q7: 0 | S7: =IF(L7="","0",(총괄표!$H$3-L7)/365) -> 2.819178082
E8: 0공사 | F8: 000엔지니어링 | G8: 상하수도 | H8: 800 | I8: 2009-10-11 | J8: 2010-10-10 | K8: =IF(J8-I8=0," ",IF(J8-I8>0,J8-I8+1)) -> 365 | L8: 2010-10-10 | M8: 0.45625 | N8: 123352213 | O8: 1700000 | P8: =IF(N8=0," ",IF(N8>0,N8/총괄표!$E$4)) -> 0.2153491579 | Q8: 0 | S8: =IF(L8="","0",(총괄표!$H$3-L8)/365) -> 1.989041096
E9: 0공사 | F9: 000엔지니어링 | G9: 상하수도 | H9: 600 | I9: 2008-09-09 | J9: 2010-01-01 | K9: 480 | L9: 2010-01-01 | M9: 0.8 | N9: 123352213 | O9: 1600000 | P9: =IF(N9=0," ",IF(N9>0,N9/총괄표!$E$4)) -> 0.2153491579 | Q9: 0 | S9: =IF(L9="","0",(총괄표!$H$3-L9)/365) -> 2.761643836
E10: 0공사 | F10: 000엔지니어링 | G10: 상하수도 | H10: 500 | I10: 2007-12-12 | J10: 2009-12-11 | K10: 731 | L10: 2010-05-05 | M10: 1.462 | N10: 123352213 | O10: 1500000 | P10: =IF(N10=0," ",IF(N10>0,N10/총괄표!$E$4)) -> 0.2153491579 | Q10: 0 | S10: =IF(L10="","0",(총괄표!$H$3-L10)/365) -> 2.421917808
E11: 0공사 | F11: 000엔지니어링 | G11: 상하수도 | H11: 400 | I11: 2009-10-11 | J11: 2009-12-11 | K11: 62 | L11: 2010-02-02 | M11: 0.155 | N11: 123352213 | O11: 1400000 | P11: =IF(N11=0," ",IF(N11>0,N11/총괄표!$E$4)) -> 0.2153491579 | Q11: 0 | S11: =IF(L11="","0",(총괄표!$H$3-L11)/365) -> 2.673972603
E12: 0공사 | F12: 000엔지니어링 | G12: 상하수도 | H12: 600 | I12: 2008-10-10 | J12: 2009-12-11 | K12: 428 | L12: 2009-12-11 | M12: 0.7133333333 | N12: 123352213 | O12: 1300000 | P12: =IF(N12=0," ",IF(N12>0,N12/총괄표!$E$4)) -> 0.2153491579 | Q12: 0 | S12: =IF(L12="","0",(총괄표!$H$3-L12)/365) -> 2.819178082
E13: 0공사 | F13: 000엔지니어링 | G13: 상하수도 | H13: 800 | I13: 2009-10-11 | J13: 2010-10-10 | K13: =IF(J13-I13=0," ",IF(J13-I13>0,J13-I13+1)) -> 365 | L13: 2010-10-10 | M13: 0.45625 | N13: 123352213 | O13: 1200000 | P13: =IF(N13=0," ",IF(N13>0,N13/총괄표!$E$4)) -> 0.2153491579 | Q13: 0 | S13: =IF(L13="","0",(총괄표!$H$3-L13)/365) -> 1.989041096
E14: 0공사 | F14: 000엔지니어링 | G14: 상하수도 | H14: 600 | I14: 2008-09-09 | J14: 2010-01-01 | K14: 480 | L14: 2010-01-01 | M14: 0.8 | N14: 123352213 | O14: 1100000 | P14: =IF(N14=0," ",IF(N14>0,N14/총괄표!$E$4)) -> 0.2153491579 | Q14: 0 | S14: =IF(L14="","0",(총괄표!$H$3-L14)/365) -> 2.761643836
E15: 0공사 | F15: 000엔지니어링 | G15: 상하수도 | H15: 500 | I15: 2007-12-12 | J15: 2009-12-11 | K15: 731 | L15: 2010-05-05 | M15: 1.462 | N15: 123352213 | O15: 1000000 | P15: =IF(N15=0," ",IF(N15>0,N15/총괄표!$E$4)) -> 0.2153491579 | Q15: 0 | S15: =IF(L15="","0",(총괄표!$H$3-L15)/365) -> 2.421917808
E16: 0공사 | F16: 000엔지니어링 | G16: 상하수도 | H16: 400 | I16: 2009-10-11 | J16: 2009-12-11 | K16: 62 | L16: 2010-02-02 | M16: 0.155 | N16: 123352213 | O16: 900000 | P16: =IF(N16=0," ",IF(N16>0,N16/총괄표!$E$4)) -> 0.2153491579 | Q16: 0 | S16: =IF(L16="","0",(총괄표!$H$3-L16)/365) -> 2.673972603
E17: 0공사 | F17: 000엔지니어링 | G17: 상하수도 | H17: 800 | I17: 2009-10-11 | J17: 2010-10-10 | K17: 365 | L17: 2010-10-10 | M17: 0.45625 | N17: 123352213 | O17: 700000 | P17: =IF(N17=0," ",IF(N17>0,N17/총괄표!$E$4)) -> 0.2153491579 | Q17: 0 | S17: =IF(L17="","0",(총괄표!$H$3-L17)/365) -> 1.989041096
E18: 0공사 | F18: 000엔지니어링 | G18: 상하수도 | H18: 600 | I18: 2008-09-09 | J18: 2010-01-01 | K18: 480 | L18: 2010-01-01 | M18: 0.8 | N18: 123352213 | O18: 600000 | P18: =IF(N18=0," ",IF(N18>0,N18/총괄표!$E$4)) -> 0.2153491579 | Q18: 0 | S18: =IF(L18="","0",(총괄표!$H$3-L18)/365) -> 2.761643836
E19: 0공사 | F19: 000엔지니어링 | G19: 상하수도 | H19: 500 | I19: 2007-12-12 | J19: 2009-12-11 | K19: 731 | L19: 2010-05-05 | M19: 1.462 | N19: 123352213 | O19: 500000 | P19: =IF(N19=0," ",IF(N19>0,N19/총괄표!$E$4)) -> 0.2153491579 | Q19: 0 | S19: =IF(L19="","0",(총괄표!$H$3-L19)/365) -> 2.421917808
E20: 0공사 | F20: 000엔지니어링 | G20: 상하수도 | H20: 400 | I20: 2009-10-11 | J20: 2009-12-11 | K20: 62 | L20: 2010-02-02 | M20: 0.155 | N20: 123352213 | O20: 400000 | P20: =IF(N20=0," ",IF(N20>0,N20/총괄표!$E$4)) -> 0.2153491579 | Q20: 0 | S20: =IF(L20="","0",(총괄표!$H$3-L20)/365) -> 2.673972603
E21: 0공사 | F21: 000엔지니어링 | G21: 상하수도 | H21: 600 | I21: 2008-10-10 | J21: 2009-12-11 | K21: 428 | L21: 2009-12-11 | M21: 0.7133333333 | N21: 123352213 | O21: 3000000 | P21: =IF(N21=0," ",IF(N21>0,N21/총괄표!$E$4)) -> 0.2153491579 | Q21: 0 | S21: =IF(L21="","0",(총괄표!$H$3-L21)/365) -> 2.819178082
E22: 0공사 | F22: 000엔지니어링 | G22: 상하수도 | H22: 800 | I22: 2009-10-11 | J22: 2010-10-10 | K22: 365 | L22: 2010-10-10 | M22: 0.45625 | N22: 123352213 | O22: 3000000 | P22: =IF(N22=0," ",IF(N22>0,N22/총괄표!$E$4)) -> 0.2153491579 | Q22: 0 | S22: =IF(L22="","0",(총괄표!$H$3-L22)/365) -> 1.989041096
E23: 0공사 | F23: 000엔지니어링 | G23: 상하수도 | H23: 600 | I23: 2008-09-09 | J23: 2010-01-01 | K23: 480 | L23: 2010-01-01 | M23: 0.8 | N23: 123352213 | O23: 3000000 | P23: =IF(N23=0," ",IF(N23>0,N23/총괄표!$E$4)) -> 0.2153491579 | Q23: 0 | S23: =IF(L23="","0",(총괄표!$H$3-L23)/365) -> 2.761643836
E24: 0공사 | F24: 000엔지니어링 | G24: 상하수도 | H24: 500 | I24: 2007-12-12 | J24: 2009-12-11 | K24: 731 | L24: 2010-05-05 | M24: 1.462 | N24: 123352213 | O24: 3000000 | P24: =IF(N24=0," ",IF(N24>0,N24/총괄표!$E$4)) -> 0.2153491579 | Q24: 0 | S24: =IF(L24="","0",(총괄표!$H$3-L24)/365) -> 2.421917808
E25: 0공사 | F25: 000엔지니어링 | G25: 상하수도 | H25: 400 | I25: 2009-10-11 | J25: 2009-12-11 | K25: 62 | L25: 2010-02-02 | M25: 0.155 | N25: 123352213 | O25: 3000000 | P25: =IF(N25=0," ",IF(N25>0,N25/총괄표!$E$4)) -> 0.2153491579 | Q25: 0 | S25: =IF(L25="","0",(총괄표!$H$3-L25)/365) -> 2.673972603
K26: =IF(J26-I26=0," ",IF(J26-I26>0,J26-I26+1)) ->  | M26: =IF(H26=0," ",IF(H26>0,K26/H26)) ->  | P26: =IF(N26=0," ",IF(N26>0,N26/총괄표!$E$4)) ->  | Q26: 0 | S26: =IF(L26="","0",(총괄표!$H$3-L26)/365) -> 0
P27: =IF(N27=0," ",IF(N27>0,N27/총괄표!$E$4)) ->  | Q27: 0 | S27: =IF(L27="","0",(총괄표!$H$3-L27)/365) -> 0
P28: =IF(N28=0," ",IF(N28>0,N28/총괄표!$E$4)) ->  | Q28: 0 | S28: =IF(L28="","0",(총괄표!$H$3-L28)/365) -> 0
P29: =IF(N29=0," ",IF(N29>0,N29/총괄표!$E$4)) ->  | Q29: 0 | S29: =IF(L29="","0",(총괄표!$H$3-L29)/365) -> 0
P30: =IF(N30=0," ",IF(N30>0,N30/총괄표!$E$4)) ->  | Q30: 0 | S30: =IF(L30="","0",(총괄표!$H$3-L30)/365) -> 0
P31: =IF(N31=0," ",IF(N31>0,N31/총괄표!$E$4)) ->  | Q31: 0 | S31: =IF(L31="","0",(총괄표!$H$3-L31)/365) -> 0
P32: =IF(N32=0," ",IF(N32>0,N32/총괄표!$E$4)) ->  | Q32: 0 | S32: =IF(L32="","0",(총괄표!$H$3-L32)/365) -> 0
P33: =IF(N33=0," ",IF(N33>0,N33/총괄표!$E$4)) ->  | Q33: 0 | S33: =IF(L33="","0",(총괄표!$H$3-L33)/365) -> 0
P34: =IF(N34=0," ",IF(N34>0,N34/총괄표!$E$4)) ->  | Q34: 0 | S34: =IF(L34="","0",(총괄표!$H$3-L34)/365) -> 0
A35: 분야별 책임 기술자 | B35: =참여업체현황!E4 -> 상하수도 | C35: 합계 | D35: - | E35: - | F35: - | G35: - | I35: - | J35: - | K35: - | N35: - | O35: - | P35: - | Q35: =Q36+Q37+Q38+Q39+Q40+Q41+Q42+Q43+Q44+Q45+Q46+Q47+Q48+Q49+Q50+Q51+Q52+Q53+Q54+Q55+Q56+Q57+Q58+Q59+Q60+Q61+Q62+Q63+Q64+Q65 -> 1 | S35: =IF(L35="","0",(총괄표!$H$3-L35)/365) -> 0
D36: 00용역 | E36: 00공사 | F36: 00엔지니어링 | G36: =$B$35 -> 상하수도 | H36: 400 | I36: 2009-10-11 | J36: 2010-10-12 | K36: =IF(J36-I36=0," ",IF(J36-I36>0,J36-I36+1)) -> 367 | L36: 2010-10-12 | M36: =IF(H36=0," ",IF(H36>0,K36/H36)) -> 0.9175 | N36: 756132564 | O36: 1900000 | P36: =IF(N36=0," ",IF(N36>0,N36/총괄표!$E$4)) -> 1.320061529 | Q36: =IF(H36<90,"0",IF(S36>10,"0",IF(M36<30%,"0",IF(P36=" ","0",IF(P36>=200%,"2",IF(P36>=150%,"1.5",IF(P36>=100%,"1",IF(P36>=50%,"0.5",IF(P36<50%,"0"))))))))) -> 1 | S36: =IF(L36="","0",(총괄표!$H$3-L36)/365) -> 1.983561644
D37: 00용역 | E37: 0공사 | F37: 000엔지니어링 | G37: =$B$35 -> 상하수도 | H37: 600 | I37: 2008-10-10 | J37: 2009-12-11 | K37: =IF(J37-I37=0," ",IF(J37-I37>0,J37-I37+1)) -> 428 | L37: 2009-12-11 | M37: 0.7133333333 | N37: 123352213 | O37: 1800000 | P37: =IF(N37=0," ",IF(N37>0,N37/총괄표!$E$4)) -> 0.2153491579 | Q37: 0 | S37: =IF(L37="","0",(총괄표!$H$3-L37)/365) -> 2.819178082
E38: 0공사 | F38: 000엔지니어링 | G38: 상하수도 | H38: 800 | I38: 2009-10-11 | J38: 2010-10-10 | K38: 365 | L38: 2010-10-10 | M38: 0.45625 | N38: 123352213 | O38: 1700000 | P38: =IF(N38=0," ",IF(N38>0,N38/총괄표!$E$4)) -> 0.2153491579 | Q38: 0 | S38: =IF(L38="","0",(총괄표!$H$3-L38)/365) -> 1.989041096
E39: 0공사 | F39: 000엔지니어링 | G39: 상하수도 | H39: 600 | I39: 2008-09-09 | J39: 2010-01-01 | K39: 480 | L39: 2010-01-01 | M39: 0.8 | N39: 123352213 | O39: 1600000 | P39: =IF(N39=0," ",IF(N39>0,N39/총괄표!$E$4)) -> 0.2153491579 | Q39: 0 | S39: =IF(L39="","0",(총괄표!$H$3-L39)/365) -> 2.761643836
E40: 0공사 | F40: 000엔지니어링 | G40: 상하수도 | H40: 500 | I40: 2007-12-12 | J40: 2009-12-11 | K40: 731 | L40: 2010-05-05 | M40: 1.462 | N40: 123352213 | O40: 1500000 | P40: =IF(N40=0," ",IF(N40>0,N40/총괄표!$E$4)) -> 0.2153491579 | Q40: 0 | S40: =IF(L40="","0",(총괄표!$H$3-L40)/365) -> 2.421917808
E41: 0공사 | F41: 000엔지니어링 | G41: 상하수도 | H41: 400 | I41: 2009-10-11 | J41: 2009-12-11 | K41: 62 | L41: 2010-02-02 | M41: 0.155 | N41: 123352213 | O41: 1400000 | P41: =IF(N41=0," ",IF(N41>0,N41/총괄표!$E$4)) -> 0.2153491579 | Q41: 0 | S41: =IF(L41="","0",(총괄표!$H$3-L41)/365) -> 2.673972603
E42: 0공사 | F42: 000엔지니어링 | G42: 상하수도 | H42: 600 | I42: 2008-10-10 | J42: 2009-12-11 | K42: 428 | L42: 2009-12-11 | M42: 0.7133333333 | N42: 123352213 | O42: 1300000 | P42: =IF(N42=0," ",IF(N42>0,N42/총괄표!$E$4)) -> 0.2153491579 | Q42: 0 | S42: =IF(L42="","0",(총괄표!$H$3-L42)/365) -> 2.819178082
E43: 0공사 | F43: 000엔지니어링 | G43: 상하수도 | H43: 800 | I43: 2009-10-11 | J43: 2010-10-10 | K43: 365 | L43: 2010-10-10 | M43: 0.45625 | N43: 123352213 | O43: 1200000 | P43: =IF(N43=0," ",IF(N43>0,N43/총괄표!$E$4)) -> 0.2153491579 | Q43: 0 | S43: =IF(L43="","0",(총괄표!$H$3-L43)/365) -> 1.989041096
E44: 0공사 | F44: 000엔지니어링 | G44: 상하수도 | H44: 600 | I44: 2008-09-09 | J44: 2010-01-01 | K44: 480 | L44: 2010-01-01 | M44: 0.8 | N44: 123352213 | O44: 1100000 | P44: =IF(N44=0," ",IF(N44>0,N44/총괄표!$E$4)) -> 0.2153491579 | Q44: 0 | S44: =IF(L44="","0",(총괄표!$H$3-L44)/365) -> 2.761643836
E45: 0공사 | F45: 000엔지니어링 | G45: 상하수도 | H45: 500 | I45: 2007-12-12 | J45: 2009-12-11 | K45: 731 | L45: 2010-05-05 | M45: 1.462 | N45: 123352213 | O45: 1000000 | P45: =IF(N45=0," ",IF(N45>0,N45/총괄표!$E$4)) -> 0.2153491579 | Q45: 0 | S45: =IF(L45="","0",(총괄표!$H$3-L45)/365) -> 2.421917808
E46: 0공사 | F46: 000엔지니어링 | G46: 상하수도 | H46: 400 | I46: 2009-10-11 | J46: 2009-12-11 | K46: 62 | L46: 2010-02-02 | M46: 0.155 | N46: 123352213 | O46: 900000 | P46: =IF(N46=0," ",IF(N46>0,N46/총괄표!$E$4)) -> 0.2153491579 | Q46: 0 | S46: =IF(L46="","0",(총괄표!$H$3-L46)/365) -> 2.673972603
E47: 0공사 | F47: 000엔지니어링 | G47: 상하수도 | H47: 600 | I47: 2008-10-10 | J47: 2009-12-11 | K47: 428 | L47: 2009-12-11 | M47: 0.7133333333 | N47: 123352213 | O47: 700000 | P47: =IF(N47=0," ",IF(N47>0,N47/총괄표!$E$4)) -> 0.2153491579 | Q47: 0 | S47: =IF(L47="","0",(총괄표!$H$3-L47)/365) -> 2.819178082
E48: 0공사 | F48: 000엔지니어링 | G48: 상하수도 | H48: 800 | I48: 2009-10-11 | J48: 2010-10-10 | K48: 365 | L48: 2010-10-10 | M48: 0.45625 | N48: 123352213 | O48: 600000 | P48: =IF(N48=0," ",IF(N48>0,N48/총괄표!$E$4)) -> 0.2153491579 | Q48: 0 | S48: =IF(L48="","0",(총괄표!$H$3-L48)/365) -> 1.989041096
E49: 0공사 | F49: 000엔지니어링 | G49: 상하수도 | H49: 600 | I49: 2008-09-09 | J49: 2010-01-01 | K49: 480 | L49: 2010-01-01 | M49: 0.8 | N49: 123352213 | O49: 500000 | P49: =IF(N49=0," ",IF(N49>0,N49/총괄표!$E$4)) -> 0.2153491579 | Q49: 0 | S49: =IF(L49="","0",(총괄표!$H$3-L49)/365) -> 2.761643836
E50: 0공사 | F50: 000엔지니어링 | G50: 상하수도 | H50: 500 | I50: 2007-12-12 | J50: 2009-12-11 | K50: 731 | L50: 2010-05-05 | M50: 1.462 | N50: 123352213 | O50: 400000 | P50: =IF(N50=0," ",IF(N50>0,N50/총괄표!$E$4)) -> 0.2153491579 | Q50: 0 | S50: =IF(L50="","0",(총괄표!$H$3-L50)/365) -> 2.421917808
E51: 0공사 | F51: 000엔지니어링 | G51: 상하수도 | H51: 400 | I51: 2009-10-11 | J51: 2009-12-11 | K51: 62 | L51: 2010-02-02 | M51: 0.155 | N51: 123352213 | O51: 3000000 | P51: =IF(N51=0," ",IF(N51>0,N51/총괄표!$E$4)) -> 0.2153491579 | Q51: 0 | S51: =IF(L51="","0",(총괄표!$H$3-L51)/365) -> 2.673972603
K52: =IF(J52-I52=0," ",IF(J52-I52>0,J52-I52+1)) ->  | M52: =IF(H52=0," ",IF(H52>0,K52/H52)) ->  | P52: =IF(N52=0," ",IF(N52>0,N52/총괄표!$E$4)) ->  | Q52: 0 | S52: =IF(L52="","0",(총괄표!$H$3-L52)/365) -> 0
P53: =IF(N53=0," ",IF(N53>0,N53/총괄표!$E$4)) ->  | Q53: 0 | S53: =IF(L53="","0",(총괄표!$H$3-L53)/365) -> 0
P54: =IF(N54=0," ",IF(N54>0,N54/총괄표!$E$4)) ->  | Q54: 0 | S54: =IF(L54="","0",(총괄표!$H$3-L54)/365) -> 0
P55: =IF(N55=0," ",IF(N55>0,N55/총괄표!$E$4)) ->  | Q55: 0 | S55: =IF(L55="","0",(총괄표!$H$3-L55)/365) -> 0
P56: =IF(N56=0," ",IF(N56>0,N56/총괄표!$E$4)) ->  | Q56: 0 | S56: =IF(L56="","0",(총괄표!$H$3-L56)/365) -> 0
P57: =IF(N57=0," ",IF(N57>0,N57/총괄표!$E$4)) ->  | Q57: 0 | S57: =IF(L57="","0",(총괄표!$H$3-L57)/365) -> 0
P58: =IF(N58=0," ",IF(N58>0,N58/총괄표!$E$4)) ->  | Q58: 0 | S58: =IF(L58="","0",(총괄표!$H$3-L58)/365) -> 0
P59: =IF(N59=0," ",IF(N59>0,N59/총괄표!$E$4)) ->  | Q59: 0 | S59: =IF(L59="","0",(총괄표!$H$3-L59)/365) -> 0
P60: =IF(N60=0," ",IF(N60>0,N60/총괄표!$E$4)) ->  | Q60: 0 | S60: =IF(L60="","0",(총괄표!$H$3-L60)/365) -> 0
P61: =IF(N61=0," ",IF(N61>0,N61/총괄표!$E$4)) ->  | Q61: 0 | S61: =IF(L61="","0",(총괄표!$H$3-L61)/365) -> 0
P62: =IF(N62=0," ",IF(N62>0,N62/총괄표!$E$4)) ->  | Q62: 0 | S62: =IF(L62="","0",(총괄표!$H$3-L62)/365) -> 0
P63: =IF(N63=0," ",IF(N63>0,N63/총괄표!$E$4)) ->  | Q63: 0 | S63: =IF(L63="","0",(총괄표!$H$3-L63)/365) -> 0
P64: =IF(N64=0," ",IF(N64>0,N64/총괄표!$E$4)) ->  | Q64: 0 | S64: =IF(L64="","0",(총괄표!$H$3-L64)/365) -> 0
P65: =IF(N65=0," ",IF(N65>0,N65/총괄표!$E$4)) ->  | Q65: 0 | S65: =IF(L65="","0",(총괄표!$H$3-L65)/365) -> 0
A66: 분야별 책임 기술자 | B66: =참여업체현황!F4 -> 구조 | C66: 합계 | D66: - | E66: - | F66: - | G66: - | I66: - | J66: - | K66: - | N66: - | O66: - | P66: - | Q66: =Q67+Q68+Q69+Q70+Q71+Q72+Q73+Q74+Q75+Q76+Q77+Q78+Q79+Q80+Q81+Q82+Q83+Q84+Q85+Q86+Q87+Q88+Q89+Q90+Q91+Q92+Q93+Q94+Q95+Q96 -> 1 | S66: =IF(L66="","0",(총괄표!$H$3-L66)/365) -> 0
D67: 00용역 | E67: 00공사 | F67: 00엔지니어링 | G67: 구조 | H67: 400 | I67: 2009-10-11 | J67: 2010-10-12 | K67: =IF(J67-I67=0," ",IF(J67-I67>0,J67-I67+1)) -> 367 | L67: 2010-10-12 | M67: =IF(H67=0," ",IF(H67>0,K67/H67)) -> 0.9175 | N67: 756132564 | O67: 1900000 | P67: =IF(N67=0," ",IF(N67>0,N67/총괄표!$E$4)) -> 1.320061529 | Q67: =IF(H67<90,"0",IF(S67>10,"0",IF(M67<30%,"0",IF(P67=" ","0",IF(P67>=200%,"2",IF(P67>=150%,"1.5",IF(P67>=100%,"1",IF(P67>=50%,"0.5",IF(P67<50%,"0"))))))))) -> 1 | S67: =IF(L67="","0",(총괄표!$H$3-L67)/365) -> 1.983561644
D68: 00용역 | E68: 0공사 | F68: 000엔지니어링 | G68: 구조 | H68: 600 | I68: 2008-10-10 | J68: 2009-12-11 | K68: =IF(J68-I68=0," ",IF(J68-I68>0,J68-I68+1)) -> 428 | L68: 2009-12-11 | M68: 0.7133333333 | N68: 123352213 | O68: 1800000 | P68: =IF(N68=0," ",IF(N68>0,N68/총괄표!$E$4)) -> 0.2153491579 | Q68: 0 | S68: =IF(L68="","0",(총괄표!$H$3-L68)/365) -> 2.819178082
E69: 0공사 | F69: 000엔지니어링 | G69: 구조 | H69: 800 | I69: 2009-10-11 | J69: 2010-10-10 | K69: 365 | L69: 2010-10-10 | M69: 0.45625 | N69: 123352213 | O69: 1700000 | P69: =IF(N69=0," ",IF(N69>0,N69/총괄표!$E$4)) -> 0.2153491579 | Q69: 0 | S69: =IF(L69="","0",(총괄표!$H$3-L69)/365) -> 1.989041096
E70: 0공사 | F70: 000엔지니어링 | G70: 구조 | H70: 600 | I70: 2008-09-09 | J70: 2010-01-01 | K70: 480 | L70: 2010-01-01 | M70: 0.8 | N70: 123352213 | O70: 1600000 | P70: =IF(N70=0," ",IF(N70>0,N70/총괄표!$E$4)) -> 0.2153491579 | Q70: 0 | S70: =IF(L70="","0",(총괄표!$H$3-L70)/365) -> 2.761643836
E71: 0공사 | F71: 000엔지니어링 | G71: 구조 | H71: 500 | I71: 2007-12-12 | J71: 2009-12-11 | K71: 731 | L71: 2010-05-05 | M71: 1.462 | N71: 123352213 | O71: 1500000 | P71: =IF(N71=0," ",IF(N71>0,N71/총괄표!$E$4)) -> 0.2153491579 | Q71: 0 | S71: =IF(L71="","0",(총괄표!$H$3-L71)/365) -> 2.421917808
E72: 0공사 | F72: 000엔지니어링 | G72: 구조 | H72: 400 | I72: 2009-10-11 | J72: 2009-12-11 | K72: 62 | L72: 2010-02-02 | M72: 0.155 | N72: 123352213 | O72: 1400000 | P72: =IF(N72=0," ",IF(N72>0,N72/총괄표!$E$4)) -> 0.2153491579 | Q72: 0 | S72: =IF(L72="","0",(총괄표!$H$3-L72)/365) -> 2.673972603
E73: 0공사 | F73: 000엔지니어링 | G73: 구조 | H73: 600 | I73: 2008-10-10 | J73: 2009-12-11 | K73: 428 | L73: 2009-12-11 | M73: 0.7133333333 | N73: 123352213 | O73: 1300000 | P73: =IF(N73=0," ",IF(N73>0,N73/총괄표!$E$4)) -> 0.2153491579 | Q73: 0 | S73: =IF(L73="","0",(총괄표!$H$3-L73)/365) -> 2.819178082
E74: 0공사 | F74: 000엔지니어링 | G74: 구조 | H74: 800 | I74: 2009-10-11 | J74: 2010-10-10 | K74: 365 | L74: 2010-10-10 | M74: 0.45625 | N74: 123352213 | O74: 1200000 | P74: =IF(N74=0," ",IF(N74>0,N74/총괄표!$E$4)) -> 0.2153491579 | Q74: 0 | S74: =IF(L74="","0",(총괄표!$H$3-L74)/365) -> 1.989041096
E75: 0공사 | F75: 000엔지니어링 | G75: 구조 | H75: 600 | I75: 2008-09-09 | J75: 2010-01-01 | K75: 480 | L75: 2010-01-01 | M75: 0.8 | N75: 123352213 | O75: 1100000 | P75: =IF(N75=0," ",IF(N75>0,N75/총괄표!$E$4)) -> 0.2153491579 | Q75: 0 | S75: =IF(L75="","0",(총괄표!$H$3-L75)/365) -> 2.761643836
E76: 0공사 | F76: 000엔지니어링 | G76: 구조 | H76: 500 | I76: 2007-12-12 | J76: 2009-12-11 | K76: 731 | L76: 2010-05-05 | M76: 1.462 | N76: 123352213 | O76: 1000000 | P76: =IF(N76=0," ",IF(N76>0,N76/총괄표!$E$4)) -> 0.2153491579 | Q76: 0 | S76: =IF(L76="","0",(총괄표!$H$3-L76)/365) -> 2.421917808
E77: 0공사 | F77: 000엔지니어링 | G77: 구조 | H77: 400 | I77: 2009-10-11 | J77: 2009-12-11 | K77: 62 | L77: 2010-02-02 | M77: 0.155 | N77: 123352213 | O77: 900000 | P77: =IF(N77=0," ",IF(N77>0,N77/총괄표!$E$4)) -> 0.2153491579 | Q77: 0 | S77: =IF(L77="","0",(총괄표!$H$3-L77)/365) -> 2.673972603
E78: 0공사 | F78: 000엔지니어링 | G78: 구조 | H78: 600 | I78: 2008-10-10 | J78: 2009-12-11 | K78: 428 | L78: 2009-12-11 | M78: 0.7133333333 | N78: 123352213 | O78: 700000 | P78: =IF(N78=0," ",IF(N78>0,N78/총괄표!$E$4)) -> 0.2153491579 | Q78: 0 | S78: =IF(L78="","0",(총괄표!$H$3-L78)/365) -> 2.819178082
E79: 0공사 | F79: 000엔지니어링 | G79: 구조 | H79: 800 | I79: 2009-10-11 | J79: 2010-10-10 | K79: 365 | L79: 2010-10-10 | M79: 0.45625 | N79: 123352213 | O79: 600000 | P79: =IF(N79=0," ",IF(N79>0,N79/총괄표!$E$4)) -> 0.2153491579 | Q79: 0 | S79: =IF(L79="","0",(총괄표!$H$3-L79)/365) -> 1.989041096
E80: 0공사 | F80: 000엔지니어링 | G80: 구조 | H80: 600 | I80: 2008-09-09 | J80: 2010-01-01 | K80: 480 | L80: 2010-01-01 | M80: 0.8 | N80: 123352213 | O80: 500000 | P80: =IF(N80=0," ",IF(N80>0,N80/총괄표!$E$4)) -> 0.2153491579 | Q80: 0 | S80: =IF(L80="","0",(총괄표!$H$3-L80)/365) -> 2.761643836
E81: 0공사 | F81: 000엔지니어링 | G81: 구조 | H81: 500 | I81: 2007-12-12 | J81: 2009-12-11 | K81: 731 | L81: 2010-05-05 | M81: 1.462 | N81: 123352213 | O81: 400000 | P81: =IF(N81=0," ",IF(N81>0,N81/총괄표!$E$4)) -> 0.2153491579 | Q81: 0 | S81: =IF(L81="","0",(총괄표!$H$3-L81)/365) -> 2.421917808
E82: 0공사 | F82: 000엔지니어링 | G82: 구조 | H82: 400 | I82: 2009-10-11 | J82: 2009-12-11 | K82: 62 | L82: 2010-02-02 | M82: 0.155 | N82: 123352213 | O82: 3000000 | P82: =IF(N82=0," ",IF(N82>0,N82/총괄표!$E$4)) -> 0.2153491579 | Q82: 0 | S82: =IF(L82="","0",(총괄표!$H$3-L82)/365) -> 2.673972603
K83: =IF(J83-I83=0," ",IF(J83-I83>0,J83-I83+1)) ->  | M83: =IF(H83=0," ",IF(H83>0,K83/H83)) ->  | P83: =IF(N83=0," ",IF(N83>0,N83/총괄표!$E$4)) ->  | Q83: 0 | S83: =IF(L83="","0",(총괄표!$H$3-L83)/365) -> 0
P84: =IF(N84=0," ",IF(N84>0,N84/총괄표!$E$4)) ->  | Q84: 0 | S84: =IF(L84="","0",(총괄표!$H$3-L84)/365) -> 0
P85: =IF(N85=0," ",IF(N85>0,N85/총괄표!$E$4)) ->  | Q85: 0 | S85: =IF(L85="","0",(총괄표!$H$3-L85)/365) -> 0
P86: =IF(N86=0," ",IF(N86>0,N86/총괄표!$E$4)) ->  | Q86: 0 | S86: =IF(L86="","0",(총괄표!$H$3-L86)/365) -> 0
P87: =IF(N87=0," ",IF(N87>0,N87/총괄표!$E$4)) ->  | Q87: 0 | S87: =IF(L87="","0",(총괄표!$H$3-L87)/365) -> 0
P88: =IF(N88=0," ",IF(N88>0,N88/총괄표!$E$4)) ->  | Q88: 0 | S88: =IF(L88="","0",(총괄표!$H$3-L88)/365) -> 0
P89: =IF(N89=0," ",IF(N89>0,N89/총괄표!$E$4)) ->  | Q89: 0 | S89: =IF(L89="","0",(총괄표!$H$3-L89)/365) -> 0
P90: =IF(N90=0," ",IF(N90>0,N90/총괄표!$E$4)) ->  | Q90: 0 | S90: =IF(L90="","0",(총괄표!$H$3-L90)/365) -> 0
P91: =IF(N91=0," ",IF(N91>0,N91/총괄표!$E$4)) ->  | Q91: 0 | S91: =IF(L91="","0",(총괄표!$H$3-L91)/365) -> 0
P92: =IF(N92=0," ",IF(N92>0,N92/총괄표!$E$4)) ->  | Q92: 0 | S92: =IF(L92="","0",(총괄표!$H$3-L92)/365) -> 0
P93: =IF(N93=0," ",IF(N93>0,N93/총괄표!$E$4)) ->  | Q93: 0 | S93: =IF(L93="","0",(총괄표!$H$3-L93)/365) -> 0
P94: =IF(N94=0," ",IF(N94>0,N94/총괄표!$E$4)) ->  | Q94: 0 | S94: =IF(L94="","0",(총괄표!$H$3-L94)/365) -> 0
P95: =IF(N95=0," ",IF(N95>0,N95/총괄표!$E$4)) ->  | Q95: 0 | S95: =IF(L95="","0",(총괄표!$H$3-L95)/365) -> 0
P96: =IF(N96=0," ",IF(N96>0,N96/총괄표!$E$4)) ->  | Q96: 0 | S96: =IF(L96="","0",(총괄표!$H$3-L96)/365) -> 0
A97: 분야별 책임 기술자 | B97: =참여업체현황!G4 -> 토질 지질 | C97: 합계 | D97: - | E97: - | F97: - | G97: - | I97: - | J97: - | K97: - | N97: - | O97: - | P97: - | Q97: =Q98+Q99+Q100+Q101+Q102+Q103+Q104+Q105+Q106+Q107+Q108+Q109+Q110+Q111+Q112+Q113+Q114+Q115+Q116+Q117+Q118+Q119+Q120+Q121+Q122+Q123+Q124+Q125+Q126+Q127 -> 1 | S97: =IF(L97="","0",(총괄표!$H$3-L97)/365) -> 0
D98: 00용역 | E98: 00공사 | F98: 00엔지니어링 | G98: =$B$97 -> 토질 지질 | H98: 400 | I98: 2009-10-11 | J98: 2010-10-12 | K98: =IF(J98-I98=0," ",IF(J98-I98>0,J98-I98+1)) -> 367 | L98: 2010-10-12 | M98: =IF(H98=0," ",IF(H98>0,K98/H98)) -> 0.9175 | N98: 756132564 | O98: 1900000 | P98: =IF(N98=0," ",IF(N98>0,N98/총괄표!$E$4)) -> 1.320061529 | Q98: =IF(H98<90,"0",IF(S98>10,"0",IF(M98<30%,"0",IF(P98=" ","0",IF(P98>=200%,"2",IF(P98>=150%,"1.5",IF(P98>=100%,"1",IF(P98>=50%,"0.5",IF(P98<50%,"0"))))))))) -> 1 | S98: =IF(L98="","0",(총괄표!$H$3-L98)/365) -> 1.983561644
D99: 00용역 | E99: 0공사 | F99: 000엔지니어링 | G99: 토질 지질 | H99: 600 | I99: 2008-10-10 | J99: 2009-12-11 | K99: =IF(J99-I99=0," ",IF(J99-I99>0,J99-I99+1)) -> 428 | L99: 2009-12-11 | M99: 0.7133333333 | N99: 123352213 | O99: 1800000 | P99: =IF(N99=0," ",IF(N99>0,N99/총괄표!$E$4)) -> 0.2153491579 | Q99: 0 | S99: =IF(L99="","0",(총괄표!$H$3-L99)/365) -> 2.819178082
E100: 0공사 | F100: 000엔지니어링 | G100: 토질 지질 | H100: 800 | I100: 2009-10-11 | J100: 2010-10-10 | K100: 365 | L100: 2010-10-10 | M100: 0.45625 | N100: 123352213 | O100: 1700000 | P100: =IF(N100=0," ",IF(N100>0,N100/총괄표!$E$4)) -> 0.2153491579 | Q100: 0 | S100: =IF(L100="","0",(총괄표!$H$3-L100)/365) -> 1.989041096
E101: 0공사 | F101: 000엔지니어링 | G101: 토질 지질 | H101: 600 | I101: 2008-09-09 | J101: 2010-01-01 | K101: 480 | L101: 2010-01-01 | M101: 0.8 | N101: 123352213 | O101: 1600000 | P101: =IF(N101=0," ",IF(N101>0,N101/총괄표!$E$4)) -> 0.2153491579 | Q101: 0 | S101: =IF(L101="","0",(총괄표!$H$3-L101)/365) -> 2.761643836
E102: 0공사 | F102: 000엔지니어링 | G102: 토질 지질 | H102: 500 | I102: 2007-12-12 | J102: 2009-12-11 | K102: 731 | L102: 2010-05-05 | M102: 1.462 | N102: 123352213 | O102: 1500000 | P102: =IF(N102=0," ",IF(N102>0,N102/총괄표!$E$4)) -> 0.2153491579 | Q102: 0 | S102: =IF(L102="","0",(총괄표!$H$3-L102)/365) -> 2.421917808
E103: 0공사 | F103: 000엔지니어링 | G103: 토질 지질 | H103: 400 | I103: 2009-10-11 | J103: 2009-12-11 | K103: 62 | L103: 2010-02-02 | M103: 0.155 | N103: 123352213 | O103: 1400000 | P103: =IF(N103=0," ",IF(N103>0,N103/총괄표!$E$4)) -> 0.2153491579 | Q103: 0 | S103: =IF(L103="","0",(총괄표!$H$3-L103)/365) -> 2.673972603
E104: 0공사 | F104: 000엔지니어링 | G104: 토질 지질 | H104: 600 | I104: 2008-10-10 | J104: 2009-12-11 | K104: 428 | L104: 2009-12-11 | M104: 0.7133333333 | N104: 123352213 | O104: 1300000 | P104: =IF(N104=0," ",IF(N104>0,N104/총괄표!$E$4)) -> 0.2153491579 | Q104: 0 | S104: =IF(L104="","0",(총괄표!$H$3-L104)/365) -> 2.819178082
E105: 0공사 | F105: 000엔지니어링 | G105: 토질 지질 | H105: 800 | I105: 2009-10-11 | J105: 2010-10-10 | K105: 365 | L105: 2010-10-10 | M105: 0.45625 | N105: 123352213 | O105: 1200000 | P105: =IF(N105=0," ",IF(N105>0,N105/총괄표!$E$4)) -> 0.2153491579 | Q105: 0 | S105: =IF(L105="","0",(총괄표!$H$3-L105)/365) -> 1.989041096
E106: 0공사 | F106: 000엔지니어링 | G106: 토질 지질 | H106: 600 | I106: 2008-09-09 | J106: 2010-01-01 | K106: 480 | L106: 2010-01-01 | M106: 0.8 | N106: 123352213 | O106: 1100000 | P106: =IF(N106=0," ",IF(N106>0,N106/총괄표!$E$4)) -> 0.2153491579 | Q106: 0 | S106: =IF(L106="","0",(총괄표!$H$3-L106)/365) -> 2.761643836
E107: 0공사 | F107: 000엔지니어링 | G107: 토질 지질 | H107: 500 | I107: 2007-12-12 | J107: 2009-12-11 | K107: 731 | L107: 2010-05-05 | M107: 1.462 | N107: 123352213 | O107: 1000000 | P107: =IF(N107=0," ",IF(N107>0,N107/총괄표!$E$4)) -> 0.2153491579 | Q107: 0 | S107: =IF(L107="","0",(총괄표!$H$3-L107)/365) -> 2.421917808
E108: 0공사 | F108: 000엔지니어링 | G108: 토질 지질 | H108: 600 | I108: 2008-10-10 | J108: 2009-12-11 | K108: 428 | L108: 2009-12-11 | M108: 0.7133333333 | N108: 123352213 | O108: 900000 | P108: =IF(N108=0," ",IF(N108>0,N108/총괄표!$E$4)) -> 0.2153491579 | Q108: 0 | S108: =IF(L108="","0",(총괄표!$H$3-L108)/365) -> 2.819178082
E109: 0공사 | F109: 000엔지니어링 | G109: 토질 지질 | H109: 800 | I109: 2009-10-11 | J109: 2010-10-10 | K109: 365 | L109: 2010-10-10 | M109: 0.45625 | N109: 123352213 | O109: 700000 | P109: =IF(N109=0," ",IF(N109>0,N109/총괄표!$E$4)) -> 0.2153491579 | Q109: 0 | S109: =IF(L109="","0",(총괄표!$H$3-L109)/365) -> 1.989041096
E110: 0공사 | F110: 000엔지니어링 | G110: 토질 지질 | H110: 600 | I110: 2008-09-09 | J110: 2010-01-01 | K110: 480 | L110: 2010-01-01 | M110: 0.8 | N110: 123352213 | O110: 600000 | P110: =IF(N110=0," ",IF(N110>0,N110/총괄표!$E$4)) -> 0.2153491579 | Q110: 0 | S110: =IF(L110="","0",(총괄표!$H$3-L110)/365) -> 2.761643836
E111: 0공사 | F111: 000엔지니어링 | G111: 토질 지질 | H111: 500 | I111: 2007-12-12 | J111: 2009-12-11 | K111: 731 | L111: 2010-05-05 | M111: 1.462 | N111: 123352213 | O111: 500000 | P111: =IF(N111=0," ",IF(N111>0,N111/총괄표!$E$4)) -> 0.2153491579 | Q111: 0 | S111: =IF(L111="","0",(총괄표!$H$3-L111)/365) -> 2.421917808
E112: 0공사 | F112: 000엔지니어링 | G112: 토질 지질 | H112: 400 | I112: 2009-10-11 | J112: 2009-12-11 | K112: 62 | L112: 2010-02-02 | M112: 0.155 | N112: 123352213 | O112: 400000 | P112: =IF(N112=0," ",IF(N112>0,N112/총괄표!$E$4)) -> 0.2153491579 | Q112: 0 | S112: =IF(L112="","0",(총괄표!$H$3-L112)/365) -> 2.673972603
K113: =IF(J113-I113=0," ",IF(J113-I113>0,J113-I113+1)) ->  | M113: =IF(H113=0," ",IF(H113>0,K113/H113)) ->  | P113: =IF(N113=0," ",IF(N113>0,N113/총괄표!$E$4)) ->  | Q113: 0 | S113: =IF(L113="","0",(총괄표!$H$3-L113)/365) -> 0
P114: =IF(N114=0," ",IF(N114>0,N114/총괄표!$E$4)) ->  | Q114: 0 | S114: =IF(L114="","0",(총괄표!$H$3-L114)/365) -> 0
P115: =IF(N115=0," ",IF(N115>0,N115/총괄표!$E$4)) ->  | Q115: 0 | S115: =IF(L115="","0",(총괄표!$H$3-L115)/365) -> 0
P116: =IF(N116=0," ",IF(N116>0,N116/총괄표!$E$4)) ->  | Q116: 0 | S116: =IF(L116="","0",(총괄표!$H$3-L116)/365) -> 0
P117: =IF(N117=0," ",IF(N117>0,N117/총괄표!$E$4)) ->  | Q117: 0 | S117: =IF(L117="","0",(총괄표!$H$3-L117)/365) -> 0
P118: =IF(N118=0," ",IF(N118>0,N118/총괄표!$E$4)) ->  | Q118: 0 | S118: =IF(L118="","0",(총괄표!$H$3-L118)/365) -> 0
P119: =IF(N119=0," ",IF(N119>0,N119/총괄표!$E$4)) ->  | Q119: 0 | S119: =IF(L119="","0",(총괄표!$H$3-L119)/365) -> 0
P120: =IF(N120=0," ",IF(N120>0,N120/총괄표!$E$4)) ->  | Q120: 0 | S120: =IF(L120="","0",(총괄표!$H$3-L120)/365) -> 0
P121: =IF(N121=0," ",IF(N121>0,N121/총괄표!$E$4)) ->  | Q121: 0 | S121: =IF(L121="","0",(총괄표!$H$3-L121)/365) -> 0
P122: =IF(N122=0," ",IF(N122>0,N122/총괄표!$E$4)) ->  | Q122: 0 | S122: =IF(L122="","0",(총괄표!$H$3-L122)/365) -> 0
P123: =IF(N123=0," ",IF(N123>0,N123/총괄표!$E$4)) ->  | Q123: 0 | S123: =IF(L123="","0",(총괄표!$H$3-L123)/365) -> 0
P124: =IF(N124=0," ",IF(N124>0,N124/총괄표!$E$4)) ->  | Q124: 0 | S124: =IF(L124="","0",(총괄표!$H$3-L124)/365) -> 0
P125: =IF(N125=0," ",IF(N125>0,N125/총괄표!$E$4)) ->  | Q125: 0 | S125: =IF(L125="","0",(총괄표!$H$3-L125)/365) -> 0
P126: =IF(N126=0," ",IF(N126>0,N126/총괄표!$E$4)) ->  | Q126: 0 | S126: =IF(L126="","0",(총괄표!$H$3-L126)/365) -> 0
P127: =IF(N127=0," ",IF(N127>0,N127/총괄표!$E$4)) ->  | Q127: 0 | S127: =IF(L127="","0",(총괄표!$H$3-L127)/365) -> 0
A128: 분야별 책임 기술자 | B128: =참여업체현황!H4 -> 일반기계 | C128: 합계 | D128: - | E128: - | F128: - | G128: - | I128: - | J128: - | K128: - | N128: - | O128: - | P128: - | Q128: =Q129+Q130+Q131+Q132+Q133+Q134+Q135+Q136+Q137+Q138+Q139+Q140+Q141+Q142+Q143+Q144+Q145+Q146+Q147+Q148+Q149+Q150+Q151+Q152+Q153+Q154+Q155+Q156+Q157+Q158 -> 1 | S128: =IF(L128="","0",(총괄표!$H$3-L128)/365) -> 0
D129: 00용역 | E129: 00공사 | F129: 00엔지니어링 | G129: =$B$128 -> 일반기계 | H129: 400 | I129: 2009-10-11 | J129: 2010-10-12 | K129: =IF(J129-I129=0," ",IF(J129-I129>0,J129-I129+1)) -> 367 | L129: 2010-10-12 | M129: =IF(H129=0," ",IF(H129>0,K129/H129)) -> 0.9175 | N129: 756132564 | O129: 1900000 | P129: =IF(N129=0," ",IF(N129>0,N129/총괄표!$E$4)) -> 1.320061529 | Q129: =IF(H129<90,"0",IF(S129>10,"0",IF(M129<30%,"0",IF(P129=" ","0",IF(P129>=200%,"2",IF(P129>=150%,"1.5",IF(P129>=100%,"1",IF(P129>=50%,"0.5",IF(P129<50%,"0"))))))))) -> 1 | S129: =IF(L129="","0",(총괄표!$H$3-L129)/365) -> 1.983561644
D130: 00용역 | E130: 0공사 | F130: 000엔지니어링 | G130: 일반기계 | H130: 600 | I130: 2008-10-10 | J130: 2009-12-11 | K130: =IF(J130-I130=0," ",IF(J130-I130>0,J130-I130+1)) -> 428 | L130: 2009-12-11 | M130: 0.7133333333 | N130: 123352213 | O130: 1800000 | P130: =IF(N130=0," ",IF(N130>0,N130/총괄표!$E$4)) -> 0.2153491579 | Q130: 0 | S130: =IF(L130="","0",(총괄표!$H$3-L130)/365) -> 2.819178082
E131: 0공사 | F131: 000엔지니어링 | G131: 일반기계 | H131: 800 | I131: 2009-10-11 | J131: 2010-10-10 | K131: 365 | L131: 2010-10-10 | M131: 0.45625 | N131: 123352213 | O131: 1700000 | P131: =IF(N131=0," ",IF(N131>0,N131/총괄표!$E$4)) -> 0.2153491579 | Q131: 0 | S131: =IF(L131="","0",(총괄표!$H$3-L131)/365) -> 1.989041096
E132: 0공사 | F132: 000엔지니어링 | G132: 일반기계 | H132: 600 | I132: 2008-09-09 | J132: 2010-01-01 | K132: 480 | L132: 2010-01-01 | M132: 0.8 | N132: 123352213 | O132: 1600000 | P132: =IF(N132=0," ",IF(N132>0,N132/총괄표!$E$4)) -> 0.2153491579 | Q132: 0 | S132: =IF(L132="","0",(총괄표!$H$3-L132)/365) -> 2.761643836
E133: 0공사 | F133: 000엔지니어링 | G133: 일반기계 | H133: 500 | I133: 2007-12-12 | J133: 2009-12-11 | K133: 731 | L133: 2010-05-05 | M133: 1.462 | N133: 123352213 | O133: 1500000 | P133: =IF(N133=0," ",IF(N133>0,N133/총괄표!$E$4)) -> 0.2153491579 | Q133: 0 | S133: =IF(L133="","0",(총괄표!$H$3-L133)/365) -> 2.421917808
E134: 0공사 | F134: 000엔지니어링 | G134: 일반기계 | H134: 400 | I134: 2009-10-11 | J134: 2009-12-11 | K134: 62 | L134: 2010-02-02 | M134: 0.155 | N134: 123352213 | O134: 1400000 | P134: =IF(N134=0," ",IF(N134>0,N134/총괄표!$E$4)) -> 0.2153491579 | Q134: 0 | S134: =IF(L134="","0",(총괄표!$H$3-L134)/365) -> 2.673972603
E135: 0공사 | F135: 000엔지니어링 | G135: 일반기계 | H135: 600 | I135: 2008-10-10 | J135: 2009-12-11 | K135: 428 | L135: 2009-12-11 | M135: 0.7133333333 | N135: 123352213 | O135: 1300000 | P135: =IF(N135=0," ",IF(N135>0,N135/총괄표!$E$4)) -> 0.2153491579 | Q135: 0 | S135: =IF(L135="","0",(총괄표!$H$3-L135)/365) -> 2.819178082
E136: 0공사 | F136: 000엔지니어링 | G136: 일반기계 | H136: 800 | I136: 2009-10-11 | J136: 2010-10-10 | K136: 365 | L136: 2010-10-10 | M136: 0.45625 | N136: 123352213 | O136: 1200000 | P136: =IF(N136=0," ",IF(N136>0,N136/총괄표!$E$4)) -> 0.2153491579 | Q136: 0 | S136: =IF(L136="","0",(총괄표!$H$3-L136)/365) -> 1.989041096
E137: 0공사 | F137: 000엔지니어링 | G137: 일반기계 | H137: 600 | I137: 2008-09-09 | J137: 2010-01-01 | K137: 480 | L137: 2010-01-01 | M137: 0.8 | N137: 123352213 | O137: 1100000 | P137: =IF(N137=0," ",IF(N137>0,N137/총괄표!$E$4)) -> 0.2153491579 | Q137: 0 | S137: =IF(L137="","0",(총괄표!$H$3-L137)/365) -> 2.761643836
E138: 0공사 | F138: 000엔지니어링 | G138: 일반기계 | H138: 500 | I138: 2007-12-12 | J138: 2009-12-11 | K138: 731 | L138: 2010-05-05 | M138: 1.462 | N138: 123352213 | O138: 1000000 | P138: =IF(N138=0," ",IF(N138>0,N138/총괄표!$E$4)) -> 0.2153491579 | Q138: 0 | S138: =IF(L138="","0",(총괄표!$H$3-L138)/365) -> 2.421917808
E139: 0공사 | F139: 000엔지니어링 | G139: 일반기계 | H139: 400 | I139: 2009-10-11 | J139: 2009-12-11 | K139: 62 | L139: 2010-02-02 | M139: 0.155 | N139: 123352213 | O139: 900000 | P139: =IF(N139=0," ",IF(N139>0,N139/총괄표!$E$4)) -> 0.2153491579 | Q139: 0 | S139: =IF(L139="","0",(총괄표!$H$3-L139)/365) -> 2.673972603
K140: =IF(J140-I140=0," ",IF(J140-I140>0,J140-I140+1)) ->  | M140: =IF(H140=0," ",IF(H140>0,K140/H140)) ->  | P140: =IF(N140=0," ",IF(N140>0,N140/총괄표!$E$4)) ->  | Q140: 0 | S140: =IF(L140="","0",(총괄표!$H$3-L140)/365) -> 0
P141: =IF(N141=0," ",IF(N141>0,N141/총괄표!$E$4)) ->  | Q141: 0 | S141: =IF(L141="","0",(총괄표!$H$3-L141)/365) -> 0
P142: =IF(N142=0," ",IF(N142>0,N142/총괄표!$E$4)) ->  | Q142: 0 | S142: =IF(L142="","0",(총괄표!$H$3-L142)/365) -> 0
P143: =IF(N143=0," ",IF(N143>0,N143/총괄표!$E$4)) ->  | Q143: 0 | S143: =IF(L143="","0",(총괄표!$H$3-L143)/365) -> 0
P144: =IF(N144=0," ",IF(N144>0,N144/총괄표!$E$4)) ->  | Q144: 0 | S144: =IF(L144="","0",(총괄표!$H$3-L144)/365) -> 0
P145: =IF(N145=0," ",IF(N145>0,N145/총괄표!$E$4)) ->  | Q145: 0 | S145: =IF(L145="","0",(총괄표!$H$3-L145)/365) -> 0
P146: =IF(N146=0," ",IF(N146>0,N146/총괄표!$E$4)) ->  | Q146: 0 | S146: =IF(L146="","0",(총괄표!$H$3-L146)/365) -> 0
P147: =IF(N147=0," ",IF(N147>0,N147/총괄표!$E$4)) ->  | Q147: 0 | S147: =IF(L147="","0",(총괄표!$H$3-L147)/365) -> 0
P148: =IF(N148=0," ",IF(N148>0,N148/총괄표!$E$4)) ->  | Q148: 0 | S148: =IF(L148="","0",(총괄표!$H$3-L148)/365) -> 0
P149: =IF(N149=0," ",IF(N149>0,N149/총괄표!$E$4)) ->  | Q149: 0 | S149: =IF(L149="","0",(총괄표!$H$3-L149)/365) -> 0
P150: =IF(N150=0," ",IF(N150>0,N150/총괄표!$E$4)) ->  | Q150: 0 | S150: =IF(L150="","0",(총괄표!$H$3-L150)/365) -> 0
P151: =IF(N151=0," ",IF(N151>0,N151/총괄표!$E$4)) ->  | Q151: 0 | S151: =IF(L151="","0",(총괄표!$H$3-L151)/365) -> 0
P152: =IF(N152=0," ",IF(N152>0,N152/총괄표!$E$4)) ->  | Q152: 0 | S152: =IF(L152="","0",(총괄표!$H$3-L152)/365) -> 0
P153: =IF(N153=0," ",IF(N153>0,N153/총괄표!$E$4)) ->  | Q153: 0 | S153: =IF(L153="","0",(총괄표!$H$3-L153)/365) -> 0
P154: =IF(N154=0," ",IF(N154>0,N154/총괄표!$E$4)) ->  | Q154: 0 | S154: =IF(L154="","0",(총괄표!$H$3-L154)/365) -> 0
P155: =IF(N155=0," ",IF(N155>0,N155/총괄표!$E$4)) ->  | Q155: 0 | S155: =IF(L155="","0",(총괄표!$H$3-L155)/365) -> 0
P156: =IF(N156=0," ",IF(N156>0,N156/총괄표!$E$4)) ->  | Q156: 0 | S156: =IF(L156="","0",(총괄표!$H$3-L156)/365) -> 0
P157: =IF(N157=0," ",IF(N157>0,N157/총괄표!$E$4)) ->  | Q157: 0 | S157: =IF(L157="","0",(총괄표!$H$3-L157)/365) -> 0
P158: =IF(N158=0," ",IF(N158>0,N158/총괄표!$E$4)) ->  | Q158: 0 | S158: =IF(L158="","0",(총괄표!$H$3-L158)/365) -> 0
A159: 분야별 책임 기술자 | B159: =참여업체현황!I4 -> 전기설비 | C159: 합계 | D159: - | E159: - | F159: - | G159: - | I159: - | J159: - | K159: - | N159: - | O159: - | P159: - | Q159: =Q160+Q161+Q162+Q163+Q164+Q165+Q166+Q167+Q168+Q169+Q170+Q171+Q172+Q173+Q174+Q175+Q176+Q177+Q178+Q179+Q180+Q181+Q182+Q183+Q184+Q185+Q186+Q187+Q188+Q189 -> 1 | S159: =IF(L159="","0",(총괄표!$H$3-L159)/365) -> 0
D160: 00용역 | E160: 00공사 | F160: 00엔지니어링 | G160: =$B$159 -> 전기설비 | H160: 400 | I160: 2009-10-11 | J160: 2010-10-12 | K160: =IF(J160-I160=0," ",IF(J160-I160>0,J160-I160+1)) -> 367 | L160: 2010-10-12 | M160: =IF(H160=0," ",IF(H160>0,K160/H160)) -> 0.9175 | N160: 756132564 | O160: 1900000 | P160: =IF(N160=0," ",IF(N160>0,N160/총괄표!$E$4)) -> 1.320061529 | Q160: =IF(H160<90,"0",IF(S160>10,"0",IF(M160<30%,"0",IF(P160=" ","0",IF(P160>=200%,"2",IF(P160>=150%,"1.5",IF(P160>=100%,"1",IF(P160>=50%,"0.5",IF(P160<50%,"0"))))))))) -> 1 | S160: =IF(L160="","0",(총괄표!$H$3-L160)/365) -> 1.983561644
D161: 00용역 | E161: 0공사 | F161: 000엔지니어링 | G161: 전기설비 | H161: 600 | I161: 2008-10-10 | J161: 2009-12-11 | K161: =IF(J161-I161=0," ",IF(J161-I161>0,J161-I161+1)) -> 428 | L161: 2009-12-11 | M161: 0.7133333333 | N161: 123352213 | O161: 1800000 | P161: =IF(N161=0," ",IF(N161>0,N161/총괄표!$E$4)) -> 0.2153491579 | Q161: 0 | S161: =IF(L161="","0",(총괄표!$H$3-L161)/365) -> 2.819178082
E162: 0공사 | F162: 000엔지니어링 | G162: 전기설비 | H162: 800 | I162: 2009-10-11 | J162: 2010-10-10 | K162: 365 | L162: 2010-10-10 | M162: 0.45625 | N162: 123352213 | O162: 1700000 | P162: =IF(N162=0," ",IF(N162>0,N162/총괄표!$E$4)) -> 0.2153491579 | Q162: 0 | S162: =IF(L162="","0",(총괄표!$H$3-L162)/365) -> 1.989041096
E163: 0공사 | F163: 000엔지니어링 | G163: 전기설비 | H163: 600 | I163: 2008-09-09 | J163: 2010-01-01 | K163: 480 | L163: 2010-01-01 | M163: 0.8 | N163: 123352213 | O163: 1600000 | P163: =IF(N163=0," ",IF(N163>0,N163/총괄표!$E$4)) -> 0.2153491579 | Q163: 0 | S163: =IF(L163="","0",(총괄표!$H$3-L163)/365) -> 2.761643836
E164: 0공사 | F164: 000엔지니어링 | G164: 전기설비 | H164: 500 | I164: 2007-12-12 | J164: 2009-12-11 | K164: 731 | L164: 2010-05-05 | M164: 1.462 | N164: 123352213 | O164: 1500000 | P164: =IF(N164=0," ",IF(N164>0,N164/총괄표!$E$4)) -> 0.2153491579 | Q164: 0 | S164: =IF(L164="","0",(총괄표!$H$3-L164)/365) -> 2.421917808
E165: 0공사 | F165: 000엔지니어링 | G165: 전기설비 | H165: 400 | I165: 2009-10-11 | J165: 2009-12-11 | K165: 62 | L165: 2010-02-02 | M165: 0.155 | N165: 123352213 | O165: 1400000 | P165: =IF(N165=0," ",IF(N165>0,N165/총괄표!$E$4)) -> 0.2153491579 | Q165: 0 | S165: =IF(L165="","0",(총괄표!$H$3-L165)/365) -> 2.673972603
E166: 0공사 | F166: 000엔지니어링 | G166: 전기설비 | H166: 600 | I166: 2008-10-10 | J166: 2009-12-11 | K166: 428 | L166: 2009-12-11 | M166: 0.7133333333 | N166: 123352213 | O166: 1300000 | P166: =IF(N166=0," ",IF(N166>0,N166/총괄표!$E$4)) -> 0.2153491579 | Q166: 0 | S166: =IF(L166="","0",(총괄표!$H$3-L166)/365) -> 2.819178082
E167: 0공사 | F167: 000엔지니어링 | G167: 전기설비 | H167: 800 | I167: 2009-10-11 | J167: 2010-10-10 | K167: 365 | L167: 2010-10-10 | M167: 0.45625 | N167: 123352213 | O167: 1200000 | P167: =IF(N167=0," ",IF(N167>0,N167/총괄표!$E$4)) -> 0.2153491579 | Q167: 0 | S167: =IF(L167="","0",(총괄표!$H$3-L167)/365) -> 1.989041096
E168: 0공사 | F168: 000엔지니어링 | G168: 전기설비 | H168: 600 | I168: 2008-09-09 | J168: 2010-01-01 | K168: 480 | L168: 2010-01-01 | M168: 0.8 | N168: 123352213 | O168: 1100000 | P168: =IF(N168=0," ",IF(N168>0,N168/총괄표!$E$4)) -> 0.2153491579 | Q168: 0 | S168: =IF(L168="","0",(총괄표!$H$3-L168)/365) -> 2.761643836
E169: 0공사 | F169: 000엔지니어링 | G169: 전기설비 | H169: 500 | I169: 2007-12-12 | J169: 2009-12-11 | K169: 731 | L169: 2010-05-05 | M169: 1.462 | N169: 123352213 | O169: 1000000 | P169: =IF(N169=0," ",IF(N169>0,N169/총괄표!$E$4)) -> 0.2153491579 | Q169: 0 | S169: =IF(L169="","0",(총괄표!$H$3-L169)/365) -> 2.421917808
E170: 0공사 | F170: 000엔지니어링 | G170: 전기설비 | H170: 400 | I170: 2009-10-11 | J170: 2009-12-11 | K170: 62 | L170: 2010-02-02 | M170: 0.155 | N170: 123352213 | O170: 900000 | P170: =IF(N170=0," ",IF(N170>0,N170/총괄표!$E$4)) -> 0.2153491579 | Q170: 0 | S170: =IF(L170="","0",(총괄표!$H$3-L170)/365) -> 2.673972603
K171: =IF(J171-I171=0," ",IF(J171-I171>0,J171-I171+1)) ->  | M171: =IF(H171=0," ",IF(H171>0,K171/H171)) ->  | P171: =IF(N171=0," ",IF(N171>0,N171/총괄표!$E$4)) ->  | Q171: 0 | S171: =IF(L171="","0",(총괄표!$H$3-L171)/365) -> 0
P172: =IF(N172=0," ",IF(N172>0,N172/총괄표!$E$4)) ->  | Q172: 0 | S172: =IF(L172="","0",(총괄표!$H$3-L172)/365) -> 0
P173: =IF(N173=0," ",IF(N173>0,N173/총괄표!$E$4)) ->  | Q173: 0 | S173: =IF(L173="","0",(총괄표!$H$3-L173)/365) -> 0
P174: =IF(N174=0," ",IF(N174>0,N174/총괄표!$E$4)) ->  | Q174: 0 | S174: =IF(L174="","0",(총괄표!$H$3-L174)/365) -> 0
P175: =IF(N175=0," ",IF(N175>0,N175/총괄표!$E$4)) ->  | Q175: 0 | S175: =IF(L175="","0",(총괄표!$H$3-L175)/365) -> 0
P176: =IF(N176=0," ",IF(N176>0,N176/총괄표!$E$4)) ->  | Q176: 0 | S176: =IF(L176="","0",(총괄표!$H$3-L176)/365) -> 0
P177: =IF(N177=0," ",IF(N177>0,N177/총괄표!$E$4)) ->  | Q177: 0 | S177: =IF(L177="","0",(총괄표!$H$3-L177)/365) -> 0
P178: =IF(N178=0," ",IF(N178>0,N178/총괄표!$E$4)) ->  | Q178: 0 | S178: =IF(L178="","0",(총괄표!$H$3-L178)/365) -> 0
P179: =IF(N179=0," ",IF(N179>0,N179/총괄표!$E$4)) ->  | Q179: 0 | S179: =IF(L179="","0",(총괄표!$H$3-L179)/365) -> 0
P180: =IF(N180=0," ",IF(N180>0,N180/총괄표!$E$4)) ->  | Q180: 0 | S180: =IF(L180="","0",(총괄표!$H$3-L180)/365) -> 0
P181: =IF(N181=0," ",IF(N181>0,N181/총괄표!$E$4)) ->  | Q181: 0 | S181: =IF(L181="","0",(총괄표!$H$3-L181)/365) -> 0
P182: =IF(N182=0," ",IF(N182>0,N182/총괄표!$E$4)) ->  | Q182: 0 | S182: =IF(L182="","0",(총괄표!$H$3-L182)/365) -> 0
P183: =IF(N183=0," ",IF(N183>0,N183/총괄표!$E$4)) ->  | Q183: 0 | S183: =IF(L183="","0",(총괄표!$H$3-L183)/365) -> 0
P184: =IF(N184=0," ",IF(N184>0,N184/총괄표!$E$4)) ->  | Q184: 0 | S184: =IF(L184="","0",(총괄표!$H$3-L184)/365) -> 0
P185: =IF(N185=0," ",IF(N185>0,N185/총괄표!$E$4)) ->  | Q185: 0 | S185: =IF(L185="","0",(총괄표!$H$3-L185)/365) -> 0
P186: =IF(N186=0," ",IF(N186>0,N186/총괄표!$E$4)) ->  | Q186: 0 | S186: =IF(L186="","0",(총괄표!$H$3-L186)/365) -> 0
P187: =IF(N187=0," ",IF(N187>0,N187/총괄표!$E$4)) ->  | Q187: =IF(H187<90,"0",IF(S187>10,"0",IF(M187<30%,"0",IF(P187=" ","0",IF(P187>=200%,"2",IF(P187>=150%,"1.5",IF(P187>=100%,"1",IF(P187>=50%,"0.5",IF(P187<40%,"0"))))))))) -> 0 | S187: =IF(L187="","0",(총괄표!$H$3-L187)/365) -> 0
P188: =IF(N188=0," ",IF(N188>0,N188/총괄표!$E$4)) ->  | Q188: 0 | S188: =IF(L188="","0",(총괄표!$H$3-L188)/365) -> 0
P189: =IF(N189=0," ",IF(N189>0,N189/총괄표!$E$4)) ->  | Q189: 0 | S189: =IF(L189="","0",(총괄표!$H$3-L189)/365) -> 0
A190: 분야별 참여 기술자 | B190: =참여업체현황!E4 -> 상하수도 | C190: 합계 | D190: - | E190: - | F190: - | G190: - | I190: - | J190: - | K190: - | N190: - | O190: - | P190: - | Q190: =Q191+Q192+Q193+Q194+Q195+Q196+Q197+Q198+Q199+Q200+Q201+Q202+Q203+Q204+Q205+Q206+Q207+Q208+Q209+Q210+Q211+Q212+Q213+Q214+Q215+Q216+Q217+Q218+Q219+Q220 -> 1 | S190: =IF(L190="","0",(총괄표!$H$3-L190)/365) -> 0
D191: 00용역 | E191: 00공사 | F191: 00엔지니어링 | G191: =$B$190 -> 상하수도 | H191: 400 | I191: 2009-10-11 | J191: 2010-10-12 | K191: =IF(J191-I191=0," ",IF(J191-I191>0,J191-I191+1)) -> 367 | L191: 2010-10-12 | M191: =IF(H191=0," ",IF(H191>0,K191/H191)) -> 0.9175 | N191: 756132564 | O191: 1900000 | P191: =IF(N191=0," ",IF(N191>0,N191/총괄표!$E$4)) -> 1.320061529 | Q191: =IF(H191<90,"0",IF(S191>10,"0",IF(M191<30%,"0",IF(P191=" ","0",IF(P191>=200%,"2",IF(P191>=150%,"1.5",IF(P191>=100%,"1",IF(P191>=50%,"0.5",IF(P191<50%,"0"))))))))) -> 1 | S191: =IF(L191="","0",(총괄표!$H$3-L191)/365) -> 1.983561644
D192: 00용역 | E192: 0공사 | F192: 000엔지니어링 | G192: 상하수도 | H192: 600 | I192: 2008-10-10 | J192: 2009-12-11 | K192: =IF(J192-I192=0," ",IF(J192-I192>0,J192-I192+1)) -> 428 | L192: 2009-12-11 | M192: 0.7133333333 | N192: 123352213 | O192: 1800000 | P192: =IF(N192=0," ",IF(N192>0,N192/총괄표!$E$4)) -> 0.2153491579 | Q192: 0 | S192: =IF(L192="","0",(총괄표!$H$3-L192)/365) -> 2.819178082
E193: 0공사 | F193: 000엔지니어링 | G193: 상하수도 | H193: 800 | I193: 2009-10-11 | J193: 2010-10-10 | K193: 365 | L193: 2010-10-10 | M193: 0.45625 | N193: 123352213 | O193: 1700000 | P193: =IF(N193=0," ",IF(N193>0,N193/총괄표!$E$4)) -> 0.2153491579 | Q193: 0 | S193: =IF(L193="","0",(총괄표!$H$3-L193)/365) -> 1.989041096
E194: 0공사 | F194: 000엔지니어링 | G194: 상하수도 | H194: 600 | I194: 2008-09-09 | J194: 2010-01-01 | K194: 480 | L194: 2010-01-01 | M194: 0.8 | N194: 123352213 | O194: 1600000 | P194: =IF(N194=0," ",IF(N194>0,N194/총괄표!$E$4)) -> 0.2153491579 | Q194: 0 | S194: =IF(L194="","0",(총괄표!$H$3-L194)/365) -> 2.761643836
E195: 0공사 | F195: 000엔지니어링 | G195: 상하수도 | H195: 500 | I195: 2007-12-12 | J195: 2009-12-11 | K195: 731 | L195: 2010-05-05 | M195: 1.462 | N195: 123352213 | O195: 1500000 | P195: =IF(N195=0," ",IF(N195>0,N195/총괄표!$E$4)) -> 0.2153491579 | Q195: 0 | S195: =IF(L195="","0",(총괄표!$H$3-L195)/365) -> 2.421917808
E196: 0공사 | F196: 000엔지니어링 | G196: 상하수도 | H196: 400 | I196: 2009-10-11 | J196: 2009-12-11 | K196: 62 | L196: 2010-02-02 | M196: 0.155 | N196: 123352213 | O196: 1400000 | P196: =IF(N196=0," ",IF(N196>0,N196/총괄표!$E$4)) -> 0.2153491579 | Q196: 0 | S196: =IF(L196="","0",(총괄표!$H$3-L196)/365) -> 2.673972603
E197: 0공사 | F197: 000엔지니어링 | G197: 상하수도 | H197: 600 | I197: 2008-10-10 | J197: 2009-12-11 | K197: 428 | L197: 2009-12-11 | M197: 0.7133333333 | N197: 123352213 | O197: 1300000 | P197: =IF(N197=0," ",IF(N197>0,N197/총괄표!$E$4)) -> 0.2153491579 | Q197: 0 | S197: =IF(L197="","0",(총괄표!$H$3-L197)/365) -> 2.819178082
E198: 0공사 | F198: 000엔지니어링 | G198: 상하수도 | H198: 800 | I198: 2009-10-11 | J198: 2010-10-10 | K198: 365 | L198: 2010-10-10 | M198: 0.45625 | N198: 123352213 | O198: 1200000 | P198: =IF(N198=0," ",IF(N198>0,N198/총괄표!$E$4)) -> 0.2153491579 | Q198: 0 | S198: =IF(L198="","0",(총괄표!$H$3-L198)/365) -> 1.989041096
E199: 0공사 | F199: 000엔지니어링 | G199: 상하수도 | H199: 600 | I199: 2008-09-09 | J199: 2010-01-01 | K199: 480 | L199: 2010-01-01 | M199: 0.8 | N199: 123352213 | O199: 1100000 | P199: =IF(N199=0," ",IF(N199>0,N199/총괄표!$E$4)) -> 0.2153491579 | Q199: 0 | S199: =IF(L199="","0",(총괄표!$H$3-L199)/365) -> 2.761643836
E200: 0공사 | F200: 000엔지니어링 | G200: 상하수도 | H200: 500 | I200: 2007-12-12 | J200: 2009-12-11 | K200: 731 | L200: 2010-05-05 | M200: 1.462 | N200: 123352213 | O200: 1000000 | P200: =IF(N200=0," ",IF(N200>0,N200/총괄표!$E$4)) -> 0.2153491579 | Q200: 0 | S200: =IF(L200="","0",(총괄표!$H$3-L200)/365) -> 2.421917808
E201: 0공사 | F201: 000엔지니어링 | G201: 상하수도 | H201: 400 | I201: 2009-10-11 | J201: 2009-12-11 | K201: 62 | L201: 2010-02-02 | M201: 0.155 | N201: 123352213 | O201: 900000 | P201: =IF(N201=0," ",IF(N201>0,N201/총괄표!$E$4)) -> 0.2153491579 | Q201: 0 | S201: =IF(L201="","0",(총괄표!$H$3-L201)/365) -> 2.673972603
... 143 more rows

Sheet 2.(1)유사용역(실적_배수지, 가압장, 정수장)
A2: 2. 유사용역수행실적(실적_배수지)
A4: 유사용역 총괄표
A6: 유사용역수행실적 | C6: 지분율 | D6: 실적건수 | E6: 실적점수
E7: 배점 | F7: 자기평가 | G7: 확인
A8: 총 계 | C8: - | D8: =ROUND(D9*C9+D10*C10+D11*C11+C12*D12+C13*D13,2) -> 5.13 | E8: 7 | F8: =IF(D8>=5,7,IF(D8>=4,6.3,IF(D8>=3,5.6,IF(D8>=2,4.9,IF(D8<2,4.2))))) -> 7
A9: =A15 -> 대 표 사 | B9: =참여업체현황!B5 -> A사 | C9: =참여업체현황!C5 -> 0.5 | D9: =K18 -> 6.8 | E9: - | F9: - | G9: -
A10: 공동도급사 | B10: =참여업체현황!B7 -> B사 | C10: =참여업체현황!C7 -> 0.3 | D10: =K54 -> 3.45 | E10: - | F10: - | G10: -
A11: 공동도급사 | B11: =참여업체현황!B9 -> C사 | C11: =참여업체현황!C9 -> 0.2 | D11: =K90 -> 3.45 | E11: - | F11: - | G11: - | O11: 배수지 설계
A12: 공동도급사 | B12: =참여업체현황!B11 -> D사 | C12: =참여업체현황!C11 -> 0 | D12: =K126 -> 0 | E12: - | F12: - | G12: - | O12: 가압장 설계
A13: 공동도급사 | B13: =참여업체현황!B13 -> E사 | C13: =참여업체현황!C13 -> 0 | D13: =K162 -> 0 | E13: - | F13: - | G13: - | O13: 정수장 설계
O14: 기타
A15: 대 표 사 | B15: =참여업체현황!B5 -> A사 | D15: 환산지분율 | G15: =참여업체현황!$C$5 -> 0.5
A17: 구분 | B17: 용역명 | C17: 발주청 | D17: 착수일 | E17: 준공일 | F17: 기간 | G17: 실적규모 (m3, m3/일) | H17: 도급 지분율 | I17: 실적계수 | J17: 계수 | K17: 실적별건수
A18: 총 계 | C18: - | D18: - | E18: - | F18: - | G18: - | H18: - | I18: - | J18: - | K18: =SUM(K19:K48) -> 6.8 | P18: 최근5년간
A19: 배수지 설계 | C19: 00공사 | D19: 2006-03-20 | E19: 2007-05-13 | F19: =IF(E19-D19=0,"",E19-D19) -> 419 | G19: 30000 | H19: 1 | I19: =IF(A19="배수지 설계",G19/총괄표!$H$4,G19/총괄표!$H$5) -> 1.25 | J19: =IF(I19="","",(IF(I19>=200%,"2",IF(I19>=150%,"1.5",IF(I19>=100%,"1",IF(I19>=50%,"0.5",IF(I19<50%,"0"))))))) -> 1 | K19: =IF(J19="","",ROUND(J19*H19*Q19,2)) -> 0 | P19: =(총괄표!$H$3-'2.(1)유사용역(실적_배수지, 가압장, 정수장)'!E19+1)/365 -> 5.405479452 | Q19: =IF(P19>5,0,1) -> 0
A20: 배수지 설계 | C20: 00공사 | D20: 1999-10-10 | E20: 2000-10-09 | F20: =IF(E20-D20=0,"",E20-D20) -> 365 | G20: 40000 | H20: 1 | I20: =IF(A20="배수지 설계",G20/총괄표!$H$4,G20/총괄표!$H$5) -> 1.666666667 | J20: 1.5 | K20: =IF(J20="","",ROUND(J20*H20*Q20,2)) -> 0 | P20: =(총괄표!$H$3-'2.(1)유사용역(실적_배수지, 가압장, 정수장)'!E20+1)/365 -> 12 | Q20: =IF(P20>5,0,1) -> 0
A21: 배수지 설계 | C21: 00시 | D21: 2007-10-10 | E21: 2008-10-09 | F21: 365 | G21: 70000 | H21: 0.9 | I21: =IF(A21="배수지 설계",G21/총괄표!$H$4,G21/총괄표!$H$5) -> 2.916666667 | J21: 2 | K21: 1.8 | P21: =(총괄표!$H$3-'2.(1)유사용역(실적_배수지, 가압장, 정수장)'!E21+1)/365 -> 3.994520548 | Q21: 1
A22: 가압장 설계 | C22: 00시 | D22: 2007-10-10 | E22: 2009-10-09 | F22: 730 | G22: 50000 | H22: 1 | I22: =IF(A22="배수지 설계",G22/총괄표!$H$4,G22/총괄표!$H$5) -> 1.063988254 | J22: 1 | K22: 1 | P22: =(총괄표!$H$3-'2.(1)유사용역(실적_배수지, 가압장, 정수장)'!E22+1)/365 -> 2.994520548 | Q22: 1
A23: 가압장 설계 | C23: 00시 | D23: 2007-10-10 | E23: 2009-10-09 | F23: 730 | G23: 100000 | H23: 1 | I23: =IF(G23="","",G23/총괄표!$H$4) -> 4.166666667 | J23: 2 | K23: 2 | P23: =(총괄표!$H$3-'2.(1)유사용역(실적_배수지, 가압장, 정수장)'!E23+1)/365 -> 2.994520548 | Q23: 1
A24: 배수지 설계 | C24: 00시 | D24: 2007-10-10 | E24: 2008-10-09 | F24: 365 | G24: 100000 | H24: 1 | I24: =IF(G24="","",G24/총괄표!$H$4) -> 4.166666667 | J24: 2 | K24: 2 | P24: =(총괄표!$H$3-'2.(1)유사용역(실적_배수지, 가압장, 정수장)'!E24+1)/365 -> 3.994520548 | Q24: 1
I25: =IF(G25="","",G25/총괄표!$H$4) ->  | P25: =(총괄표!$H$3-'2.(1)유사용역(실적_배수지, 가압장, 정수장)'!E25+1)/365 -> 112.8438356 | Q25: 0
I26: =IF(G26="","",G26/총괄표!$H$4) ->  | P26: =(총괄표!$H$3-'2.(1)유사용역(실적_배수지, 가압장, 정수장)'!E26+1)/365 -> 112.8438356 | Q26: 0
I27: =IF(G27="","",G27/총괄표!$H$4) ->  | P27: =(총괄표!$H$3-'2.(1)유사용역(실적_배수지, 가압장, 정수장)'!E27+1)/365 -> 112.8438356 | Q27: 0
I28: =IF(G28="","",G28/총괄표!$H$4) ->  | P28: =(총괄표!$H$3-'2.(1)유사용역(실적_배수지, 가압장, 정수장)'!E28+1)/365 -> 112.8438356 | Q28: 0
I29: =IF(G29="","",G29/총괄표!$H$4) ->  | P29: =(총괄표!$H$3-'2.(1)유사용역(실적_배수지, 가압장, 정수장)'!E29+1)/365 -> 112.8438356 | Q29: 0
I30: =IF(G30="","",G30/총괄표!$H$4) ->  | P30: =(총괄표!$H$3-'2.(1)유사용역(실적_배수지, 가압장, 정수장)'!E30+1)/365 -> 112.8438356 | Q30: 0
I31: =IF(G31="","",G31/총괄표!$H$4) ->  | P31: =(총괄표!$H$3-'2.(1)유사용역(실적_배수지, 가압장, 정수장)'!E31+1)/365 -> 112.8438356 | Q31: 0
I32: =IF(G32="","",G32/총괄표!$H$4) ->  | P32: =(총괄표!$H$3-'2.(1)유사용역(실적_배수지, 가압장, 정수장)'!E32+1)/365 -> 112.8438356 | Q32: 0
I33: =IF(G33="","",G33/총괄표!$H$4) ->  | P33: =(총괄표!$H$3-'2.(1)유사용역(실적_배수지, 가압장, 정수장)'!E33+1)/365 -> 112.8438356 | Q33: 0
I34: =IF(G34="","",G34/총괄표!$H$4) ->  | P34: =(총괄표!$H$3-'2.(1)유사용역(실적_배수지, 가압장, 정수장)'!E34+1)/365 -> 112.8438356 | Q34: 0
I35: =IF(G35="","",G35/총괄표!$H$4) ->  | P35: =(총괄표!$H$3-'2.(1)유사용역(실적_배수지, 가압장, 정수장)'!E35+1)/365 -> 112.8438356 | Q35: 0
F36: =IF(E36-D36=0,"",E36-D36) ->  | I36: =IF(G36="","",G36/총괄표!$H$4) ->  | P36: =(총괄표!$H$3-'2.(1)유사용역(실적_배수지, 가압장, 정수장)'!E36+1)/365 -> 112.8438356 | Q36: =IF(P36>5,0,1) -> 0
I37: =IF(G37="","",G37/총괄표!$H$4) ->  | P37: =(총괄표!$H$3-'2.(1)유사용역(실적_배수지, 가압장, 정수장)'!E37+1)/365 -> 112.8438356 | Q37: 0
I38: =IF(G38="","",G38/총괄표!$H$4) ->  | P38: =(총괄표!$H$3-'2.(1)유사용역(실적_배수지, 가압장, 정수장)'!E38+1)/365 -> 112.8438356 | Q38: 0
I39: =IF(G39="","",G39/총괄표!$H$4) ->  | P39: =(총괄표!$H$3-'2.(1)유사용역(실적_배수지, 가압장, 정수장)'!E39+1)/365 -> 112.8438356 | Q39: 0
I40: =IF(G40="","",G40/총괄표!$H$4) ->  | P40: =(총괄표!$H$3-'2.(1)유사용역(실적_배수지, 가압장, 정수장)'!E40+1)/365 -> 112.8438356 | Q40: 0
I41: =IF(G41="","",G41/총괄표!$H$4) ->  | P41: =(총괄표!$H$3-'2.(1)유사용역(실적_배수지, 가압장, 정수장)'!E41+1)/365 -> 112.8438356 | Q41: 0
I42: =IF(G42="","",G42/총괄표!$H$4) ->  | P42: =(총괄표!$H$3-'2.(1)유사용역(실적_배수지, 가압장, 정수장)'!E42+1)/365 -> 112.8438356 | Q42: 0
I43: =IF(G43="","",G43/총괄표!$H$4) ->  | P43: =(총괄표!$H$3-'2.(1)유사용역(실적_배수지, 가압장, 정수장)'!E43+1)/365 -> 112.8438356 | Q43: 0
I44: =IF(G44="","",G44/총괄표!$H$4) ->  | P44: =(총괄표!$H$3-'2.(1)유사용역(실적_배수지, 가압장, 정수장)'!E44+1)/365 -> 112.8438356 | Q44: 0
I45: =IF(G45="","",G45/총괄표!$H$4) ->  | P45: =(총괄표!$H$3-'2.(1)유사용역(실적_배수지, 가압장, 정수장)'!E45+1)/365 -> 112.8438356 | Q45: 0
I46: =IF(G46="","",G46/총괄표!$H$4) ->  | P46: =(총괄표!$H$3-'2.(1)유사용역(실적_배수지, 가압장, 정수장)'!E46+1)/365 -> 112.8438356 | Q46: 0
I47: =IF(G47="","",G47/총괄표!$H$4) ->  | P47: =(총괄표!$H$3-'2.(1)유사용역(실적_배수지, 가압장, 정수장)'!E47+1)/365 -> 112.8438356 | Q47: 0
I48: =IF(G48="","",G48/총괄표!$H$4) ->  | P48: =(총괄표!$H$3-'2.(1)유사용역(실적_배수지, 가압장, 정수장)'!E48+1)/365 -> 112.8438356 | Q48: 0
P49: =(총괄표!$H$3-'2.(1)유사용역(실적_배수지, 가압장, 정수장)'!E49+1)/365 -> 112.8438356 | Q49: 0
P50: =(총괄표!$H$3-'2.(1)유사용역(실적_배수지, 가압장, 정수장)'!E50+1)/365 -> 112.8438356 | Q50: 0
A51: 공동도급사 | B51: =참여업체현황!B7 -> B사 | D51: 환산지분율 | G51: =참여업체현황!$C$7 -> 0.3 | P51: =(총괄표!$H$3-'2.(1)유사용역(실적_배수지, 가압장, 정수장)'!E51+1)/365 -> 112.8438356 | Q51: 0
P52: =(총괄표!$H$3-'2.(1)유사용역(실적_배수지, 가압장, 정수장)'!E52+1)/365 -> 112.8438356 | Q52: 0
A53: 구분 | B53: 용역명 | C53: 발주청 | D53: 착수일 | E53: 준공일 | F53: 기간 | G53: 실적규모 (m3, m3/일) | H53: 도급 지분율 | I53: 실적계수 | J53: 계수 | K53: 실적별건수
A54: 총 계 | C54: - | D54: - | E54: - | F54: - | G54: - | H54: - | I54: - | J54: - | K54: =SUM(K55:K84) -> 3.45 | P54: 최근5년간
A55: 배수지 설계 | C55: 00공사 | D55: 2006-03-20 | E55: 2007-05-13 | F55: =IF(E55-D55=0,"",E55-D55) -> 419 | G55: 30000 | H55: 0.5 | I55: =IF(A55="배수지 설계",G55/총괄표!$H$4,G55/총괄표!$H$5) -> 1.25 | J55: =IF(I55="","",(IF(I55>=200%,"2",IF(I55>=150%,"1.5",IF(I55>=100%,"1",IF(I55>=50%,"0.5",IF(I55<50%,"0"))))))) -> 1 | K55: =IF(J55="","",ROUND(J55*H55*Q55,2)) -> 0 | P55: =(총괄표!$H$3-'2.(1)유사용역(실적_배수지, 가압장, 정수장)'!E55+1)/365 -> 5.405479452 | Q55: =IF(P55>5,0,1) -> 0
A56: 배수지 설계 | C56: 00공사 | D56: 1999-10-10 | E56: 2000-10-09 | F56: =IF(E56-D56=0,"",E56-D56) -> 365 | G56: 40000 | H56: 0.6 | I56: =IF(A56="배수지 설계",G56/총괄표!$H$4,G56/총괄표!$H$5) -> 1.666666667 | J56: 1.5 | K56: 0 | P56: =(총괄표!$H$3-'2.(1)유사용역(실적_배수지, 가압장, 정수장)'!E56+1)/365 -> 12 | Q56: =IF(P56>5,0,1) -> 0
A57: 가압장 설계 | C57: 00시 | D57: 2007-10-10 | E57: 2008-10-09 | F57: 365 | G57: 40000 | H57: 0.9 | I57: =IF(A57="배수지 설계",G57/총괄표!$H$4,G57/총괄표!$H$5) -> 0.8511906029 | J57: 0.5 | K57: 0.45 | P57: =(총괄표!$H$3-'2.(1)유사용역(실적_배수지, 가압장, 정수장)'!E57+1)/365 -> 3.994520548 | Q57: 1
A58: 정수장 설계 | C58: 00시 | D58: 2007-10-10 | E58: 2008-10-09 | F58: 365 | G58: 50000 | H58: 1 | I58: =IF(A58="배수지 설계",G58/총괄표!$H$4,G58/총괄표!$H$5) -> 1.063988254 | J58: 1 | K58: 1 | P58: =(총괄표!$H$3-'2.(1)유사용역(실적_배수지, 가압장, 정수장)'!E58+1)/365 -> 3.994520548 | Q58: 1
A59: 배수지 설계 | C59: 00시 | D59: 2007-10-10 | E59: 2008-10-09 | F59: 365 | G59: 100000 | H59: 1 | I59: =IF(G59="","",G59/총괄표!$H$4) -> 4.166666667 | J59: 2 | K59: 2 | P59: =(총괄표!$H$3-'2.(1)유사용역(실적_배수지, 가압장, 정수장)'!E59+1)/365 -> 3.994520548 | Q59: 1
I60: =IF(G60="","",G60/총괄표!$H$4) ->  | P60: =(총괄표!$H$3-'2.(1)유사용역(실적_배수지, 가압장, 정수장)'!E60+1)/365 -> 112.8438356 | Q60: 0
I61: =IF(G61="","",G61/총괄표!$H$4) ->  | P61: =(총괄표!$H$3-'2.(1)유사용역(실적_배수지, 가압장, 정수장)'!E61+1)/365 -> 112.8438356 | Q61: 0
I62: =IF(G62="","",G62/총괄표!$H$4) ->  | P62: =(총괄표!$H$3-'2.(1)유사용역(실적_배수지, 가압장, 정수장)'!E62+1)/365 -> 112.8438356 | Q62: 0
I63: =IF(G63="","",G63/총괄표!$H$4) ->  | P63: =(총괄표!$H$3-'2.(1)유사용역(실적_배수지, 가압장, 정수장)'!E63+1)/365 -> 112.8438356 | Q63: 0
I64: =IF(G64="","",G64/총괄표!$H$4) ->  | P64: =(총괄표!$H$3-'2.(1)유사용역(실적_배수지, 가압장, 정수장)'!E64+1)/365 -> 112.8438356 | Q64: 0
I65: =IF(G65="","",G65/총괄표!$H$4) ->  | P65: =(총괄표!$H$3-'2.(1)유사용역(실적_배수지, 가압장, 정수장)'!E65+1)/365 -> 112.8438356 | Q65: 0
I66: =IF(G66="","",G66/총괄표!$H$4) ->  | P66: =(총괄표!$H$3-'2.(1)유사용역(실적_배수지, 가압장, 정수장)'!E66+1)/365 -> 112.8438356 | Q66: 0
I67: =IF(G67="","",G67/총괄표!$H$4) ->  | P67: =(총괄표!$H$3-'2.(1)유사용역(실적_배수지, 가압장, 정수장)'!E67+1)/365 -> 112.8438356 | Q67: 0
I68: =IF(G68="","",G68/총괄표!$H$4) ->  | P68: =(총괄표!$H$3-'2.(1)유사용역(실적_배수지, 가압장, 정수장)'!E68+1)/365 -> 112.8438356 | Q68: 0
I69: =IF(G69="","",G69/총괄표!$H$4) ->  | P69: =(총괄표!$H$3-'2.(1)유사용역(실적_배수지, 가압장, 정수장)'!E69+1)/365 -> 112.8438356 | Q69: 0
I70: =IF(G70="","",G70/총괄표!$H$4) ->  | P70: =(총괄표!$H$3-'2.(1)유사용역(실적_배수지, 가압장, 정수장)'!E70+1)/365 -> 112.8438356 | Q70: 0
I71: =IF(G71="","",G71/총괄표!$H$4) ->  | P71: =(총괄표!$H$3-'2.(1)유사용역(실적_배수지, 가압장, 정수장)'!E71+1)/365 -> 112.8438356 | Q71: 0
I72: =IF(G72="","",G72/총괄표!$H$4) ->  | P72: =(총괄표!$H$3-'2.(1)유사용역(실적_배수지, 가압장, 정수장)'!E72+1)/365 -> 112.8438356 | Q72: 0
I73: =IF(G73="","",G73/총괄표!$H$4) ->  | P73: =(총괄표!$H$3-'2.(1)유사용역(실적_배수지, 가압장, 정수장)'!E73+1)/365 -> 112.8438356 | Q73: 0
I74: =IF(G74="","",G74/총괄표!$H$4) ->  | P74: =(총괄표!$H$3-'2.(1)유사용역(실적_배수지, 가압장, 정수장)'!E74+1)/365 -> 112.8438356 | Q74: 0
F75: =IF(E75-D75=0,"",E75-D75) ->  | I75: =IF(G75="","",G75/총괄표!$H$4) ->  | P75: =(총괄표!$H$3-'2.(1)유사용역(실적_배수지, 가압장, 정수장)'!E75+1)/365 -> 112.8438356 | Q75: =IF(P75>5,0,1) -> 0
I76: =IF(G76="","",G76/총괄표!$H$4) ->  | P76: =(총괄표!$H$3-'2.(1)유사용역(실적_배수지, 가압장, 정수장)'!E76+1)/365 -> 112.8438356 | Q76: 0
I77: =IF(G77="","",G77/총괄표!$H$4) ->  | K77: =IF(J77="","",ROUND(J77*H77*O77*Q77,2)) ->  | P77: =(총괄표!$H$3-'2.(1)유사용역(실적_배수지, 가압장, 정수장)'!E77+1)/365 -> 112.8438356 | Q77: 0
I78: =IF(G78="","",G78/총괄표!$H$4) ->  | P78: =(총괄표!$H$3-'2.(1)유사용역(실적_배수지, 가압장, 정수장)'!E78+1)/365 -> 112.8438356 | Q78: 0
I79: =IF(G79="","",G79/총괄표!$H$4) ->  | P79: =(총괄표!$H$3-'2.(1)유사용역(실적_배수지, 가압장, 정수장)'!E79+1)/365 -> 112.8438356 | Q79: 0
I80: =IF(G80="","",G80/총괄표!$H$4) ->  | P80: =(총괄표!$H$3-'2.(1)유사용역(실적_배수지, 가압장, 정수장)'!E80+1)/365 -> 112.8438356 | Q80: 0
I81: =IF(G81="","",G81/총괄표!$H$4) ->  | P81: =(총괄표!$H$3-'2.(1)유사용역(실적_배수지, 가압장, 정수장)'!E81+1)/365 -> 112.8438356 | Q81: 0
I82: =IF(G82="","",G82/총괄표!$H$4) ->  | P82: =(총괄표!$H$3-'2.(1)유사용역(실적_배수지, 가압장, 정수장)'!E82+1)/365 -> 112.8438356 | Q82: 0
I83: =IF(G83="","",G83/총괄표!$H$4) ->  | P83: =(총괄표!$H$3-'2.(1)유사용역(실적_배수지, 가압장, 정수장)'!E83+1)/365 -> 112.8438356 | Q83: 0
I84: =IF(G84="","",G84/총괄표!$H$4) ->  | P84: =(총괄표!$H$3-'2.(1)유사용역(실적_배수지, 가압장, 정수장)'!E84+1)/365 -> 112.8438356 | Q84: 0
P85: =(총괄표!$H$3-'2.(1)유사용역(실적_배수지, 가압장, 정수장)'!E85+1)/365 -> 112.8438356 | Q85: 0
P86: =(총괄표!$H$3-'2.(1)유사용역(실적_배수지, 가압장, 정수장)'!E86+1)/365 -> 112.8438356 | Q86: 0
A87: 공동도급사 | B87: =참여업체현황!B9 -> C사 | D87: 환산지분율 | G87: =참여업체현황!C9 -> 0.2 | P87: =(총괄표!$H$3-'2.(1)유사용역(실적_배수지, 가압장, 정수장)'!E87+1)/365 -> 112.8438356 | Q87: 0
P88: =(총괄표!$H$3-'2.(1)유사용역(실적_배수지, 가압장, 정수장)'!E88+1)/365 -> 112.8438356 | Q88: 0
A89: 구분 | B89: 용역명 | C89: 발주청 | D89: 착수일 | E89: 준공일 | F89: 기간 | G89: 실적규모 (m3, m3/일) | H89: 도급 지분율 | I89: 실적계수 | J89: 계수 | K89: 실적별건수
A90: 총 계 | C90: - | D90: - | E90: - | F90: - | G90: - | H90: - | I90: - | J90: - | K90: =SUM(K91:K120) -> 3.45 | P90: 최근5년간
A91: 배수지 설계 | C91: 00공사 | D91: 2006-03-20 | E91: 2007-05-13 | F91: =IF(E91-D91=0,"",E91-D91) -> 419 | G91: 30000 | H91: 0.5 | I91: =IF(A91="배수지 설계",G91/총괄표!$H$4,G91/총괄표!$H$5) -> 1.25 | J91: =IF(I91="","",(IF(I91>=200%,"2",IF(I91>=150%,"1.5",IF(I91>=100%,"1",IF(I91>=50%,"0.5",IF(I91<50%,"0"))))))) -> 1 | K91: =IF(J91="","",ROUND(J91*H91*Q91,2)) -> 0 | P91: =(총괄표!$H$3-'2.(1)유사용역(실적_배수지, 가압장, 정수장)'!E91+1)/365 -> 5.405479452 | Q91: =IF(P91>5,0,1) -> 0
A92: 배수지 설계 | C92: 00공사 | D92: 1999-10-10 | E92: 2000-10-09 | F92: =IF(E92-D92=0,"",E92-D92) -> 365 | G92: 40000 | H92: 0.6 | I92: =IF(A92="배수지 설계",G92/총괄표!$H$4,G92/총괄표!$H$5) -> 1.666666667 | J92: 1.5 | K92: 0 | P92: =(총괄표!$H$3-'2.(1)유사용역(실적_배수지, 가압장, 정수장)'!E92+1)/365 -> 12 | Q92: =IF(P92>5,0,1) -> 0
A93: 가압장 설계 | C93: 00시 | D93: 2007-10-10 | E93: 2008-10-09 | F93: 365 | G93: 40000 | H93: 0.9 | I93: =IF(A93="배수지 설계",G93/총괄표!$H$4,G93/총괄표!$H$5) -> 0.8511906029 | J93: 0.5 | K93: 0.45 | P93: =(총괄표!$H$3-'2.(1)유사용역(실적_배수지, 가압장, 정수장)'!E93+1)/365 -> 3.994520548 | Q93: 1
A94: 정수장 설계 | C94: 00시 | D94: 2007-10-10 | E94: 2008-10-09 | F94: 365 | G94: 50000 | H94: 1 | I94: =IF(A94="배수지 설계",G94/총괄표!$H$4,G94/총괄표!$H$5) -> 1.063988254 | J94: 1 | K94: 1 | P94: =(총괄표!$H$3-'2.(1)유사용역(실적_배수지, 가압장, 정수장)'!E94+1)/365 -> 3.994520548 | Q94: 1
A95: 배수지 설계 | C95: 00시 | D95: 2007-10-10 | E95: 2008-10-09 | F95: 365 | G95: 100000 | H95: 1 | I95: =IF(G95="","",G95/총괄표!$H$4) -> 4.166666667 | J95: 2 | K95: 2 | P95: =(총괄표!$H$3-'2.(1)유사용역(실적_배수지, 가압장, 정수장)'!E95+1)/365 -> 3.994520548 | Q95: 1
I96: =IF(G96="","",G96/총괄표!$H$4) ->  | P96: =(총괄표!$H$3-'2.(1)유사용역(실적_배수지, 가압장, 정수장)'!E96+1)/365 -> 112.8438356 | Q96: 0
I97: =IF(G97="","",G97/총괄표!$H$4) ->  | P97: =(총괄표!$H$3-'2.(1)유사용역(실적_배수지, 가압장, 정수장)'!E97+1)/365 -> 112.8438356 | Q97: 0
I98: =IF(G98="","",G98/총괄표!$H$4) ->  | P98: =(총괄표!$H$3-'2.(1)유사용역(실적_배수지, 가압장, 정수장)'!E98+1)/365 -> 112.8438356 | Q98: 0
I99: =IF(G99="","",G99/총괄표!$H$4) ->  | P99: =(총괄표!$H$3-'2.(1)유사용역(실적_배수지, 가압장, 정수장)'!E99+1)/365 -> 112.8438356 | Q99: 0
I100: =IF(G100="","",G100/총괄표!$H$4) ->  | P100: =(총괄표!$H$3-'2.(1)유사용역(실적_배수지, 가압장, 정수장)'!E100+1)/365 -> 112.8438356 | Q100: 0
I101: =IF(G101="","",G101/총괄표!$H$4) ->  | P101: =(총괄표!$H$3-'2.(1)유사용역(실적_배수지, 가압장, 정수장)'!E101+1)/365 -> 112.8438356 | Q101: 0
I102: =IF(G102="","",G102/총괄표!$H$4) ->  | P102: =(총괄표!$H$3-'2.(1)유사용역(실적_배수지, 가압장, 정수장)'!E102+1)/365 -> 112.8438356 | Q102: 0
I103: =IF(G103="","",G103/총괄표!$H$4) ->  | P103: =(총괄표!$H$3-'2.(1)유사용역(실적_배수지, 가압장, 정수장)'!E103+1)/365 -> 112.8438356 | Q103: 0
I104: =IF(G104="","",G104/총괄표!$H$4) ->  | P104: =(총괄표!$H$3-'2.(1)유사용역(실적_배수지, 가압장, 정수장)'!E104+1)/365 -> 112.8438356 | Q104: 0
I105: =IF(G105="","",G105/총괄표!$H$4) ->  | P105: =(총괄표!$H$3-'2.(1)유사용역(실적_배수지, 가압장, 정수장)'!E105+1)/365 -> 112.8438356 | Q105: 0
I106: =IF(G106="","",G106/총괄표!$H$4) ->  | P106: =(총괄표!$H$3-'2.(1)유사용역(실적_배수지, 가압장, 정수장)'!E106+1)/365 -> 112.8438356 | Q106: 0
I107: =IF(G107="","",G107/총괄표!$H$4) ->  | P107: =(총괄표!$H$3-'2.(1)유사용역(실적_배수지, 가압장, 정수장)'!E107+1)/365 -> 112.8438356 | Q107: 0
I108: =IF(G108="","",G108/총괄표!$H$4) ->  | P108: =(총괄표!$H$3-'2.(1)유사용역(실적_배수지, 가압장, 정수장)'!E108+1)/365 -> 112.8438356 | Q108: 0
I109: =IF(G109="","",G109/총괄표!$H$4) ->  | P109: =(총괄표!$H$3-'2.(1)유사용역(실적_배수지, 가압장, 정수장)'!E109+1)/365 -> 112.8438356 | Q109: 0
I110: =IF(G110="","",G110/총괄표!$H$4) ->  | P110: =(총괄표!$H$3-'2.(1)유사용역(실적_배수지, 가압장, 정수장)'!E110+1)/365 -> 112.8438356 | Q110: 0
I111: =IF(G111="","",G111/총괄표!$H$4) ->  | P111: =(총괄표!$H$3-'2.(1)유사용역(실적_배수지, 가압장, 정수장)'!E111+1)/365 -> 112.8438356 | Q111: 0
I112: =IF(G112="","",G112/총괄표!$H$4) ->  | P112: =(총괄표!$H$3-'2.(1)유사용역(실적_배수지, 가압장, 정수장)'!E112+1)/365 -> 112.8438356 | Q112: 0
I113: =IF(G113="","",G113/총괄표!$H$4) ->  | K113: =IF(J113="","",ROUND(J113*H113*O113*Q113,2)) ->  | P113: =(총괄표!$H$3-'2.(1)유사용역(실적_배수지, 가압장, 정수장)'!E113+1)/365 -> 112.8438356 | Q113: 0
I114: =IF(G114="","",G114/총괄표!$H$4) ->  | P114: =(총괄표!$H$3-'2.(1)유사용역(실적_배수지, 가압장, 정수장)'!E114+1)/365 -> 112.8438356 | Q114: 0
I115: =IF(G115="","",G115/총괄표!$H$4) ->  | P115: =(총괄표!$H$3-'2.(1)유사용역(실적_배수지, 가압장, 정수장)'!E115+1)/365 -> 112.8438356 | Q115: 0
I116: =IF(G116="","",G116/총괄표!$H$4) ->  | P116: =(총괄표!$H$3-'2.(1)유사용역(실적_배수지, 가압장, 정수장)'!E116+1)/365 -> 112.8438356 | Q116: 0
I117: =IF(G117="","",G117/총괄표!$H$4) ->  | P117: =(총괄표!$H$3-'2.(1)유사용역(실적_배수지, 가압장, 정수장)'!E117+1)/365 -> 112.8438356 | Q117: 0
I118: =IF(G118="","",G118/총괄표!$H$4) ->  | P118: =(총괄표!$H$3-'2.(1)유사용역(실적_배수지, 가압장, 정수장)'!E118+1)/365 -> 112.8438356 | Q118: 0
I119: =IF(G119="","",G119/총괄표!$H$4) ->  | P119: =(총괄표!$H$3-'2.(1)유사용역(실적_배수지, 가압장, 정수장)'!E119+1)/365 -> 112.8438356 | Q119: 0
I120: =IF(G120="","",G120/총괄표!$H$4) ->  | P120: =(총괄표!$H$3-'2.(1)유사용역(실적_배수지, 가압장, 정수장)'!E120+1)/365 -> 112.8438356 | Q120: 0
P121: =(총괄표!$H$3-'2.(1)유사용역(실적_배수지, 가압장, 정수장)'!E121+1)/365 -> 112.8438356 | Q121: 0
P122: =(총괄표!$H$3-'2.(1)유사용역(실적_배수지, 가압장, 정수장)'!E122+1)/365 -> 112.8438356 | Q122: 0
A123: 공동도급사 | B123: =참여업체현황!B11 -> D사 | D123: 환산지분율 | G123: =참여업체현황!C11 -> 0 | P123: =(총괄표!$H$3-'2.(1)유사용역(실적_배수지, 가압장, 정수장)'!E123+1)/365 -> 112.8438356 | Q123: 0
P124: =(총괄표!$H$3-'2.(1)유사용역(실적_배수지, 가압장, 정수장)'!E124+1)/365 -> 112.8438356 | Q124: 0
A125: 구분 | B125: 용역명 | C125: 발주청 | D125: 착수일 | E125: 준공일 | F125: 기간 | G125: 실적규모 (m3, m3/일) | H125: 도급 지분율 | I125: 실적계수 | J125: 계수 | K125: 실적별건수
A126: 총 계 | C126: - | D126: - | E126: - | F126: - | G126: - | H126: - | I126: - | J126: - | K126: =SUM(K127:K156) -> 0 | P126: 최근5년간
A127: 배수지 설계 | F127: =IF(E127-D127=0,"",E127-D127) ->  | G127: 10000 | H127: 0.5 | I127: =IF(A127="배수지 설계",G127/총괄표!$H$4,G127/총괄표!$H$5) -> 0.4166666667 | J127: =IF(I127="","",(IF(I127>=200%,"2",IF(I127>=150%,"1.5",IF(I127>=100%,"1",IF(I127>=50%,"0.5",IF(I127<50%,"0"))))))) -> 0 | K127: =IF(J127="","",ROUND(J127*H127*O127*Q127,2)) -> 0 | P127: =(총괄표!$H$3-'2.(1)유사용역(실적_배수지, 가압장, 정수장)'!E127+1)/365 -> 112.8438356 | Q127: =IF(P127>5,0,1) -> 0
A128: 가압장 설계 | F128: =IF(E128-D128=0,"",E128-D128) ->  | G128: 40000 | H128: 0.7 | I128: =IF(A128="배수지 설계",G128/총괄표!$H$4,G128/총괄표!$H$5) -> 0.8511906029 | J128: 0.5 | K128: 0 | P128: =(총괄표!$H$3-'2.(1)유사용역(실적_배수지, 가압장, 정수장)'!E128+1)/365 -> 112.8438356 | Q128: =IF(P128>5,0,1) -> 0
I129: =IF(A129="배수지 설계",G129/총괄표!$H$4,G129/총괄표!$H$5) -> 0 | J129: 0 | K129: 0 | P129: =(총괄표!$H$3-'2.(1)유사용역(실적_배수지, 가압장, 정수장)'!E129+1)/365 -> 112.8438356 | Q129: 0
I130: =IF(A130="배수지 설계",G130/총괄표!$H$4,G130/총괄표!$H$5) -> 0 | J130: 0 | K130: 0 | P130: =(총괄표!$H$3-'2.(1)유사용역(실적_배수지, 가압장, 정수장)'!E130+1)/365 -> 112.8438356 | Q130: 0
I131: =IF(G131="","",G131/총괄표!$H$4) ->  | P131: =(총괄표!$H$3-'2.(1)유사용역(실적_배수지, 가압장, 정수장)'!E131+1)/365 -> 112.8438356 | Q131: 0
I132: =IF(G132="","",G132/총괄표!$H$4) ->  | P132: =(총괄표!$H$3-'2.(1)유사용역(실적_배수지, 가압장, 정수장)'!E132+1)/365 -> 112.8438356 | Q132: 0
I133: =IF(G133="","",G133/총괄표!$H$4) ->  | P133: =(총괄표!$H$3-'2.(1)유사용역(실적_배수지, 가압장, 정수장)'!E133+1)/365 -> 112.8438356 | Q133: 0
I134: =IF(G134="","",G134/총괄표!$H$4) ->  | P134: =(총괄표!$H$3-'2.(1)유사용역(실적_배수지, 가압장, 정수장)'!E134+1)/365 -> 112.8438356 | Q134: 0
I135: =IF(G135="","",G135/총괄표!$H$4) ->  | P135: =(총괄표!$H$3-'2.(1)유사용역(실적_배수지, 가압장, 정수장)'!E135+1)/365 -> 112.8438356 | Q135: 0
I136: =IF(G136="","",G136/총괄표!$H$4) ->  | P136: =(총괄표!$H$3-'2.(1)유사용역(실적_배수지, 가압장, 정수장)'!E136+1)/365 -> 112.8438356 | Q136: 0
I137: =IF(G137="","",G137/총괄표!$H$4) ->  | P137: =(총괄표!$H$3-'2.(1)유사용역(실적_배수지, 가압장, 정수장)'!E137+1)/365 -> 112.8438356 | Q137: 0
I138: =IF(G138="","",G138/총괄표!$H$4) ->  | P138: =(총괄표!$H$3-'2.(1)유사용역(실적_배수지, 가압장, 정수장)'!E138+1)/365 -> 112.8438356 | Q138: 0
I139: =IF(G139="","",G139/총괄표!$H$4) ->  | P139: =(총괄표!$H$3-'2.(1)유사용역(실적_배수지, 가압장, 정수장)'!E139+1)/365 -> 112.8438356 | Q139: 0
I140: =IF(G140="","",G140/총괄표!$H$4) ->  | P140: =(총괄표!$H$3-'2.(1)유사용역(실적_배수지, 가압장, 정수장)'!E140+1)/365 -> 112.8438356 | Q140: 0
I141: =IF(G141="","",G141/총괄표!$H$4) ->  | P141: =(총괄표!$H$3-'2.(1)유사용역(실적_배수지, 가압장, 정수장)'!E141+1)/365 -> 112.8438356 | Q141: 0
I142: =IF(G142="","",G142/총괄표!$H$4) ->  | P142: =(총괄표!$H$3-'2.(1)유사용역(실적_배수지, 가압장, 정수장)'!E142+1)/365 -> 112.8438356 | Q142: 0
I143: =IF(G143="","",G143/총괄표!$H$4) ->  | P143: =(총괄표!$H$3-'2.(1)유사용역(실적_배수지, 가압장, 정수장)'!E143+1)/365 -> 112.8438356 | Q143: 0
I144: =IF(G144="","",G144/총괄표!$H$4) ->  | P144: =(총괄표!$H$3-'2.(1)유사용역(실적_배수지, 가압장, 정수장)'!E144+1)/365 -> 112.8438356 | Q144: 0
I145: =IF(G145="","",G145/총괄표!$H$4) ->  | P145: =(총괄표!$H$3-'2.(1)유사용역(실적_배수지, 가압장, 정수장)'!E145+1)/365 -> 112.8438356 | Q145: 0
I146: =IF(G146="","",G146/총괄표!$H$4) ->  | P146: =(총괄표!$H$3-'2.(1)유사용역(실적_배수지, 가압장, 정수장)'!E146+1)/365 -> 112.8438356 | Q146: 0
I147: =IF(G147="","",G147/총괄표!$H$4) ->  | P147: =(총괄표!$H$3-'2.(1)유사용역(실적_배수지, 가압장, 정수장)'!E147+1)/365 -> 112.8438356 | Q147: 0
I148: =IF(G148="","",G148/총괄표!$H$4) ->  | P148: =(총괄표!$H$3-'2.(1)유사용역(실적_배수지, 가압장, 정수장)'!E148+1)/365 -> 112.8438356 | Q148: 0
I149: =IF(G149="","",G149/총괄표!$H$4) ->  | P149: =(총괄표!$H$3-'2.(1)유사용역(실적_배수지, 가압장, 정수장)'!E149+1)/365 -> 112.8438356 | Q149: 0
I150: =IF(G150="","",G150/총괄표!$H$4) ->  | P150: =(총괄표!$H$3-'2.(1)유사용역(실적_배수지, 가압장, 정수장)'!E150+1)/365 -> 112.8438356 | Q150: 0
I151: =IF(G151="","",G151/총괄표!$H$4) ->  | P151: =(총괄표!$H$3-'2.(1)유사용역(실적_배수지, 가압장, 정수장)'!E151+1)/365 -> 112.8438356 | Q151: 0
I152: =IF(G152="","",G152/총괄표!$H$4) ->  | P152: =(총괄표!$H$3-'2.(1)유사용역(실적_배수지, 가압장, 정수장)'!E152+1)/365 -> 112.8438356 | Q152: 0
I153: =IF(G153="","",G153/총괄표!$H$4) ->  | P153: =(총괄표!$H$3-'2.(1)유사용역(실적_배수지, 가압장, 정수장)'!E153+1)/365 -> 112.8438356 | Q153: 0
I154: =IF(G154="","",G154/총괄표!$H$4) ->  | P154: =(총괄표!$H$3-'2.(1)유사용역(실적_배수지, 가압장, 정수장)'!E154+1)/365 -> 112.8438356 | Q154: 0
I155: =IF(G155="","",G155/총괄표!$H$4) ->  | P155: =(총괄표!$H$3-'2.(1)유사용역(실적_배수지, 가압장, 정수장)'!E155+1)/365 -> 112.8438356 | Q155: 0
I156: =IF(G156="","",G156/총괄표!$H$4) ->  | P156: =(총괄표!$H$3-'2.(1)유사용역(실적_배수지, 가압장, 정수장)'!E156+1)/365 -> 112.8438356 | Q156: 0
P157: =(총괄표!$H$3-'2.(1)유사용역(실적_배수지, 가압장, 정수장)'!E157+1)/365 -> 112.8438356 | Q157: =IF(P157>5,0,1) -> 0
P158: =(총괄표!$H$3-'2.(1)유사용역(실적_배수지, 가압장, 정수장)'!E158+1)/365 -> 112.8438356 | Q158: 0
A159: 공동도급사 | B159: =참여업체현황!B13 -> E사 | D159: 환산지분율 | G159: =참여업체현황!C13 -> 0 | P159: =(총괄표!$H$3-'2.(1)유사용역(실적_배수지, 가압장, 정수장)'!E159+1)/365 -> 112.8438356 | Q159: 0
P160: =(총괄표!$H$3-'2.(1)유사용역(실적_배수지, 가압장, 정수장)'!E160+1)/365 -> 112.8438356 | Q160: 0
A161: 구분 | B161: 용역명 | C161: 발주청 | D161: 착수일 | E161: 준공일 | F161: 기간 | G161: 실적규모 (m3, m3/일) | H161: 도급 지분율 | I161: 실적계수 | J161: 계수 | K161: 실적별건수
A162: 총 계 | C162: - | D162: - | E162: - | F162: - | G162: - | H162: - | I162: - | J162: - | K162: =SUM(K163:K177) -> 0 | P162: 최근5년간
F163: =IF(E163-D163=0,"",E163-D163) ->  | I163: =IF(A163="배수지 설계",G163/총괄표!$H$4,G163/총괄표!$H$5) -> 0 | J163: =IF(I163="","",(IF(I163>=200%,"2",IF(I163>=150%,"1.5",IF(I163>=100%,"1",IF(I163>=50%,"0.5",IF(I163<50%,"0"))))))) -> 0 | K163: =IF(J163="","",ROUND(J163*H163*O163*Q163,2)) -> 0 | P163: =(총괄표!$H$3-'2.(1)유사용역(실적_배수지, 가압장, 정수장)'!E163+1)/365 -> 112.8438356 | Q163: =IF(P163>5,0,1) -> 0
F164: =IF(E164-D164=0,"",E164-D164) ->  | I164: =IF(A164="배수지 설계",G164/총괄표!$H$4,G164/총괄표!$H$5) -> 0 | J164: =IF(I164="","",(IF(I164>=200%,"2",IF(I164>=150%,"1.5",IF(I164>=100%,"1",IF(I164>=50%,"0.5",IF(I164<50%,"0"))))))) -> 0 | K164: 0 | P164: =(총괄표!$H$3-'2.(1)유사용역(실적_배수지, 가압장, 정수장)'!E164+1)/365 -> 112.8438356 | Q164: =IF(P164>5,0,1) -> 0
I165: =IF(A165="배수지 설계",G165/총괄표!$H$4,G165/총괄표!$H$5) -> 0 | J165: 0 | K165: 0 | P165: =(총괄표!$H$3-'2.(1)유사용역(실적_배수지, 가압장, 정수장)'!E165+1)/365 -> 112.8438356 | Q165: 0
I166: =IF(A166="배수지 설계",G166/총괄표!$H$4,G166/총괄표!$H$5) -> 0 | J166: 0 | K166: 0 | P166: =(총괄표!$H$3-'2.(1)유사용역(실적_배수지, 가압장, 정수장)'!E166+1)/365 -> 112.8438356 | Q166: 0
I167: =IF(G167="","",G167/총괄표!$H$4) ->  | P167: =(총괄표!$H$3-'2.(1)유사용역(실적_배수지, 가압장, 정수장)'!E167+1)/365 -> 112.8438356 | Q167: 0
I168: =IF(G168="","",G168/총괄표!$H$4) ->  | P168: =(총괄표!$H$3-'2.(1)유사용역(실적_배수지, 가압장, 정수장)'!E168+1)/365 -> 112.8438356 | Q168: 0
I169: =IF(G169="","",G169/총괄표!$H$4) ->  | P169: =(총괄표!$H$3-'2.(1)유사용역(실적_배수지, 가압장, 정수장)'!E169+1)/365 -> 112.8438356 | Q169: 0
I170: =IF(G170="","",G170/총괄표!$H$4) ->  | P170: =(총괄표!$H$3-'2.(1)유사용역(실적_배수지, 가압장, 정수장)'!E170+1)/365 -> 112.8438356 | Q170: 0
I171: =IF(G171="","",G171/총괄표!$H$4) ->  | P171: =(총괄표!$H$3-'2.(1)유사용역(실적_배수지, 가압장, 정수장)'!E171+1)/365 -> 112.8438356 | Q171: 0
I172: =IF(G172="","",G172/총괄표!$H$4) ->  | P172: =(총괄표!$H$3-'2.(1)유사용역(실적_배수지, 가압장, 정수장)'!E172+1)/365 -> 112.8438356 | Q172: 0
I173: =IF(G173="","",G173/총괄표!$H$4) ->  | P173: =(총괄표!$H$3-'2.(1)유사용역(실적_배수지, 가압장, 정수장)'!E173+1)/365 -> 112.8438356 | Q173: 0
I174: =IF(G174="","",G174/총괄표!$H$4) ->  | P174: =(총괄표!$H$3-'2.(1)유사용역(실적_배수지, 가압장, 정수장)'!E174+1)/365 -> 112.8438356 | Q174: 0
I175: =IF(G175="","",G175/총괄표!$H$4) ->  | P175: =(총괄표!$H$3-'2.(1)유사용역(실적_배수지, 가압장, 정수장)'!E175+1)/365 -> 112.8438356 | Q175: 0
I176: =IF(G176="","",G176/총괄표!$H$4) ->  | P176: =(총괄표!$H$3-'2.(1)유사용역(실적_배수지, 가압장, 정수장)'!E176+1)/365 -> 112.8438356 | Q176: 0
I177: =IF(G177="","",G177/총괄표!$H$4) ->  | P177: =(총괄표!$H$3-'2.(1)유사용역(실적_배수지, 가압장, 정수장)'!E177+1)/365 -> 112.8438356 | Q177: 0
I178: =IF(G178="","",G178/총괄표!$H$4) ->  | P178: =(총괄표!$H$3-'2.(1)유사용역(실적_배수지, 가압장, 정수장)'!E178+1)/365 -> 112.8438356 | Q178: 0
I179: =IF(G179="","",G179/총괄표!$H$4) ->  | P179: =(총괄표!$H$3-'2.(1)유사용역(실적_배수지, 가압장, 정수장)'!E179+1)/365 -> 112.8438356 | Q179: 0
I180: =IF(G180="","",G180/총괄표!$H$4) ->  | P180: =(총괄표!$H$3-'2.(1)유사용역(실적_배수지, 가압장, 정수장)'!E180+1)/365 -> 112.8438356 | Q180: 0
I181: =IF(G181="","",G181/총괄표!$H$4) ->  | P181: =(총괄표!$H$3-'2.(1)유사용역(실적_배수지, 가압장, 정수장)'!E181+1)/365 -> 112.8438356 | Q181: 0
I182: =IF(G182="","",G182/총괄표!$H$4) ->  | P182: =(총괄표!$H$3-'2.(1)유사용역(실적_배수지, 가압장, 정수장)'!E182+1)/365 -> 112.8438356 | Q182: 0
I183: =IF(G183="","",G183/총괄표!$H$4) ->  | P183: =(총괄표!$H$3-'2.(1)유사용역(실적_배수지, 가압장, 정수장)'!E183+1)/365 -> 112.8438356 | Q183: 0
I184: =IF(G184="","",G184/총괄표!$H$4) ->  | P184: =(총괄표!$H$3-'2.(1)유사용역(실적_배수지, 가압장, 정수장)'!E184+1)/365 -> 112.8438356 | Q184: 0
I185: =IF(G185="","",G185/총괄표!$H$4) ->  | P185: =(총괄표!$H$3-'2.(1)유사용역(실적_배수지, 가압장, 정수장)'!E185+1)/365 -> 112.8438356 | Q185: 0
I186: =IF(G186="","",G186/총괄표!$H$4) ->  | P186: =(총괄표!$H$3-'2.(1)유사용역(실적_배수지, 가압장, 정수장)'!E186+1)/365 -> 112.8438356 | Q186: 0
I187: =IF(G187="","",G187/총괄표!$H$4) ->  | P187: =(총괄표!$H$3-'2.(1)유사용역(실적_배수지, 가압장, 정수장)'!E187+1)/365 -> 112.8438356 | Q187: 0
I188: =IF(G188="","",G188/총괄표!$H$4) ->  | P188: =(총괄표!$H$3-'2.(1)유사용역(실적_배수지, 가압장, 정수장)'!E188+1)/365 -> 112.8438356 | Q188: 0
I189: =IF(G189="","",G189/총괄표!$H$4) ->  | P189: =(총괄표!$H$3-'2.(1)유사용역(실적_배수지, 가압장, 정수장)'!E189+1)/365 -> 112.8438356 | Q189: 0
I190: =IF(G190="","",G190/총괄표!$H$4) ->  | P190: =(총괄표!$H$3-'2.(1)유사용역(실적_배수지, 가압장, 정수장)'!E190+1)/365 -> 112.8438356 | Q190: 0
I191: =IF(G191="","",G191/총괄표!$H$4) ->  | P191: =(총괄표!$H$3-'2.(1)유사용역(실적_배수지, 가압장, 정수장)'!E191+1)/365 -> 112.8438356 | Q191: 0
I192: =IF(G192="","",G192/총괄표!$H$4) ->  | P192: =(총괄표!$H$3-'2.(1)유사용역(실적_배수지, 가압장, 정수장)'!E192+1)/365 -> 112.8438356 | Q192: 0

Sheet 2.(2)유사용역(금액)
A2: 2. 유사용역수행실적(금액)
A4: 유사용역 총괄표
A6: 유사용역수행실적 | C6: 지분율 | D6: 실적별건수 | E6: 실적점수
E7: 배점 | F7: 자기평가 | G7: 확인
A8: 총 계 | C8: - | D8: =ROUND(D9*C9+D10*C10+D11*C11+C12*D12+C13*D13,2) -> 2.51 | E8: 7 | F8: =IF(D8>=250%,7,IF(D8>=200%,6.3,IF(D8>=150%,5.6,IF(D8>=100%,4.9,IF(D8<100%,4.2))))) -> 7
A9: =A15 -> 대 표 사 | B9: =참여업체현황!B5 -> A사 | C9: =참여업체현황!C5 -> 0.5 | D9: =J18 -> 1.92 | E9: - | F9: - | G9: -
A10: 공동도급사 | B10: =참여업체현황!B7 -> B사 | C10: =참여업체현황!C7 -> 0.3 | D10: =J54 -> 3.32 | E10: - | F10: - | G10: -
A11: 공동도급사 | B11: =참여업체현황!B9 -> C사 | C11: =참여업체현황!C9 -> 0.2 | D11: =J90 -> 2.79 | E11: - | F11: - | G11: - | N11: 배수지 설계
A12: 공동도급사 | B12: =참여업체현황!B11 -> D사 | C12: =참여업체현황!C11 -> 0 | D12: =J126 -> 0 | E12: - | F12: - | G12: - | N12: 가압장 설계
A13: 공동도급사 | B13: =참여업체현황!B13 -> E사 | C13: =참여업체현황!C13 -> 0 | D13: =J162 -> 0 | E13: - | F13: - | G13: - | N13: 정수장 설계
N14: 기타
A15: 대 표 사 | B15: =참여업체현황!B5 -> A사 | D15: 환산지분율 | G15: =참여업체현황!$C$5 -> 0.5
A17: 구분 | B17: 용역명 | C17: 발주청 | D17: 착수일 | E17: 준공일 | F17: 기간 | G17: 과업금액 (원) | H17: 도급 지분율 | I17: 실적계수 | J17: 실적별건수
A18: 총 계 | C18: - | D18: - | E18: - | F18: - | G18: - | H18: - | I18: - | J18: =SUM(J19:J48) -> 1.92 | O18: 최근5년간
A19: 배수지 설계 | C19: 00공사 | D19: 2006-03-20 | E19: 2008-05-20 | F19: =IF(E19-D19=0,"",E19-D19) -> 792 | G19: 200000000 | H19: 1 | I19: =IF(G19="","",G19/총괄표!$E$4) -> 0.3491614016 | J19: =IF(I19="","",ROUND(I19*H19*P19,2)) -> 0.35 | O19: =(총괄표!$H$3-'2.(2)유사용역(금액)'!E19+1)/365 -> 4.383561644 | P19: =IF(O19>5,0,1) -> 1
A20: 가압장 설계 | C20: 00공사 | D20: 1999-10-10 | E20: 2000-10-09 | F20: =IF(E20-D20=0,"",E20-D20) -> 365 | G20: 400000000 | H20: 0.6 | I20: =IF(G20="","",G20/총괄표!$E$4) -> 0.6983228032 | J20: =IF(I20="","",ROUND(I20*H20*P20,2)) -> 0 | O20: =(총괄표!$H$3-'2.(2)유사용역(금액)'!E20+1)/365 -> 12 | P20: =IF(O20>5,0,1) -> 0
A21: 정수장 설계 | C21: 00시 | D21: 2007-10-10 | E21: 2008-10-09 | F21: 365 | G21: 1000000000 | H21: 0.9 | I21: =IF(G21="","",G21/총괄표!$E$4) -> 1.745807008 | J21: 1.57 | O21: =(총괄표!$H$3-'2.(2)유사용역(금액)'!E21+1)/365 -> 3.994520548 | P21: 1
I22: =IF(G22="","",G22/총괄표!$E$4) ->  | O22: =(총괄표!$H$3-'2.(2)유사용역(금액)'!E22+1)/365 -> 112.8438356 | P22: 0
I23: =IF(G23="","",G23/총괄표!$E$4) ->  | O23: =(총괄표!$H$3-'2.(2)유사용역(금액)'!E23+1)/365 -> 112.8438356 | P23: 0
I24: =IF(G24="","",G24/총괄표!$E$4) ->  | O24: =(총괄표!$H$3-'2.(2)유사용역(금액)'!E24+1)/365 -> 112.8438356 | P24: 0
I25: =IF(G25="","",G25/총괄표!$E$4) ->  | O25: =(총괄표!$H$3-'2.(2)유사용역(금액)'!E25+1)/365 -> 112.8438356 | P25: 0
I26: =IF(G26="","",G26/총괄표!$E$4) ->  | O26: =(총괄표!$H$3-'2.(2)유사용역(금액)'!E26+1)/365 -> 112.8438356 | P26: 0
I27: =IF(G27="","",G27/총괄표!$E$4) ->  | O27: =(총괄표!$H$3-'2.(2)유사용역(금액)'!E27+1)/365 -> 112.8438356 | P27: 0
I28: =IF(G28="","",G28/총괄표!$E$4) ->  | O28: =(총괄표!$H$3-'2.(2)유사용역(금액)'!E28+1)/365 -> 112.8438356 | P28: 0
I29: =IF(G29="","",G29/총괄표!$E$4) ->  | O29: =(총괄표!$H$3-'2.(2)유사용역(금액)'!E29+1)/365 -> 112.8438356 | P29: 0
I30: =IF(G30="","",G30/총괄표!$E$4) ->  | O30: =(총괄표!$H$3-'2.(2)유사용역(금액)'!E30+1)/365 -> 112.8438356 | P30: 0
I31: =IF(G31="","",G31/총괄표!$E$4) ->  | O31: =(총괄표!$H$3-'2.(2)유사용역(금액)'!E31+1)/365 -> 112.8438356 | P31: 0
I32: =IF(G32="","",G32/총괄표!$E$4) ->  | O32: =(총괄표!$H$3-'2.(2)유사용역(금액)'!E32+1)/365 -> 112.8438356 | P32: 0
I33: =IF(G33="","",G33/총괄표!$E$4) ->  | O33: =(총괄표!$H$3-'2.(2)유사용역(금액)'!E33+1)/365 -> 112.8438356 | P33: 0
I34: =IF(G34="","",G34/총괄표!$E$4) ->  | O34: =(총괄표!$H$3-'2.(2)유사용역(금액)'!E34+1)/365 -> 112.8438356 | P34: 0
I35: =IF(G35="","",G35/총괄표!$E$4) ->  | O35: =(총괄표!$H$3-'2.(2)유사용역(금액)'!E35+1)/365 -> 112.8438356 | P35: 0
I36: =IF(G36="","",G36/총괄표!$E$4) ->  | O36: =(총괄표!$H$3-'2.(2)유사용역(금액)'!E36+1)/365 -> 112.8438356 | P36: 0
I37: =IF(G37="","",G37/총괄표!$E$4) ->  | O37: =(총괄표!$H$3-'2.(2)유사용역(금액)'!E37+1)/365 -> 112.8438356 | P37: 0
I38: =IF(G38="","",G38/총괄표!$E$4) ->  | O38: =(총괄표!$H$3-'2.(2)유사용역(금액)'!E38+1)/365 -> 112.8438356 | P38: 0
I39: =IF(G39="","",G39/총괄표!$E$4) ->  | O39: =(총괄표!$H$3-'2.(2)유사용역(금액)'!E39+1)/365 -> 112.8438356 | P39: 0
I40: =IF(G40="","",G40/총괄표!$E$4) ->  | O40: =(총괄표!$H$3-'2.(2)유사용역(금액)'!E40+1)/365 -> 112.8438356 | P40: 0
I41: =IF(G41="","",G41/총괄표!$E$4) ->  | O41: =(총괄표!$H$3-'2.(2)유사용역(금액)'!E41+1)/365 -> 112.8438356 | P41: 0
I42: =IF(G42="","",G42/총괄표!$E$4) ->  | O42: =(총괄표!$H$3-'2.(2)유사용역(금액)'!E42+1)/365 -> 112.8438356 | P42: 0
I43: =IF(G43="","",G43/총괄표!$E$4) ->  | O43: =(총괄표!$H$3-'2.(2)유사용역(금액)'!E43+1)/365 -> 112.8438356 | P43: 0
I44: =IF(G44="","",G44/총괄표!$E$4) ->  | O44: =(총괄표!$H$3-'2.(2)유사용역(금액)'!E44+1)/365 -> 112.8438356 | P44: 0
I45: =IF(G45="","",G45/총괄표!$E$4) ->  | O45: =(총괄표!$H$3-'2.(2)유사용역(금액)'!E45+1)/365 -> 112.8438356 | P45: 0
I46: =IF(G46="","",G46/총괄표!$E$4) ->  | O46: =(총괄표!$H$3-'2.(2)유사용역(금액)'!E46+1)/365 -> 112.8438356 | P46: 0
I47: =IF(G47="","",G47/총괄표!$E$4) ->  | O47: =(총괄표!$H$3-'2.(2)유사용역(금액)'!E47+1)/365 -> 112.8438356 | P47: 0
I48: =IF(G48="","",G48/총괄표!$E$4) ->  | O48: =(총괄표!$H$3-'2.(2)유사용역(금액)'!E48+1)/365 -> 112.8438356 | P48: 0
O49: =(총괄표!$H$3-'2.(2)유사용역(금액)'!E49+1)/365 -> 112.8438356 | P49: 0
O50: =(총괄표!$H$3-'2.(2)유사용역(금액)'!E50+1)/365 -> 112.8438356 | P50: 0
A51: 공동도급사 | B51: =참여업체현황!B7 -> B사 | D51: 환산지분율 | G51: =참여업체현황!$C$7 -> 0.3 | O51: =(총괄표!$H$3-'2.(2)유사용역(금액)'!E51+1)/365 -> 112.8438356 | P51: 0
O52: =(총괄표!$H$3-'2.(2)유사용역(금액)'!E52+1)/365 -> 112.8438356 | P52: 0
A53: 구분 | B53: 용역명 | C53: 발주청 | D53: 착수일 | E53: 준공일 | F53: 기간 | G53: 과업금액 (원) | H53: 도급 지분율 | I53: 실적계수 | J53: 실적별건수
A54: 총 계 | C54: - | D54: - | E54: - | F54: - | G54: - | H54: - | I54: - | J54: =SUM(J55:J84) -> 3.32 | O54: 최근5년간
A55: 배수지 설계 | C55: 00공사 | D55: 2006-03-20 | E55: 2008-05-20 | F55: =IF(E55-D55=0,"",E55-D55) -> 792 | G55: 1000000000 | H55: 1 | I55: =IF(G55="","",G55/총괄표!$E$4) -> 1.745807008 | J55: =IF(I55="","",ROUND(I55*H55*P55,2)) -> 1.75 | O55: =(총괄표!$H$3-'2.(2)유사용역(금액)'!E55+1)/365 -> 4.383561644 | P55: =IF(O55>5,0,1) -> 1
A56: 가압장 설계 | C56: 00공사 | D56: 1999-10-10 | E56: 2000-10-09 | F56: =IF(E56-D56=0,"",E56-D56) -> 365 | G56: 400000000 | H56: 0.6 | I56: =IF(G56="","",G56/총괄표!$E$4) -> 0.6983228032 | J56: =IF(I56="","",ROUND(I56*H56*P56,2)) -> 0 | O56: =(총괄표!$H$3-'2.(2)유사용역(금액)'!E56+1)/365 -> 12 | P56: =IF(O56>5,0,1) -> 0
A57: 정수장 설계 | C57: 00시 | D57: 2007-10-10 | E57: 2008-10-09 | F57: 365 | G57: 1000000000 | H57: 0.9 | I57: =IF(G57="","",G57/총괄표!$E$4) -> 1.745807008 | J57: 1.57 | O57: =(총괄표!$H$3-'2.(2)유사용역(금액)'!E57+1)/365 -> 3.994520548 | P57: 1
I58: =IF(G58="","",G58/총괄표!$E$4) ->  | O58: =(총괄표!$H$3-'2.(2)유사용역(금액)'!E58+1)/365 -> 112.8438356 | P58: 0
I59: =IF(G59="","",G59/총괄표!$E$4) ->  | O59: =(총괄표!$H$3-'2.(2)유사용역(금액)'!E59+1)/365 -> 112.8438356 | P59: 0
I60: =IF(G60="","",G60/총괄표!$E$4) ->  | O60: =(총괄표!$H$3-'2.(2)유사용역(금액)'!E60+1)/365 -> 112.8438356 | P60: 0
I61: =IF(G61="","",G61/총괄표!$E$4) ->  | O61: =(총괄표!$H$3-'2.(2)유사용역(금액)'!E61+1)/365 -> 112.8438356 | P61: 0
I62: =IF(G62="","",G62/총괄표!$E$4) ->  | O62: =(총괄표!$H$3-'2.(2)유사용역(금액)'!E62+1)/365 -> 112.8438356 | P62: 0
I63: =IF(G63="","",G63/총괄표!$E$4) ->  | O63: =(총괄표!$H$3-'2.(2)유사용역(금액)'!E63+1)/365 -> 112.8438356 | P63: 0
I64: =IF(G64="","",G64/총괄표!$E$4) ->  | O64: =(총괄표!$H$3-'2.(2)유사용역(금액)'!E64+1)/365 -> 112.8438356 | P64: 0
I65: =IF(G65="","",G65/총괄표!$E$4) ->  | O65: =(총괄표!$H$3-'2.(2)유사용역(금액)'!E65+1)/365 -> 112.8438356 | P65: 0
I66: =IF(G66="","",G66/총괄표!$E$4) ->  | O66: =(총괄표!$H$3-'2.(2)유사용역(금액)'!E66+1)/365 -> 112.8438356 | P66: 0
I67: =IF(G67="","",G67/총괄표!$E$4) ->  | O67: =(총괄표!$H$3-'2.(2)유사용역(금액)'!E67+1)/365 -> 112.8438356 | P67: 0
I68: =IF(G68="","",G68/총괄표!$E$4) ->  | O68: =(총괄표!$H$3-'2.(2)유사용역(금액)'!E68+1)/365 -> 112.8438356 | P68: 0
I69: =IF(G69="","",G69/총괄표!$E$4) ->  | O69: =(총괄표!$H$3-'2.(2)유사용역(금액)'!E69+1)/365 -> 112.8438356 | P69: 0
I70: =IF(G70="","",G70/총괄표!$E$4) ->  | O70: =(총괄표!$H$3-'2.(2)유사용역(금액)'!E70+1)/365 -> 112.8438356 | P70: 0
I71: =IF(G71="","",G71/총괄표!$E$4) ->  | O71: =(총괄표!$H$3-'2.(2)유사용역(금액)'!E71+1)/365 -> 112.8438356 | P71: 0
I72: =IF(G72="","",G72/총괄표!$E$4) ->  | O72: =(총괄표!$H$3-'2.(2)유사용역(금액)'!E72+1)/365 -> 112.8438356 | P72: 0
I73: =IF(G73="","",G73/총괄표!$E$4) ->  | O73: =(총괄표!$H$3-'2.(2)유사용역(금액)'!E73+1)/365 -> 112.8438356 | P73: 0
I74: =IF(G74="","",G74/총괄표!$E$4) ->  | O74: =(총괄표!$H$3-'2.(2)유사용역(금액)'!E74+1)/365 -> 112.8438356 | P74: 0
I75: =IF(G75="","",G75/총괄표!$E$4) ->  | O75: =(총괄표!$H$3-'2.(2)유사용역(금액)'!E75+1)/365 -> 112.8438356 | P75: 0
I76: =IF(G76="","",G76/총괄표!$E$4) ->  | O76: =(총괄표!$H$3-'2.(2)유사용역(금액)'!E76+1)/365 -> 112.8438356 | P76: 0
I77: =IF(G77="","",G77/총괄표!$E$4) ->  | O77: =(총괄표!$H$3-'2.(2)유사용역(금액)'!E77+1)/365 -> 112.8438356 | P77: 0
I78: =IF(G78="","",G78/총괄표!$E$4) ->  | O78: =(총괄표!$H$3-'2.(2)유사용역(금액)'!E78+1)/365 -> 112.8438356 | P78: 0
I79: =IF(G79="","",G79/총괄표!$E$4) ->  | O79: =(총괄표!$H$3-'2.(2)유사용역(금액)'!E79+1)/365 -> 112.8438356 | P79: 0
I80: =IF(G80="","",G80/총괄표!$E$4) ->  | O80: =(총괄표!$H$3-'2.(2)유사용역(금액)'!E80+1)/365 -> 112.8438356 | P80: 0
I81: =IF(G81="","",G81/총괄표!$E$4) ->  | O81: =(총괄표!$H$3-'2.(2)유사용역(금액)'!E81+1)/365 -> 112.8438356 | P81: 0
I82: =IF(G82="","",G82/총괄표!$E$4) ->  | O82: =(총괄표!$H$3-'2.(2)유사용역(금액)'!E82+1)/365 -> 112.8438356 | P82: 0
I83: =IF(G83="","",G83/총괄표!$E$4) ->  | O83: =(총괄표!$H$3-'2.(2)유사용역(금액)'!E83+1)/365 -> 112.8438356 | P83: 0
I84: =IF(G84="","",G84/총괄표!$E$4) ->  | O84: =(총괄표!$H$3-'2.(2)유사용역(금액)'!E84+1)/365 -> 112.8438356 | P84: 0
O85: =(총괄표!$H$3-'2.(2)유사용역(금액)'!E85+1)/365 -> 112.8438356 | P85: 0
O86: =(총괄표!$H$3-'2.(2)유사용역(금액)'!E86+1)/365 -> 112.8438356 | P86: 0
A87: 공동도급사 | B87: =참여업체현황!B9 -> C사 | D87: 환산지분율 | G87: =참여업체현황!C9 -> 0.2 | O87: =(총괄표!$H$3-'2.(2)유사용역(금액)'!E87+1)/365 -> 112.8438356 | P87: 0
O88: =(총괄표!$H$3-'2.(2)유사용역(금액)'!E88+1)/365 -> 112.8438356 | P88: 0
A89: 구분 | B89: 용역명 | C89: 발주청 | D89: 착수일 | E89: 준공일 | F89: 기간 | G89: 과업금액 (원) | H89: 도급 지분율 | I89: 실적계수 | J89: 실적별건수
A90: 총 계 | C90: - | D90: - | E90: - | F90: - | H90: - | I90: - | J90: =SUM(J91:J120) -> 2.79 | O90: 최근5년간
A91: 배수지 설계 | C91: 00공사 | D91: 2006-03-20 | E91: 2008-05-20 | F91: =IF(E91-D91=0,"",E91-D91) -> 792 | G91: 700000000 | H91: 1 | I91: =IF(G91="","",G91/총괄표!$E$4) -> 1.222064906 | J91: =IF(I91="","",ROUND(I91*H91*P91,2)) -> 1.22 | O91: =(총괄표!$H$3-'2.(2)유사용역(금액)'!E91+1)/365 -> 4.383561644 | P91: =IF(O91>5,0,1) -> 1
A92: 가압장 설계 | C92: 00공사 | D92: 1999-10-10 | E92: 2000-10-09 | F92: =IF(E92-D92=0,"",E92-D92) -> 365 | G92: 400000000 | H92: 0.6 | I92: =IF(G92="","",G92/총괄표!$E$4) -> 0.6983228032 | J92: =IF(I92="","",ROUND(I92*H92*P92,2)) -> 0 | O92: =(총괄표!$H$3-'2.(2)유사용역(금액)'!E92+1)/365 -> 12 | P92: =IF(O92>5,0,1) -> 0
A93: 정수장 설계 | C93: 00시 | D93: 2007-10-10 | E93: 2008-10-09 | F93: 365 | G93: 1000000000 | H93: 0.9 | I93: =IF(G93="","",G93/총괄표!$E$4) -> 1.745807008 | J93: 1.57 | O93: =(총괄표!$H$3-'2.(2)유사용역(금액)'!E93+1)/365 -> 3.994520548 | P93: 1
I94: =IF(G94="","",G94/총괄표!$E$4) ->  | O94: =(총괄표!$H$3-'2.(2)유사용역(금액)'!E94+1)/365 -> 112.8438356 | P94: 0
I95: =IF(G95="","",G95/총괄표!$E$4) ->  | O95: =(총괄표!$H$3-'2.(2)유사용역(금액)'!E95+1)/365 -> 112.8438356 | P95: 0
I96: =IF(G96="","",G96/총괄표!$E$4) ->  | O96: =(총괄표!$H$3-'2.(2)유사용역(금액)'!E96+1)/365 -> 112.8438356 | P96: 0
I97: =IF(G97="","",G97/총괄표!$E$4) ->  | O97: =(총괄표!$H$3-'2.(2)유사용역(금액)'!E97+1)/365 -> 112.8438356 | P97: 0
I98: =IF(G98="","",G98/총괄표!$E$4) ->  | O98: =(총괄표!$H$3-'2.(2)유사용역(금액)'!E98+1)/365 -> 112.8438356 | P98: 0
I99: =IF(G99="","",G99/총괄표!$E$4) ->  | O99: =(총괄표!$H$3-'2.(2)유사용역(금액)'!E99+1)/365 -> 112.8438356 | P99: 0
I100: =IF(G100="","",G100/총괄표!$E$4) ->  | O100: =(총괄표!$H$3-'2.(2)유사용역(금액)'!E100+1)/365 -> 112.8438356 | P100: 0
I101: =IF(G101="","",G101/총괄표!$E$4) ->  | O101: =(총괄표!$H$3-'2.(2)유사용역(금액)'!E101+1)/365 -> 112.8438356 | P101: 0
I102: =IF(G102="","",G102/총괄표!$E$4) ->  | O102: =(총괄표!$H$3-'2.(2)유사용역(금액)'!E102+1)/365 -> 112.8438356 | P102: 0
I103: =IF(G103="","",G103/총괄표!$E$4) ->  | O103: =(총괄표!$H$3-'2.(2)유사용역(금액)'!E103+1)/365 -> 112.8438356 | P103: 0
I104: =IF(G104="","",G104/총괄표!$E$4) ->  | O104: =(총괄표!$H$3-'2.(2)유사용역(금액)'!E104+1)/365 -> 112.8438356 | P104: 0
I105: =IF(G105="","",G105/총괄표!$E$4) ->  | O105: =(총괄표!$H$3-'2.(2)유사용역(금액)'!E105+1)/365 -> 112.8438356 | P105: 0
I106: =IF(G106="","",G106/총괄표!$E$4) ->  | O106: =(총괄표!$H$3-'2.(2)유사용역(금액)'!E106+1)/365 -> 112.8438356 | P106: 0
I107: =IF(G107="","",G107/총괄표!$E$4) ->  | O107: =(총괄표!$H$3-'2.(2)유사용역(금액)'!E107+1)/365 -> 112.8438356 | P107: 0
I108: =IF(G108="","",G108/총괄표!$E$4) ->  | O108: =(총괄표!$H$3-'2.(2)유사용역(금액)'!E108+1)/365 -> 112.8438356 | P108: 0
I109: =IF(G109="","",G109/총괄표!$E$4) ->  | O109: =(총괄표!$H$3-'2.(2)유사용역(금액)'!E109+1)/365 -> 112.8438356 | P109: 0
I110: =IF(G110="","",G110/총괄표!$E$4) ->  | O110: =(총괄표!$H$3-'2.(2)유사용역(금액)'!E110+1)/365 -> 112.8438356 | P110: 0
I111: =IF(G111="","",G111/총괄표!$E$4) ->  | O111: =(총괄표!$H$3-'2.(2)유사용역(금액)'!E111+1)/365 -> 112.8438356 | P111: 0
I112: =IF(G112="","",G112/총괄표!$E$4) ->  | O112: =(총괄표!$H$3-'2.(2)유사용역(금액)'!E112+1)/365 -> 112.8438356 | P112: 0
I113: =IF(G113="","",G113/총괄표!$E$4) ->  | O113: =(총괄표!$H$3-'2.(2)유사용역(금액)'!E113+1)/365 -> 112.8438356 | P113: 0
I114: =IF(G114="","",G114/총괄표!$E$4) ->  | O114: =(총괄표!$H$3-'2.(2)유사용역(금액)'!E114+1)/365 -> 112.8438356 | P114: 0
I115: =IF(G115="","",G115/총괄표!$E$4) ->  | O115: =(총괄표!$H$3-'2.(2)유사용역(금액)'!E115+1)/365 -> 112.8438356 | P115: 0
I116: =IF(G116="","",G116/총괄표!$E$4) ->  | O116: =(총괄표!$H$3-'2.(2)유사용역(금액)'!E116+1)/365 -> 112.8438356 | P116: 0
I117: =IF(G117="","",G117/총괄표!$E$4) ->  | O117: =(총괄표!$H$3-'2.(2)유사용역(금액)'!E117+1)/365 -> 112.8438356 | P117: 0
I118: =IF(G118="","",G118/총괄표!$E$4) ->  | O118: =(총괄표!$H$3-'2.(2)유사용역(금액)'!E118+1)/365 -> 112.8438356 | P118: 0
I119: =IF(G119="","",G119/총괄표!$E$4) ->  | O119: =(총괄표!$H$3-'2.(2)유사용역(금액)'!E119+1)/365 -> 112.8438356 | P119: 0
I120: =IF(G120="","",G120/총괄표!$E$4) ->  | O120: =(총괄표!$H$3-'2.(2)유사용역(금액)'!E120+1)/365 -> 112.8438356 | P120: 0
O121: =(총괄표!$H$3-'2.(2)유사용역(금액)'!E121+1)/365 -> 112.8438356 | P121: 0
O122: =(총괄표!$H$3-'2.(2)유사용역(금액)'!E122+1)/365 -> 112.8438356 | P122: 0
A123: 공동도급사 | B123: =참여업체현황!B11 -> D사 | D123: 환산지분율 | G123: =참여업체현황!C11 -> 0 | O123: =(총괄표!$H$3-'2.(2)유사용역(금액)'!E123+1)/365 -> 112.8438356 | P123: 0
O124: =(총괄표!$H$3-'2.(2)유사용역(금액)'!E124+1)/365 -> 112.8438356 | P124: 0
A125: 구분 | B125: 용역명 | C125: 발주청 | D125: 착수일 | E125: 준공일 | F125: 기간 | G125: 과업금액 (원) | H125: 도급 지분율 | I125: 실적계수 | J125: 실적별건수
A126: 총 계 | C126: - | D126: - | E126: - | F126: - | G126: - | H126: - | I126: - | J126: =SUM(J127:J156) -> 0 | O126: 최근5년간
F127: =IF(E127-D127=0,"",E127-D127) ->  | I127: =IF(G127="","",G127/총괄표!$E$4) ->  | J127: =IF(I127="","",ROUND(I127*H127*P127,2)) ->  | O127: =(총괄표!$H$3-'2.(2)유사용역(금액)'!E127+1)/365 -> 112.8438356 | P127: =IF(O127>5,0,1) -> 0
F128: =IF(E128-D128=0,"",E128-D128) ->  | I128: =IF(G128="","",G128/총괄표!$E$4) ->  | J128: =IF(I128="","",ROUND(I128*H128*P128,2)) ->  | O128: =(총괄표!$H$3-'2.(2)유사용역(금액)'!E128+1)/365 -> 112.8438356 | P128: =IF(O128>5,0,1) -> 0
I129: =IF(G129="","",G129/총괄표!$E$4) ->  | O129: =(총괄표!$H$3-'2.(2)유사용역(금액)'!E129+1)/365 -> 112.8438356 | P129: 0
I130: =IF(G130="","",G130/총괄표!$E$4) ->  | O130: =(총괄표!$H$3-'2.(2)유사용역(금액)'!E130+1)/365 -> 112.8438356 | P130: 0
I131: =IF(G131="","",G131/총괄표!$E$4) ->  | O131: =(총괄표!$H$3-'2.(2)유사용역(금액)'!E131+1)/365 -> 112.8438356 | P131: 0
I132: =IF(G132="","",G132/총괄표!$E$4) ->  | O132: =(총괄표!$H$3-'2.(2)유사용역(금액)'!E132+1)/365 -> 112.8438356 | P132: 0
I133: =IF(G133="","",G133/총괄표!$E$4) ->  | O133: =(총괄표!$H$3-'2.(2)유사용역(금액)'!E133+1)/365 -> 112.8438356 | P133: 0
I134: =IF(G134="","",G134/총괄표!$E$4) ->  | O134: =(총괄표!$H$3-'2.(2)유사용역(금액)'!E134+1)/365 -> 112.8438356 | P134: 0
I135: =IF(G135="","",G135/총괄표!$E$4) ->  | O135: =(총괄표!$H$3-'2.(2)유사용역(금액)'!E135+1)/365 -> 112.8438356 | P135: 0
I136: =IF(G136="","",G136/총괄표!$E$4) ->  | O136: =(총괄표!$H$3-'2.(2)유사용역(금액)'!E136+1)/365 -> 112.8438356 | P136: 0
I137: =IF(G137="","",G137/총괄표!$E$4) ->  | O137: =(총괄표!$H$3-'2.(2)유사용역(금액)'!E137+1)/365 -> 112.8438356 | P137: 0
I138: =IF(G138="","",G138/총괄표!$E$4) ->  | O138: =(총괄표!$H$3-'2.(2)유사용역(금액)'!E138+1)/365 -> 112.8438356 | P138: 0
I139: =IF(G139="","",G139/총괄표!$E$4) ->  | O139: =(총괄표!$H$3-'2.(2)유사용역(금액)'!E139+1)/365 -> 112.8438356 | P139: 0
I140: =IF(G140="","",G140/총괄표!$E$4) ->  | O140: =(총괄표!$H$3-'2.(2)유사용역(금액)'!E140+1)/365 -> 112.8438356 | P140: 0
I141: =IF(G141="","",G141/총괄표!$E$4) ->  | O141: =(총괄표!$H$3-'2.(2)유사용역(금액)'!E141+1)/365 -> 112.8438356 | P141: 0
I142: =IF(G142="","",G142/총괄표!$E$4) ->  | O142: =(총괄표!$H$3-'2.(2)유사용역(금액)'!E142+1)/365 -> 112.8438356 | P142: 0
I143: =IF(G143="","",G143/총괄표!$E$4) ->  | O143: =(총괄표!$H$3-'2.(2)유사용역(금액)'!E143+1)/365 -> 112.8438356 | P143: 0
I144: =IF(G144="","",G144/총괄표!$E$4) ->  | O144: =(총괄표!$H$3-'2.(2)유사용역(금액)'!E144+1)/365 -> 112.8438356 | P144: 0
I145: =IF(G145="","",G145/총괄표!$E$4) ->  | O145: =(총괄표!$H$3-'2.(2)유사용역(금액)'!E145+1)/365 -> 112.8438356 | P145: 0
I146: =IF(G146="","",G146/총괄표!$E$4) ->  | O146: =(총괄표!$H$3-'2.(2)유사용역(금액)'!E146+1)/365 -> 112.8438356 | P146: 0
I147: =IF(G147="","",G147/총괄표!$E$4) ->  | O147: =(총괄표!$H$3-'2.(2)유사용역(금액)'!E147+1)/365 -> 112.8438356 | P147: 0
I148: =IF(G148="","",G148/총괄표!$E$4) ->  | O148: =(총괄표!$H$3-'2.(2)유사용역(금액)'!E148+1)/365 -> 112.8438356 | P148: 0
I149: =IF(G149="","",G149/총괄표!$E$4) ->  | O149: =(총괄표!$H$3-'2.(2)유사용역(금액)'!E149+1)/365 -> 112.8438356 | P149: 0
I150: =IF(G150="","",G150/총괄표!$E$4) ->  | O150: =(총괄표!$H$3-'2.(2)유사용역(금액)'!E150+1)/365 -> 112.8438356 | P150: 0
I151: =IF(G151="","",G151/총괄표!$E$4) ->  | O151: =(총괄표!$H$3-'2.(2)유사용역(금액)'!E151+1)/365 -> 112.8438356 | P151: 0
I152: =IF(G152="","",G152/총괄표!$E$4) ->  | O152: =(총괄표!$H$3-'2.(2)유사용역(금액)'!E152+1)/365 -> 112.8438356 | P152: 0
I153: =IF(G153="","",G153/총괄표!$E$4) ->  | O153: =(총괄표!$H$3-'2.(2)유사용역(금액)'!E153+1)/365 -> 112.8438356 | P153: 0
I154: =IF(G154="","",G154/총괄표!$E$4) ->  | O154: =(총괄표!$H$3-'2.(2)유사용역(금액)'!E154+1)/365 -> 112.8438356 | P154: 0
I155: =IF(G155="","",G155/총괄표!$E$4) ->  | O155: =(총괄표!$H$3-'2.(2)유사용역(금액)'!E155+1)/365 -> 112.8438356 | P155: 0
I156: =IF(G156="","",G156/총괄표!$E$4) ->  | O156: =(총괄표!$H$3-'2.(2)유사용역(금액)'!E156+1)/365 -> 112.8438356 | P156: 0
O157: =(총괄표!$H$3-'2.(2)유사용역(금액)'!E157+1)/365 -> 112.8438356 | P157: 0
O158: =(총괄표!$H$3-'2.(2)유사용역(금액)'!E158+1)/365 -> 112.8438356 | P158: 0
A159: 공동도급사 | B159: =참여업체현황!B13 -> E사 | D159: 환산지분율 | G159: =참여업체현황!C13 -> 0 | O159: =(총괄표!$H$3-'2.(2)유사용역(금액)'!E159+1)/365 -> 112.8438356 | P159: 0
O160: =(총괄표!$H$3-'2.(2)유사용역(금액)'!E160+1)/365 -> 112.8438356 | P160: 0
A161: 구분 | B161: 용역명 | C161: 발주청 | D161: 착수일 | E161: 준공일 | F161: 기간 | G161: 과업금액 (원) | H161: 도급 지분율 | I161: 실적계수 | J161: 실적별건수
A162: 총 계 | C162: - | D162: - | E162: - | F162: - | G162: - | H162: - | I162: - | J162: =SUM(J163:J177) -> 0 | O162: 최근5년간
F163: =IF(E163-D163=0,"",E163-D163) ->  | I163: =IF(G163="","",G163/총괄표!$E$4) ->  | J163: =IF(I163="","",ROUND(I163*H163*P163,2)) ->  | O163: =(총괄표!$H$3-'2.(2)유사용역(금액)'!E163+1)/365 -> 112.8438356 | P163: =IF(O163>5,0,1) -> 0
F164: =IF(E164-D164=0,"",E164-D164) ->  | I164: =IF(G164="","",G164/총괄표!$E$4) ->  | J164: =IF(I164="","",ROUND(I164*H164*P164,2)) ->  | O164: =(총괄표!$H$3-'2.(2)유사용역(금액)'!E164+1)/365 -> 112.8438356 | P164: =IF(O164>5,0,1) -> 0
I165: =IF(G165="","",G165/총괄표!$E$4) ->  | O165: =(총괄표!$H$3-'2.(2)유사용역(금액)'!E165+1)/365 -> 112.8438356 | P165: 0
I166: =IF(G166="","",G166/총괄표!$E$4) ->  | O166: =(총괄표!$H$3-'2.(2)유사용역(금액)'!E166+1)/365 -> 112.8438356 | P166: 0
I167: =IF(G167="","",G167/총괄표!$E$4) ->  | O167: =(총괄표!$H$3-'2.(2)유사용역(금액)'!E167+1)/365 -> 112.8438356 | P167: 0
I168: =IF(G168="","",G168/총괄표!$E$4) ->  | O168: =(총괄표!$H$3-'2.(2)유사용역(금액)'!E168+1)/365 -> 112.8438356 | P168: 0
I169: =IF(G169="","",G169/총괄표!$E$4) ->  | O169: =(총괄표!$H$3-'2.(2)유사용역(금액)'!E169+1)/365 -> 112.8438356 | P169: 0
I170: =IF(G170="","",G170/총괄표!$E$4) ->  | O170: =(총괄표!$H$3-'2.(2)유사용역(금액)'!E170+1)/365 -> 112.8438356 | P170: 0
I171: =IF(G171="","",G171/총괄표!$E$4) ->  | O171: =(총괄표!$H$3-'2.(2)유사용역(금액)'!E171+1)/365 -> 112.8438356 | P171: 0
I172: =IF(G172="","",G172/총괄표!$E$4) ->  | O172: =(총괄표!$H$3-'2.(2)유사용역(금액)'!E172+1)/365 -> 112.8438356 | P172: 0
I173: =IF(G173="","",G173/총괄표!$E$4) ->  | O173: =(총괄표!$H$3-'2.(2)유사용역(금액)'!E173+1)/365 -> 112.8438356 | P173: 0
I174: =IF(G174="","",G174/총괄표!$E$4) ->  | O174: =(총괄표!$H$3-'2.(2)유사용역(금액)'!E174+1)/365 -> 112.8438356 | P174: 0
I175: =IF(G175="","",G175/총괄표!$E$4) ->  | O175: =(총괄표!$H$3-'2.(2)유사용역(금액)'!E175+1)/365 -> 112.8438356 | P175: 0
I176: =IF(G176="","",G176/총괄표!$E$4) ->  | O176: =(총괄표!$H$3-'2.(2)유사용역(금액)'!E176+1)/365 -> 112.8438356 | P176: 0
I177: =IF(G177="","",G177/총괄표!$E$4) ->  | O177: =(총괄표!$H$3-'2.(2)유사용역(금액)'!E177+1)/365 -> 112.8438356 | P177: 0
I178: =IF(G178="","",G178/총괄표!$E$4) ->  | O178: =(총괄표!$H$3-'2.(2)유사용역(금액)'!E178+1)/365 -> 112.8438356 | P178: 0
I179: =IF(G179="","",G179/총괄표!$E$4) ->  | O179: =(총괄표!$H$3-'2.(2)유사용역(금액)'!E179+1)/365 -> 112.8438356 | P179: 0
I180: =IF(G180="","",G180/총괄표!$E$4) ->  | O180: =(총괄표!$H$3-'2.(2)유사용역(금액)'!E180+1)/365 -> 112.8438356 | P180: 0
I181: =IF(G181="","",G181/총괄표!$E$4) ->  | O181: =(총괄표!$H$3-'2.(2)유사용역(금액)'!E181+1)/365 -> 112.8438356 | P181: 0
I182: =IF(G182="","",G182/총괄표!$E$4) ->  | O182: =(총괄표!$H$3-'2.(2)유사용역(금액)'!E182+1)/365 -> 112.8438356 | P182: 0
I183: =IF(G183="","",G183/총괄표!$E$4) ->  | O183: =(총괄표!$H$3-'2.(2)유사용역(금액)'!E183+1)/365 -> 112.8438356 | P183: 0
I184: =IF(G184="","",G184/총괄표!$E$4) ->  | O184: =(총괄표!$H$3-'2.(2)유사용역(금액)'!E184+1)/365 -> 112.8438356 | P184: 0
I185: =IF(G185="","",G185/총괄표!$E$4) ->  | O185: =(총괄표!$H$3-'2.(2)유사용역(금액)'!E185+1)/365 -> 112.8438356 | P185: 0
I186: =IF(G186="","",G186/총괄표!$E$4) ->  | O186: =(총괄표!$H$3-'2.(2)유사용역(금액)'!E186+1)/365 -> 112.8438356 | P186: 0
I187: =IF(G187="","",G187/총괄표!$E$4) ->  | O187: =(총괄표!$H$3-'2.(2)유사용역(금액)'!E187+1)/365 -> 112.8438356 | P187: 0
I188: =IF(G188="","",G188/총괄표!$E$4) ->  | O188: =(총괄표!$H$3-'2.(2)유사용역(금액)'!E188+1)/365 -> 112.8438356 | P188: 0
I189: =IF(G189="","",G189/총괄표!$E$4) ->  | O189: =(총괄표!$H$3-'2.(2)유사용역(금액)'!E189+1)/365 -> 112.8438356 | P189: 0
I190: =IF(G190="","",G190/총괄표!$E$4) ->  | O190: =(총괄표!$H$3-'2.(2)유사용역(금액)'!E190+1)/365 -> 112.8438356 | P190: 0
I191: =IF(G191="","",G191/총괄표!$E$4) ->  | O191: =(총괄표!$H$3-'2.(2)유사용역(금액)'!E191+1)/365 -> 112.8438356 | P191: 0
I192: =IF(G192="","",G192/총괄표!$E$4) ->  | O192: =(총괄표!$H$3-'2.(2)유사용역(금액)'!E192+1)/365 -> 112.8438356 | P192: 0

Sheet 3.신용도
A1: 3. 신용도
A3: 신용도 총괄표
A5: 신용도 | C5: 환산지분율 | D5: 입찰참가 제한기간 | E5: 기술자격 및 업무정지기간 | F5: 참여업체 누계부실벌점 | G5: 입찰참가제한, 업무정지, 부실벌점등 | J5: 신용평가등급
G6: 배점 | H6: 자기평가 | I6: 확인 | J6: 신용평가등급 | K6: 점수
A7: 총 계 | C7: - | D7: =ROUNDUP(($C8*D8+$C9*D9+$C10*D10+$C11*D11+$C12*D12)/30,0) -> 5 | E7: =ROUNDUP(I74/30,0) -> 7 | F7: =ROUND(($C8*F8+$C9*F9+$C10*F10+$C11*F11+$C12*F12),2) -> 1.15 | G7: 7 | H7: =G7-0.2*(D7+E7)-F7-K74 -> 2.45 | J7: 3 | K7: =ROUND(($C8*K8+$C9*K9+$C10*K10+$C11*K11+$C12*K12),2) -> 3
A8: =A15 -> 대 표 사 | B8: =참여업체현황!B5 -> A사 | C8: =참여업체현황!C5 -> 0.5 | D8: =I18 -> 295 | E8: - | F8: =K18 -> 2 | G8: - | H8: - | I8: - | J8: 회사채 A-이상 | K8: =IF(J8="","",IF(J8="회사채 A-이상",3,IF(J8="회사채 BBB-이상",2.7,IF(J8="회사채 B-이상",2.4,IF(J8="회사체 CCC+이하",2.1,IF(J8="기업어음 A2-이상",3,IF(J8="기업어음 A3-이상",2.7,IF(J8="기업어음 B-이상",2.4,IF(J8="기업어음 C이하",2.1,IF(J8="기업신용 A-이상",3,IF(J8="기업신용 BBB-이상",2.7,IF(J8="기업신용 B-이상",2.4,IF(J8="기업신용 CCC+이하",2.1,IF(J8="미제출",0)))))))))))))) -> 3
A9: =A26 -> 공동도급사 | B9: =참여업체현황!B7 -> B사 | C9: =참여업체현황!C7 -> 0.3 | D9: =I29 -> 0 | E9: - | F9: =K29 -> 0.5 | G9: - | H9: - | I9: - | J9: 기업신용 A-이상 | K9: =IF(J9="","",IF(J9="회사채 A-이상",3,IF(J9="회사채 BBB-이상",2.7,IF(J9="회사채 B-이상",2.4,IF(J9="회사체 CCC+이하",2.1,IF(J9="기업어음 A2-이상",3,IF(J9="기업어음 A3+이상",2.7,IF(J9="기업어음 B-이상",2.4,IF(J9="기업어음 C이하",2.1,IF(J9="기업신용 A-이상",3,IF(J9="기업신용 BBB-이상",2.7,IF(J9="기업신용 B-이상",2.4,IF(J9="기업신용 CCC+이하",2.1,IF(J9="미제출",0)))))))))))))) -> 3
A10: =A37 -> 공동도급사 | B10: =참여업체현황!B9 -> C사 | C10: =참여업체현황!C9 -> 0.2 | D10: =I40 -> 0 | E10: - | F10: =K40 -> 0 | G10: - | H10: - | I10: - | J10: 기업신용 A-이상 | K10: =IF(J10="","",IF(J10="회사채 A-이상",3,IF(J10="회사채 BBB-이상",2.7,IF(J10="회사채 B-이상",2.4,IF(J10="회사체 CCC+이하",2.1,IF(J10="기업어음 A2-이상",3,IF(J10="기업어음 A3+이상",2.7,IF(J10="기업어음 B-이상",2.4,IF(J10="기업어음 C이하",2.1,IF(J10="기업신용 A-이상",3,IF(J10="기업신용 BBB-이상",2.7,IF(J10="기업신용 B-이상",2.4,IF(J10="기업신용 CCC+이하",2.1,IF(J10="미제출",0)))))))))))))) -> 3
A11: =A48 -> 공동도급사 | B11: =참여업체현황!B11 -> D사 | C11: =참여업체현황!C11 -> 0 | D11: =I51 -> 0 | E11: - | F11: =K51 -> 0 | J11: 기업어음 A3+이상 | K11: =IF(J11="","",IF(J11="회사채 A-이상",3,IF(J11="회사채 BBB-이상",2.7,IF(J11="회사채 B-이상",2.4,IF(J11="회사체 CCC+이하",2.1,IF(J11="기업어음 A2-이상",3,IF(J11="기업어음 A3+이상",2.7,IF(J11="기업어음 B-이상",2.4,IF(J11="기업어음 C이하",2.1,IF(J11="기업신용 A-이상",3,IF(J11="기업신용 BBB-이상",2.7,IF(J11="기업신용 B-이상",2.4,IF(J11="기업신용 CCC+이하",2.1,IF(J11="미제출",0)))))))))))))) -> 2.7
A12: =A59 -> 공동도급사 | B12: =참여업체현황!B13 -> E사 | C12: =참여업체현황!C13 -> 0 | D12: =I62 -> 0 | E12: - | F12: =K62 -> 0 | J12: 기업어음 A2-이상 | K12: 3
A15: 대 표 사 | B15: =B8 -> A사 | D15: 지분율 | G15: =C8 -> 0.5
A17: 구분 | B17: 처분명칭 | C17: 처분부과기관 | D17: 처분사유 | G17: 입찰참가 제한기간 | I17: 기간 (일) | J17: 누계평균 부실벌점 | K17: 부실점수
A18: 총 계 | C18: - | D18: - | G18: 시작일 | H18: 종료일 | I18: =SUM(I19:I23) -> 295 | J18: 10 | K18: =IF(J18>=20,5,IF(J18>=15,3,IF(J18>=10,2,IF(J18>=5,1,IF(J18>=2,0.5,IF(J18>=1,0.2,IF(J18<1,0))))))) -> 2
A19: 입찰참가 제한처분현황 | B19: 00공사설계건 | C19: 00공사 | D19: 000건에 대한 0000 처분 | G19: 2010-05-03 | H19: 2012-05-03 | I19: =IF(총괄표!$H$3-'3.신용도'!H19>365,"",IF(총괄표!$H$3-'3.신용도'!G19>365,'3.신용도'!H19-총괄표!$H$3+366,IF(총괄표!$H$3-'3.신용도'!G19<=365,'3.신용도'!H19-'3.신용도'!G19+1))) -> 211 | J19: - | K19: -
B20: 000000건 | C20: 00도시공사 | D20: 00000000건 관련 처분 | G20: 2010-07-29 | H20: 2011-12-28 | I20: =IF(총괄표!$H$3-'3.신용도'!H20>365,"",IF(총괄표!$H$3-'3.신용도'!G20>365,'3.신용도'!H20-총괄표!$H$3+366,IF(총괄표!$H$3-'3.신용도'!G20<=365,'3.신용도'!H20-'3.신용도'!G20+1))) -> 84 | J20: - | K20: -
I21: =IF(총괄표!$H$3-'3.신용도'!H21>365,"",IF(총괄표!$H$3-'3.신용도'!G21>365,'3.신용도'!H21-총괄표!$H$3+366,IF(총괄표!$H$3-'3.신용도'!G21<=365,'3.신용도'!H21-'3.신용도'!G21+1))) ->  | J21: - | K21: -
I22: =IF(총괄표!$H$3-'3.신용도'!H22>365,"",IF(총괄표!$H$3-'3.신용도'!G22>365,'3.신용도'!H22-총괄표!$H$3+366,IF(총괄표!$H$3-'3.신용도'!G22<=365,'3.신용도'!H22-'3.신용도'!G22+1))) ->  | J22: - | K22: -
I23: =IF(총괄표!$H$3-'3.신용도'!H23>365,"",IF(총괄표!$H$3-'3.신용도'!G23>365,'3.신용도'!H23-총괄표!$H$3+366,IF(총괄표!$H$3-'3.신용도'!G23<=365,'3.신용도'!H23-'3.신용도'!G23+1))) ->  | J23: - | K23: -
A26: 공동도급사 | B26: =B9 -> B사 | D26: 지분율 | G26: =C9 -> 0.3
A28: 구분 | B28: 처분명칭 | C28: 처분부과기관 | D28: 처분사유 | G28: 입찰참가 제한기간 | I28: 기간 (일) | J28: 누계평균 부실벌점 | K28: 부실점수
A29: 총 계 | C29: - | D29: - | G29: 시작일 | H29: 종료일 | I29: =SUM(I30:I34) -> 0 | J29: 2 | K29: =IF(J29>=20,5,IF(J29>=15,3,IF(J29>=10,2,IF(J29>=5,1,IF(J29>=2,0.5,IF(J29>=1,0.2,IF(J29<1,0))))))) -> 0.5
A30: 입찰참가 제한처분현황 | B30: 0000000공사건 | C30: 00도시공사 | D30: 000000000관련 000000 | G30: 2011-05-12 | H30: 2011-09-11 | I30: =IF(총괄표!$H$3-'3.신용도'!H30>365,"",IF(총괄표!$H$3-'3.신용도'!G30>365,'3.신용도'!H30-총괄표!$H$3+366,IF(총괄표!$H$3-'3.신용도'!G30<=365,'3.신용도'!H30-'3.신용도'!G30+1))) ->  | J30: - | K30: -
B31: 000000건 | C31: 00도시공사 | D31: 00000000건 관련 처분 | G31: 2011-07-25 | H31: 2011-09-24 | I31: =IF(총괄표!$H$3-'3.신용도'!H31>365,"",IF(총괄표!$H$3-'3.신용도'!G31>365,'3.신용도'!H31-총괄표!$H$3+366,IF(총괄표!$H$3-'3.신용도'!G31<=365,'3.신용도'!H31-'3.신용도'!G31+1))) ->  | J31: - | K31: -
I32: =IF(총괄표!$H$3-'3.신용도'!H32>365,"",IF(총괄표!$H$3-'3.신용도'!G32>365,'3.신용도'!H32-총괄표!$H$3+366,IF(총괄표!$H$3-'3.신용도'!G32<=365,'3.신용도'!H32-'3.신용도'!G32+1))) ->  | J32: - | K32: -
I33: =IF(총괄표!$H$3-'3.신용도'!H33>365,"",IF(총괄표!$H$3-'3.신용도'!G33>365,'3.신용도'!H33-총괄표!$H$3+366,IF(총괄표!$H$3-'3.신용도'!G33<=365,'3.신용도'!H33-'3.신용도'!G33+1))) ->  | J33: - | K33: -
I34: =IF(총괄표!$H$3-'3.신용도'!H34>365,"",IF(총괄표!$H$3-'3.신용도'!G34>365,'3.신용도'!H34-총괄표!$H$3+366,IF(총괄표!$H$3-'3.신용도'!G34<=365,'3.신용도'!H34-'3.신용도'!G34+1))) ->  | J34: - | K34: -
A37: 공동도급사 | B37: =B10 -> C사 | D37: 지분율 | G37: =C10 -> 0.2
A39: 구분 | B39: 처분명칭 | C39: 처분부과기관 | D39: 처분사유 | G39: 입찰참가 제한기간 | I39: 기간 (일) | J39: 누계평균 부실벌점 | K39: 부실점수
A40: 총 계 | C40: - | D40: - | G40: 시작일 | H40: 종료일 | I40: =SUM(I41:I45) -> 0 | J40: 0 | K40: =IF(J40>=20,5,IF(J40>=15,3,IF(J40>=10,2,IF(J40>=5,1,IF(J40>=2,0.5,IF(J40>=1,0.2,IF(J40<1,0))))))) -> 0
A41: 입찰참가 제한처분현황 | I41: =IF(총괄표!$H$3-'3.신용도'!H41>365,"",IF(총괄표!$H$3-'3.신용도'!G41>365,'3.신용도'!H41-총괄표!$H$3+366,IF(총괄표!$H$3-'3.신용도'!G41<=365,'3.신용도'!H41-'3.신용도'!G41+1))) ->  | J41: - | K41: -
I42: =IF(총괄표!$H$3-'3.신용도'!H42>365,"",IF(총괄표!$H$3-'3.신용도'!G42>365,'3.신용도'!H42-총괄표!$H$3+366,IF(총괄표!$H$3-'3.신용도'!G42<=365,'3.신용도'!H42-'3.신용도'!G42+1))) ->  | J42: - | K42: -
I43: =IF(총괄표!$H$3-'3.신용도'!H43>365,"",IF(총괄표!$H$3-'3.신용도'!G43>365,'3.신용도'!H43-총괄표!$H$3+366,IF(총괄표!$H$3-'3.신용도'!G43<=365,'3.신용도'!H43-'3.신용도'!G43+1))) ->  | J43: - | K43: -
I44: =IF(총괄표!$H$3-'3.신용도'!H44>365,"",IF(총괄표!$H$3-'3.신용도'!G44>365,'3.신용도'!H44-총괄표!$H$3+366,IF(총괄표!$H$3-'3.신용도'!G44<=365,'3.신용도'!H44-'3.신용도'!G44+1))) ->  | J44: - | K44: -
I45: =IF(총괄표!$H$3-'3.신용도'!H45>365,"",IF(총괄표!$H$3-'3.신용도'!G45>365,'3.신용도'!H45-총괄표!$H$3+366,IF(총괄표!$H$3-'3.신용도'!G45<=365,'3.신용도'!H45-'3.신용도'!G45+1))) ->  | J45: - | K45: -
A48: 공동도급사 | B48: =B11 -> D사 | D48: 지분율 | G48: =C11 -> 0
A50: 구분 | B50: 처분명칭 | C50: 처분부과기관 | D50: 처분사유 | G50: 입찰참가 제한기간 | I50: 기간 (일) | J50: 누계평균 부실벌점 | K50: 부실점수
A51: 총 계 | C51: - | D51: - | G51: 시작일 | H51: 종료일 | I51: =SUM(I52:I56) -> 0 | K51: =IF(J51>=20,5,IF(J51>=15,3,IF(J51>=10,2,IF(J51>=5,1,IF(J51>=2,0.5,IF(J51>=1,0.2,IF(J51<1,0))))))) -> 0
A52: 입찰참가 제한처분현황 | I52: =IF(총괄표!$H$3-'3.신용도'!H52>365,"",IF(총괄표!$H$3-'3.신용도'!G52>365,'3.신용도'!H52-총괄표!$H$3+366,IF(총괄표!$H$3-'3.신용도'!G52<=365,'3.신용도'!H52-'3.신용도'!G52+1))) ->  | J52: - | K52: -
I53: =IF(총괄표!$H$3-'3.신용도'!H53>365,"",IF(총괄표!$H$3-'3.신용도'!G53>365,'3.신용도'!H53-총괄표!$H$3+366,IF(총괄표!$H$3-'3.신용도'!G53<=365,'3.신용도'!H53-'3.신용도'!G53+1))) ->  | J53: - | K53: -
I54: =IF(총괄표!$H$3-'3.신용도'!H54>365,"",IF(총괄표!$H$3-'3.신용도'!G54>365,'3.신용도'!H54-총괄표!$H$3+366,IF(총괄표!$H$3-'3.신용도'!G54<=365,'3.신용도'!H54-'3.신용도'!G54+1))) ->  | J54: - | K54: -
I55: =IF(총괄표!$H$3-'3.신용도'!H55>365,"",IF(총괄표!$H$3-'3.신용도'!G55>365,'3.신용도'!H55-총괄표!$H$3+366,IF(총괄표!$H$3-'3.신용도'!G55<=365,'3.신용도'!H55-'3.신용도'!G55+1))) ->  | J55: - | K55: -
I56: =IF(총괄표!$H$3-'3.신용도'!H56>365,"",IF(총괄표!$H$3-'3.신용도'!G56>365,'3.신용도'!H56-총괄표!$H$3+366,IF(총괄표!$H$3-'3.신용도'!G56<=365,'3.신용도'!H56-'3.신용도'!G56+1))) ->  | J56: - | K56: -
A59: 공동도급사 | B59: =B12 -> E사 | D59: 지분율 | G59: =C12 -> 0
A61: 구분 | B61: 처분명칭 | C61: 처분부과기관 | D61: 처분사유 | G61: 입찰참가 제한기간 | I61: 기간 (일) | J61: 누계평균 부실벌점 | K61: 부실점수
A62: 총 계 | C62: - | D62: - | G62: 시작일 | H62: 종료일 | I62: =SUM(I63:I67) -> 0 | K62: =IF(J62>=20,5,IF(J62>=15,3,IF(J62>=10,2,IF(J62>=5,1,IF(J62>=2,0.5,IF(J62>=1,0.2,IF(J62<1,0))))))) -> 0
A63: 입찰참가 제한처분현황 | I63: =IF(총괄표!$H$3-'3.신용도'!H63>365,"",IF(총괄표!$H$3-'3.신용도'!G63>365,'3.신용도'!H63-총괄표!$H$3+366,IF(총괄표!$H$3-'3.신용도'!G63<=365,'3.신용도'!H63-'3.신용도'!G63+1))) ->  | J63: - | K63: -
I64: =IF(총괄표!$H$3-'3.신용도'!H64>365,"",IF(총괄표!$H$3-'3.신용도'!G64>365,'3.신용도'!H64-총괄표!$H$3+366,IF(총괄표!$H$3-'3.신용도'!G64<=365,'3.신용도'!H64-'3.신용도'!G64+1))) ->  | J64: - | K64: -
I65: =IF(총괄표!$H$3-'3.신용도'!H65>365,"",IF(총괄표!$H$3-'3.신용도'!G65>365,'3.신용도'!H65-총괄표!$H$3+366,IF(총괄표!$H$3-'3.신용도'!G65<=365,'3.신용도'!H65-'3.신용도'!G65+1))) ->  | J65: - | K65: -
I66: =IF(총괄표!$H$3-'3.신용도'!H66>365,"",IF(총괄표!$H$3-'3.신용도'!G66>365,'3.신용도'!H66-총괄표!$H$3+366,IF(총괄표!$H$3-'3.신용도'!G66<=365,'3.신용도'!H66-'3.신용도'!G66+1))) ->  | J66: - | K66: -
I67: =IF(총괄표!$H$3-'3.신용도'!H67>365,"",IF(총괄표!$H$3-'3.신용도'!G67>365,'3.신용도'!H67-총괄표!$H$3+366,IF(총괄표!$H$3-'3.신용도'!G67<=365,'3.신용도'!H67-'3.신용도'!G67+1))) ->  | J67: - | K67: -
A71: 참여기술자 기술자격 및 업무정지, 부실벌점
A73: 구분 | B73: - | C73: 처분부과기관 | D73: 처분사유 | G73: 기술자격 및 업무정지기간 | I73: 기간 (일) | J73: 누계평균 부실벌점 | K73: 참여기술자 부실점수
A74: 총 계 | C74: - | D74: - | G74: 시작일 | H74: 종료일 | I74: =SUM(I75:I89) -> 209 | J74: - | K74: =SUM(K75:K89) -> 1
A75: 참여기술자 기술자격 및 업무정지 처분현황 | B75: 사업책임기술자 홍길동 | C75: 00개발공사 | D75: 0000건에 대한 업무소홀 | G75: 2011-10-10 | H75: 2012-01-09 | I75: =IF(총괄표!$H$3-'3.신용도'!H75>365,"",IF(총괄표!$H$3-'3.신용도'!G75>365,'3.신용도'!H75-총괄표!$H$3+366,IF(총괄표!$H$3-'3.신용도'!G75<=365,'3.신용도'!H75-'3.신용도'!G75+1))) -> 92 | J75: 6 | K75: =IF(J75>=20,5,IF(J75>=15,3,IF(J75>=10,2,IF(J75>=5,1,IF(J75>=2,0.5,IF(J75>=1,0.2,IF(J75<1,0))))))) -> 1
B76: 분야별 책임기술자 김길동(수자원) | C76: 00도시공사 | D76: 0000건에 대한 업무소홀 | G76: 2011-01-30 | H76: 2012-01-30 | I76: =IF(총괄표!$H$3-'3.신용도'!H76>365,"",IF(총괄표!$H$3-'3.신용도'!G76>365,'3.신용도'!H76-총괄표!$H$3+366,IF(총괄표!$H$3-'3.신용도'!G76<=365,'3.신용도'!H76-'3.신용도'!G76+1))) -> 117 | J76: 0 | K76: =IF(J76>=20,5,IF(J76>=15,3,IF(J76>=10,2,IF(J76>=5,1,IF(J76>=2,0.5,IF(J76>=1,0.2,IF(J76<1,0))))))) -> 0
I77: =IF(총괄표!$H$3-'3.신용도'!H77>365,"",IF(총괄표!$H$3-'3.신용도'!G77>365,'3.신용도'!H77-총괄표!$H$3+366,IF(총괄표!$H$3-'3.신용도'!G77<=365,'3.신용도'!H77-'3.신용도'!G77+1))) ->  | K77: 0
I78: =IF(총괄표!$H$3-'3.신용도'!H78>365,"",IF(총괄표!$H$3-'3.신용도'!G78>365,'3.신용도'!H78-총괄표!$H$3+366,IF(총괄표!$H$3-'3.신용도'!G78<=365,'3.신용도'!H78-'3.신용도'!G78+1))) ->  | K78: 0
I79: =IF(총괄표!$H$3-'3.신용도'!H79>365,"",IF(총괄표!$H$3-'3.신용도'!G79>365,'3.신용도'!H79-총괄표!$H$3+366,IF(총괄표!$H$3-'3.신용도'!G79<=365,'3.신용도'!H79-'3.신용도'!G79+1))) ->  | K79: 0
I80: =IF(총괄표!$H$3-'3.신용도'!H80>365,"",IF(총괄표!$H$3-'3.신용도'!G80>365,'3.신용도'!H80-총괄표!$H$3+366,IF(총괄표!$H$3-'3.신용도'!G80<=365,'3.신용도'!H80-'3.신용도'!G80+1))) ->  | K80: 0
I81: =IF(총괄표!$H$3-'3.신용도'!H81>365,"",IF(총괄표!$H$3-'3.신용도'!G81>365,'3.신용도'!H81-총괄표!$H$3+366,IF(총괄표!$H$3-'3.신용도'!G81<=365,'3.신용도'!H81-'3.신용도'!G81+1))) ->  | K81: 0
I82: =IF(총괄표!$H$3-'3.신용도'!H82>365,"",IF(총괄표!$H$3-'3.신용도'!G82>365,'3.신용도'!H82-총괄표!$H$3+366,IF(총괄표!$H$3-'3.신용도'!G82<=365,'3.신용도'!H82-'3.신용도'!G82+1))) ->  | K82: 0
I83: =IF(총괄표!$H$3-'3.신용도'!H83>365,"",IF(총괄표!$H$3-'3.신용도'!G83>365,'3.신용도'!H83-총괄표!$H$3+366,IF(총괄표!$H$3-'3.신용도'!G83<=365,'3.신용도'!H83-'3.신용도'!G83+1))) ->  | K83: 0
I84: =IF(총괄표!$H$3-'3.신용도'!H84>365,"",IF(총괄표!$H$3-'3.신용도'!G84>365,'3.신용도'!H84-총괄표!$H$3+366,IF(총괄표!$H$3-'3.신용도'!G84<=365,'3.신용도'!H84-'3.신용도'!G84+1))) ->  | K84: 0
I85: =IF(총괄표!$H$3-'3.신용도'!H85>365,"",IF(총괄표!$H$3-'3.신용도'!G85>365,'3.신용도'!H85-총괄표!$H$3+366,IF(총괄표!$H$3-'3.신용도'!G85<=365,'3.신용도'!H85-'3.신용도'!G85+1))) ->  | K85: 0
I86: =IF(총괄표!$H$3-'3.신용도'!H86>365,"",IF(총괄표!$H$3-'3.신용도'!G86>365,'3.신용도'!H86-총괄표!$H$3+366,IF(총괄표!$H$3-'3.신용도'!G86<=365,'3.신용도'!H86-'3.신용도'!G86+1))) ->  | K86: 0
I87: =IF(총괄표!$H$3-'3.신용도'!H87>365,"",IF(총괄표!$H$3-'3.신용도'!G87>365,'3.신용도'!H87-총괄표!$H$3+366,IF(총괄표!$H$3-'3.신용도'!G87<=365,'3.신용도'!H87-'3.신용도'!G87+1))) ->  | K87: 0
I88: =IF(총괄표!$H$3-'3.신용도'!H88>365,"",IF(총괄표!$H$3-'3.신용도'!G88>365,'3.신용도'!H88-총괄표!$H$3+366,IF(총괄표!$H$3-'3.신용도'!G88<=365,'3.신용도'!H88-'3.신용도'!G88+1))) ->  | K88: 0
I89: =IF(총괄표!$H$3-'3.신용도'!H89>365,"",IF(총괄표!$H$3-'3.신용도'!G89>365,'3.신용도'!H89-총괄표!$H$3+366,IF(총괄표!$H$3-'3.신용도'!G89<=365,'3.신용도'!H89-'3.신용도'!G89+1))) ->  | K89: 0
G105: 없음 | I105: 회사채 A-이상
G106: 1 | I106: 회사채 BBB-이상
G107: 2 | I107: 회사채 B-이상
G108: 3 | I108: 회사체 CCC+이하
G109: 4 | I109: 기업어음 A2-이상
G110: 5 | I110: 기업어음 A3+이상
G111: 6 | I111: 기업어음 B-이상
G112: 7 | I112: 기업어음 C이하
G113: 8 | I113: 기업신용 A-이상
G114: 9 | I114: 기업신용 BBB-이상
G115: 10 | I115: 기업신용 B-이상
G116: 11 | I116: 기업신용 CCC+이하
G117: 12 | I117: 미제출
G118: 13
G119: 14
G120: 15
G121: 16
G122: 17
G123: 18
G124: 19
G125: 20점이상

Sheet 4(1)기술개발및투자실적
A1: 4-1. 기술개발
A3: 기술개발 총계
A5: 신용도 | C5: 지분율 | D5: 개발실적점수
D6: 배점 | E6: 자기평가 | F6: 확인
A7: 총 계 | C7: - | D7: 2 | E7: =ROUND($C8*E8+$C9*E9+$C10*E10+$C$11*E11+$C$12*E12,2) -> 0.8 | F7: =ROUND($C8*F8+$C9*F9+$C10*F10+$C$11*F11+$C$12*F12,2) -> 0
A8: =A15 -> 대 표 사 | B8: =참여업체현황!$B$5 -> A사 | C8: =참여업체현황!$C$5 -> 0.5 | D8: 2 | E8: =IF(I19>=2,2,IF(I19<2,I19)) -> 1.6 | F8: =IF(J19>=2,2,IF(J19<2,J19)) -> 0
A9: =참여업체현황!A7 -> 공동 | B9: =참여업체현황!$B$7 -> B사 | C9: =참여업체현황!$C$7 -> 0.3 | D9: 2 | E9: =IF(I35>=2,2,IF(I35<2,I35)) -> 0 | F9: =IF(J35>=2,2,IF(J35<2,J35)) -> 0
A10: =참여업체현황!A9 -> 공동 | B10: =참여업체현황!$B$9 -> C사 | C10: =참여업체현황!$C$9 -> 0.2 | D10: 2 | E10: =IF(I51>=2,2,IF(I51<2,I51)) -> 0 | F10: =IF(J51>=2,2,IF(J51<2,J51)) -> 0
A11: =참여업체현황!A11 -> 공동 | B11: =참여업체현황!$B$11 -> D사 | C11: =참여업체현황!$C$11 -> 0 | D11: 2 | E11: =IF(I67>=2,2,IF(I67<2,I67)) -> 0 | F11: =IF(J67>=2,2,IF(J67<2,J67)) -> 0
A12: =참여업체현황!A13 -> 공동 | B12: =참여업체현황!$B$13 -> E사 | C12: =참여업체현황!$C$13 -> 0 | D12: 2 | E12: =IF(I83>=2,2,IF(I83<2,I83)) -> 0 | F12: =IF(J83>=2,2,IF(J83<2,J83)) -> 0
A15: 대 표 사 | B15: =참여업체현황!B5 -> A사 | D15: 환산지분율 | F15: =참여업체현황!$C$5 -> 0.5
A17: 구분 | B17: 제목 | C17: 등록청 | D17: 지정번호 | E17: 출원일 | F17: 경과기간 (년) | G17: 개발실적
G18: 가중치 | H18: 배점 | I18: 자기평가 | J18: 확인
A19: 총 계 | C19: - | D19: - | E19: - | F19: - | G19: - | H19: 2 | I19: =ROUND(SUM(I20:I28),2) -> 1.6 | J19: =ROUND(SUM(J20:J28),2) -> 0
A20: 건설기술에 관한 특허 | B20: 00특허 | C20: 00청 | D20: 00-000-000 | E20: 2001-01-02 | F20: =IF(E20="","",(총괄표!$H$3-E20+1)/365) -> 11.76712329 | G20: =IF(F20="","",IF(H20="1.0","100%",IF(F20<5,"100%",IF(F20<10,"80%",IF(AND(F20<20,A20="건설기술에 관한 특허"),"60%",IF(F20>=10,"0%")))))) -> 60% | H20: =IF(A20="","",IF(A20="건설신기술","1.0",IF(A20="건설기술에 관한 특허","0.6",IF(A20="건설기술에 관한 실용신안","0.3")))) -> 0.6 | I20: =IF(H20="","",ROUND(G20*H20,2)) -> 0.36
A21: 건설신기술 | B21: 000신기술 | C21: 00청 | D21: 0000-0000-000 | E21: 2005-05-12 | F21: =IF(E21="","",(총괄표!$H$3-E21+1)/365) -> 7.408219178 | G21: =IF(F21="","",IF(H21="1.0","100%",IF(F21<5,"100%",IF(F21<10,"80%",IF(F21<20,"60%",IF(F21>=20,"0%")))))) -> 100% | H21: =IF(A21="","",IF(A21="건설신기술","1.0",IF(A21="건설기술에 관한 특허","0.6",IF(A21="건설기술에 관한 실용신안","0.3")))) -> 1.0 | I21: =IF(H21="","",ROUND(G21*H21,2)) -> 1
A22: 건설기술에 관한 실용신안 | B22: 00 실용신안 | C22: 00청 | D22: 0000-0000-000 | E22: 2006-12-12 | F22: =IF(E22="","",(총괄표!$H$3-E22+1)/365) -> 5.821917808 | G22: =IF(F22="","",IF(H22="1.0","100%",IF(F22<5,"100%",IF(F22<10,"80%",IF(F22<20,"60%",IF(F22>=20,"0%")))))) -> 80% | H22: 0.3 | I22: 0.24
F23: =IF(E23="","",(총괄표!$H$3-E23+1)/365) -> 
F24: =IF(E24="","",(총괄표!$H$3-E24+1)/365) -> 
F25: =IF(E25="","",(총괄표!$H$3-E25+1)/365) -> 
F26: =IF(E26="","",(총괄표!$H$3-E26+1)/365) -> 
F27: =IF(E27="","",(총괄표!$H$3-E27+1)/365) -> 
F28: =IF(E28="","",(총괄표!$H$3-E28+1)/365) -> 
A31: 공동도급사 | B31: =참여업체현황!B7 -> B사 | D31: 환산지분율 | F31: =참여업체현황!$C$7 -> 0.3
A33: 구분 | B33: 제목 | C33: 등록청 | D33: 지정번호 | E33: 출원일 | F33: 경과기간 (년) | G33: 개발실적
G34: 가중치 | H34: 배점 | I34: 자기평가 | J34: 확인
A35: 총 계 | C35: - | D35: - | E35: - | F35: - | G35: - | H35: 2 | I35: =ROUND(SUM(I36:I44),2) -> 0 | J35: =ROUND(SUM(J36:J44),2) -> 0
F36: =IF(E36="","",(총괄표!$H$3-E36+1)/365) ->  | G36: =IF(F36="","",IF(H36="1.0","100%",IF(F36<5,"100%",IF(F36<10,"80%",IF(AND(F36<20,A36="건설기술에 관한 특허"),"60%",IF(F36>=10,"0%")))))) ->  | H36: =IF(A36="","",IF(A36="건설신기술","1.0",IF(A36="건설기술에 관한 특허","0.6",IF(A36="건설기술에 관한 실용신안","0.3")))) ->  | I36: =IF(H36="","",ROUND(G36*H36,2)) -> 
F37: =IF(E37="","",(총괄표!$H$3-E37+1)/365) ->  | G37: =IF(F37="","",IF(H37="1.0","100%",IF(F37<5,"100%",IF(F37<10,"80%",IF(F37<20,"60%",IF(F37>=20,"0%")))))) ->  | H37: =IF(A37="","",IF(A37="건설신기술","1.0",IF(A37="건설기술에 관한 특허","0.6",IF(A37="건설기술에 관한 실용신안","0.3")))) ->  | I37: =IF(H37="","",ROUND(G37*H37,2)) -> 
F38: =IF(E38="","",(총괄표!$H$3-E38+1)/365) ->  | G38: =IF(F38="","",IF(H38="1.0","100%",IF(F38<5,"100%",IF(F38<10,"80%",IF(F38<20,"60%",IF(F38>=20,"0%")))))) -> 
F39: =IF(E39="","",(총괄표!$H$3-E39+1)/365) -> 
F40: =IF(E40="","",(총괄표!$H$3-E40+1)/365) -> 
F41: =IF(E41="","",(총괄표!$H$3-E41+1)/365) -> 
F42: =IF(E42="","",(총괄표!$H$3-E42+1)/365) -> 
F43: =IF(E43="","",(총괄표!$H$3-E43+1)/365) -> 
F44: =IF(E44="","",(총괄표!$H$3-E44+1)/365) -> 
A47: 공동도급사 | B47: =참여업체현황!B9 -> C사 | D47: 환산지분율 | F47: =참여업체현황!$C$9 -> 0.2
A49: 구분 | B49: 제목 | C49: 등록청 | D49: 지정번호 | E49: 출원일 | F49: 경과기간 (년) | G49: 개발실적
G50: 가중치 | H50: 배점 | I50: 자기평가 | J50: 확인
A51: 총 계 | C51: - | D51: - | E51: - | F51: - | G51: - | H51: 2 | I51: =ROUND(SUM(I52:I60),2) -> 0 | J51: =ROUND(SUM(J52:J60),2) -> 0
F52: =IF(E52="","",(총괄표!$H$3-E52+1)/365) ->  | G52: =IF(F52="","",IF(H52="1.0","100%",IF(F52<5,"100%",IF(F52<10,"80%",IF(AND(F52<20,A52="건설기술에 관한 특허"),"60%",IF(F52>=10,"0%")))))) ->  | H52: =IF(A52="","",IF(A52="건설신기술","1.0",IF(A52="건설기술에 관한 특허","0.6",IF(A52="건설기술에 관한 실용신안","0.3")))) ->  | I52: =IF(H52="","",ROUND(G52*H52,2)) -> 
F53: =IF(E53="","",(총괄표!$H$3-E53+1)/365) ->  | G53: =IF(F53="","",IF(H53="1.0","100%",IF(F53<5,"100%",IF(F53<10,"80%",IF(F53<20,"60%",IF(F53>=20,"0%")))))) ->  | H53: =IF(A53="","",IF(A53="건설신기술","1.0",IF(A53="건설기술에 관한 특허","0.6",IF(A53="건설기술에 관한 실용신안","0.3")))) ->  | I53: =IF(H53="","",ROUND(G53*H53,2)) -> 
F54: =IF(E54="","",(총괄표!$H$3-E54+1)/365) ->  | G54: =IF(F54="","",IF(H54="1.0","100%",IF(F54<5,"100%",IF(F54<10,"80%",IF(F54<20,"60%",IF(F54>=20,"0%")))))) -> 
F55: =IF(E55="","",(총괄표!$H$3-E55+1)/365) -> 
F56: =IF(E56="","",(총괄표!$H$3-E56+1)/365) -> 
F57: =IF(E57="","",(총괄표!$H$3-E57+1)/365) -> 
F58: =IF(E58="","",(총괄표!$H$3-E58+1)/365) -> 
F59: =IF(E59="","",(총괄표!$H$3-E59+1)/365) -> 
F60: =IF(E60="","",(총괄표!$H$3-E60+1)/365) -> 
A63: 공동도급사 | B63: =참여업체현황!B11 -> D사 | D63: 환산지분율 | F63: =참여업체현황!$C$11 -> 0
A65: 구분 | B65: 제목 | C65: 등록청 | D65: 지정번호 | E65: 출원일 | F65: 경과기간 (년) | G65: 개발실적
G66: 가중치 | H66: 배점 | I66: =ROUND(SUM(I67:I75),2) -> 0 | J66: 확인
A67: 총 계 | C67: - | D67: - | E67: - | F67: - | G67: - | H67: 2 | I67: =ROUND(SUM(I68:I76),2) -> 0 | J67: =ROUND(SUM(J68:J76),2) -> 0
F68: =IF(E68="","",(총괄표!$H$3-E68+1)/365) ->  | G68: =IF(F68="","",IF(H68="1.0","100%",IF(F68<5,"100%",IF(F68<10,"80%",IF(AND(F68<20,A68="건설기술에 관한 특허"),"60%",IF(F68>=10,"0%")))))) ->  | H68: =IF(A68="","",IF(A68="건설신기술","1.0",IF(A68="건설기술에 관한 특허","0.6",IF(A68="건설기술에 관한 실용신안","0.3")))) ->  | I68: =IF(H68="","",ROUND(G68*H68,2)) -> 
F69: =IF(E69="","",(총괄표!$H$3-E69+1)/365) ->  | G69: =IF(F69="","",IF(H69="1.0","100%",IF(F69<5,"100%",IF(F69<10,"80%",IF(F69<20,"60%",IF(F69>=20,"0%")))))) ->  | H69: =IF(A69="","",IF(A69="건설신기술","1.0",IF(A69="건설기술에 관한 특허","0.6",IF(A69="건설기술에 관한 실용신안","0.3")))) ->  | I69: =IF(H69="","",ROUND(G69*H69,2)) -> 
F70: =IF(E70="","",(총괄표!$H$3-E70+1)/365) ->  | G70: =IF(F70="","",IF(H70="1.0","100%",IF(F70<5,"100%",IF(F70<10,"80%",IF(F70<20,"60%",IF(F70>=20,"0%")))))) -> 
F71: =IF(E71="","",(총괄표!$H$3-E71+1)/365) -> 
F72: =IF(E72="","",(총괄표!$H$3-E72+1)/365) -> 
F73: =IF(E73="","",(총괄표!$H$3-E73+1)/365) -> 
F74: =IF(E74="","",(총괄표!$H$3-E74+1)/365) -> 
F75: =IF(E75="","",(총괄표!$H$3-E75+1)/365) -> 
F76: =IF(E76="","",(총괄표!$H$3-E76+1)/365) -> 
A79: 공동도급사 | B79: =참여업체현황!B13 -> E사 | D79: 환산지분율 | F79: =참여업체현황!$C$13 -> 0
A81: 구분 | B81: 제목 | C81: 등록청 | D81: 지정번호 | E81: 출원일 | F81: 경과기간 (년) | G81: 개발실적
G82: 가중치 | H82: 배점 | I82: =ROUND(SUM(I83:I91),2) -> 0 | J82: 확인
A83: 총 계 | C83: - | D83: - | E83: - | F83: - | G83: - | H83: 2 | I83: =ROUND(SUM(I84:I92),2) -> 0 | J83: =ROUND(SUM(J84:J92),2) -> 0
F84: =IF(E84="","",(총괄표!$H$3-E84+1)/365) ->  | G84: =IF(F84="","",IF(H84="1.0","100%",IF(F84<5,"100%",IF(F84<10,"80%",IF(AND(F84<20,A84="건설기술에 관한 특허"),"60%",IF(F84>=10,"0%")))))) ->  | H84: =IF(A84="","",IF(A84="건설신기술","1.0",IF(A84="건설기술에 관한 특허","0.6",IF(A84="건설기술에 관한 실용신안","0.3")))) ->  | I84: =IF(H84="","",ROUND(G84*H84,2)) -> 
F85: =IF(E85="","",(총괄표!$H$3-E85+1)/365) ->  | G85: =IF(F85="","",IF(H85="1.0","100%",IF(F85<5,"100%",IF(F85<10,"80%",IF(F85<20,"60%",IF(F85>=20,"0%")))))) ->  | H85: =IF(A85="","",IF(A85="건설신기술","1.0",IF(A85="건설기술에 관한 특허","0.6",IF(A85="건설기술에 관한 실용신안","0.3")))) ->  | I85: =IF(H85="","",ROUND(G85*H85,2)) -> 
F86: =IF(E86="","",(총괄표!$H$3-E86+1)/365) ->  | G86: =IF(F86="","",IF(H86="1.0","100%",IF(F86<5,"100%",IF(F86<10,"80%",IF(F86<20,"60%",IF(F86>=20,"0%")))))) -> 
F87: =IF(E87="","",(총괄표!$H$3-E87+1)/365) -> 
F88: =IF(E88="","",(총괄표!$H$3-E88+1)/365) -> 
F89: =IF(E89="","",(총괄표!$H$3-E89+1)/365) -> 
F90: =IF(E90="","",(총괄표!$H$3-E90+1)/365) -> 
F91: =IF(E91="","",(총괄표!$H$3-E91+1)/365) -> 
F92: =IF(E92="","",(총괄표!$H$3-E92+1)/365) -> 
B96: 건설신기술
B97: 건설기술에 관한 특허
B98: 건설기술에 관한 실용신안

Sheet 4.(2)투자실적
A1: 4-2. 투자실적
A3: 투자실적 총계
K4: (단위 : 원)
A5: 업체명 | B5: 지분율 | C5: 1년차 | E5: 2년차 | G5: 3년차 | I5: 투자실적 | J5: 투자실적
C6: 건설기술개발투자액 | D6: 건설부문총매출액 | E6: 건설기술개발투자액 | F6: 건설부문총매출액 | G6: 건설기술개발투자액 | H6: 건설부문총매출액 | J6: 자기평가 | K6: 확인
A7: 총 계 | B7: - | C7: - | D7: - | E7: - | F7: - | G7: - | H7: - | I7: =ROUND($B8*N8+$B9*N9+$B10*N10+$B$11*N11+$B$12*N12,4) -> 0.0373 | J7: =IF(I7>=3%,10,IF(I7>=2.5%,9,IF(I7>=2%,8,IF(I7>=1.5%,7,IF(I7>=1%,6,IF(I7<1%,0)))))) -> 10
A8: =참여업체현황!$B$5 -> A사 | B8: =참여업체현황!$C$5 -> 0.5 | C8: 4323456789 | D8: 60012345678 | E8: 231456789 | F8: 51265497445 | G8: 456123789 | H8: 7894561320 | I8: =IF(C8="","",ROUND((ROUND(C8/D8,4)+ROUND(E8/F8,4)+ROUND(G8/H8,4))/3,4)) -> 0.0448 | J8: - | K8: - | N8: =IF(C8="","0",ROUND((ROUND(C8/D8,4)+ROUND(E8/F8,4)+ROUND(G8/H8,4))/3,4)) -> 0.0448
A9: =참여업체현황!$B$7 -> B사 | B9: =참여업체현황!$C$7 -> 0.3 | C9: 1000000000 | D9: 50000000000 | E9: 2000000000 | F9: 60000000000 | G9: 1000000000 | H9: 50000000000 | I9: =IF(C9="","",ROUND((ROUND(C9/D9,4)+ROUND(E9/F9,4)+ROUND(G9/H9,4))/3,4)) -> 0.0244 | J9: - | K9: - | N9: =IF(C9="","0",ROUND((ROUND(C9/D9,4)+ROUND(E9/F9,4)+ROUND(G9/H9,4))/3,4)) -> 0.0244
A10: =참여업체현황!$B$9 -> C사 | B10: =참여업체현황!$C$9 -> 0.2 | C10: 3000000000 | D10: 50000000000 | E10: 2000000000 | F10: 60000000000 | G10: 1000000000 | H10: 50000000000 | I10: 0.0378 | J10: - | K10: - | N10: 0.0378
A11: =참여업체현황!$B$11 -> D사 | B11: =참여업체현황!$C$11 -> 0 | J11: - | K11: - | N11: 0
A12: =참여업체현황!$B$13 -> E사 | B12: =참여업체현황!$C$13 -> 0 | J12: - | K12: - | N12: 0

Sheet 4(3)활용실적
A1: 4-3. 활용실적
A3: 활용실적 총계
A5: 활용실적 | C5: 지분율 | D5: 활용실적점수
D6: 배점 | E6: 자기평가 | F6: 확인
A7: 총 계 | C7: - | D7: 3 | E7: =ROUND($C8*E8+$C9*E9+$C10*E10+$C$11*E11+$C$12*E12,2) -> 2.24 | F7: =ROUND($C8*F8+$C9*F9+$C10*F10+$C$11*F11+$C$12*F12,2) -> 0
A8: =A16 -> 대 표 사 | B8: =B16 -> A사 | C8: =참여업체현황!C5 -> 0.5 | D8: 3 | E8: =J20 -> 2.8
A9: =참여업체현황!A7 -> 공동 | B9: =참여업체현황!B7 -> B사 | C9: =참여업체현황!C7 -> 0.3 | D9: 3 | E9: =J57 -> 1.68
A10: =참여업체현황!A9 -> 공동 | B10: =참여업체현황!B9 -> C사 | C10: =참여업체현황!C9 -> 0.2 | D10: 3 | E10: =J94 -> 1.68
A11: =참여업체현황!A11 -> 공동 | B11: =참여업체현황!B11 -> D사 | C11: =참여업체현황!C11 -> 0 | D11: 3 | E11: =J131 -> 0
A12: =참여업체현황!A13 -> 공동 | B12: =참여업체현황!B13 -> E사 | C12: =참여업체현황!C13 -> 0 | D12: 3 | E12: =J168 -> 0
A16: 대 표 사 | B16: =참여업체현황!B5 -> A사 | D16: 환산지분율 | E16: =참여업체현황!C5 -> 0.5
A18: 구분 | B18: 권리내용 (지정번호) | C18: 활용건수 | D18: 활용금액 (억) | E18: 만료일자 | F18: 공사명 | G18: 활용년도 | H18: 건별활용금액 (백만원) | I18: 개발실적
I19: 배점 | J19: 자기평가 | K19: 확인
A20: 총 계 | C20: - | D20: - | E20: - | F20: - | G20: - | H20: - | I20: 3 | J20: =IF(ROUND(SUM(J21:J50),2)>=3,3,ROUND(SUM(J21:J50),2)) -> 2.8 | K20: =SUM(K21:K50) -> 0 | N20: 건수 | O20: 금액 | P20: 건수/금액비교 | R20: 기간도과여부 | S20: 활용건수 | T20: 금액
A21: 건설신기술 | B21: 00성방수제와 00을 이용한 콘크리트00의 00성향상기술 (332) | C21: 5 | D21: =IF(T21=0,"",IF(T21>0,T21/100)) -> 16 | E21: 2008-12-02 | F21: 00건설공사 | G21: 2001-02-12 | H21: 300 | I21: =IF(A21="","",IF(A21="건설신기술",1,IF(A21="건설기술에 관한 특허",0.6,IF(A21="건설기술에 관한 실용신안",0.3)))) -> 1 | J21: =IF(P21="","",I21*P21) -> 1 | M21: =IF(F21="",0,1)*R21 -> 1 | N21: =IF(C21="","",IF(C21>=5,1,IF(C21>=4,0.9,IF(C21>=3,0.8,IF(C21>=2,0.7,IF(C21>=1,0.6,IF(C21<1,0))))))) -> 1 | O21: =IF(D21="","",IF(D21>=20,1,IF(D21>=18,0.9,IF(D21>=16,0.8,IF(D21>=14,0.7,IF(D21>=12,0.6,IF(D21<12,0))))))) -> 0.8 | P21: =IF(N21>O21,N21,IF(N21<=O21,O21)) -> 1 | R21: =IF(G21="",0,IF(U21="",0,IF(U21-G21>=1,1,IF(U21-G21>0,0)))) -> 1 | S21: =SUM(M21:M26) -> 4 | T21: =SUM(H21:H26) -> 1600 | U21: =E21 -> 2008-12-02
F22: 00공사 | G22: 2007-12-11 | H22: 500 | M22: 1 | R22: =IF(G22="",0,IF(U22="",0,IF(U22-G22>=1,1,IF(U22-G22>0,0)))) -> 1 | U22: =E21 -> 2008-12-02
F23: 0000공사 | G23: 2008-02-04 | H23: 600 | M23: 1 | R23: 1 | U23: =E21 -> 2008-12-02
F24: 0000공사 | G24: 2002-12-01 | H24: 200 | M24: 1 | R24: 1 | U24: =E21 -> 2008-12-02
M25: 0 | R25: 0 | U25: =E21 -> 2008-12-02
M26: 0 | R26: 0 | U26: =E21 -> 2008-12-02
A27: 건설기술에 관한 특허 | B27: 0000000과000000에 대한 000기술 (000) | C27: 5 | D27: =IF(T27=0,"",IF(T27>0,T27/100)) -> 16 | E27: 2003-12-12 | F27: 00공사 | G27: 2007-12-11 | H27: 500 | I27: =IF(A27="","",IF(A27="건설신기술",1,IF(A27="건설기술에 관한 특허",0.6,IF(A27="건설기술에 관한 실용신안",0.3)))) -> 0.6 | J27: =IF(P27="","",I27*P27) -> 0.6 | M27: 0 | N27: =IF(C27="","",IF(C27>=5,1,IF(C27>=4,0.9,IF(C27>=3,0.8,IF(C27>=2,0.7,IF(C27>=1,0.6,IF(C27<1,0))))))) -> 1 | O27: =IF(D27="","",IF(D27>=20,1,IF(D27>=18,0.9,IF(D27>=16,0.8,IF(D27>=14,0.7,IF(D27>=12,0.6,IF(D27<12,0))))))) -> 0.8 | P27: =IF(N27>O27,N27,IF(N27<=O27,O27)) -> 1 | R27: FALSE | S27: =SUM(M27:M32) -> 1 | T27: =SUM(H27:H32) -> 1600 | U27: =E27 -> 2003-12-12
F28: 0000공사 | G28: 2008-02-04 | H28: 600 | M28: 0 | R28: FALSE | U28: =E27 -> 2003-12-12
F29: 0000공사 | G29: 2002-12-01 | H29: 500 | M29: 1 | R29: 1 | U29: =E27 -> 2003-12-12
M30: 0 | R30: 0 | U30: =E27 -> 2003-12-12
M31: 0 | R31: 0 | U31: =E27 -> 2003-12-12
M32: 0 | R32: 0 | U32: =E27 -> 2003-12-12
A33: 건설기술에 관한 특허 | B33: 0000000과000000에 대한 000기술 (000) | C33: 5 | D33: =IF(T33=0,"",IF(T33>0,T33/100)) -> 16 | E33: 2003-12-12 | F33: 00공사 | G33: 2007-12-11 | H33: 500 | I33: =IF(A33="","",IF(A33="건설신기술",1,IF(A33="건설기술에 관한 특허",0.6,IF(A33="건설기술에 관한 실용신안",0.3)))) -> 0.6 | J33: =IF(P33="","",I33*P33) -> 0.6 | M33: 0 | N33: =IF(C33="","",IF(C33>=5,1,IF(C33>=4,0.9,IF(C33>=3,0.8,IF(C33>=2,0.7,IF(C33>=1,0.6,IF(C33<1,0))))))) -> 1 | O33: =IF(D33="","",IF(D33>=20,1,IF(D33>=18,0.9,IF(D33>=16,0.8,IF(D33>=14,0.7,IF(D33>=12,0.6,IF(D33<12,0))))))) -> 0.8 | P33: =IF(N33>O33,N33,IF(N33<=O33,O33)) -> 1 | R33: FALSE | S33: =SUM(M33:M38) -> 1 | T33: =SUM(H33:H38) -> 1600 | U33: =E33 -> 2003-12-12
F34: 0000공사 | G34: 2008-02-04 | H34: 600 | M34: 0 | R34: FALSE | U34: =E33 -> 2003-12-12
F35: 0000공사 | G35: 2002-12-01 | H35: 500 | M35: 1 | R35: 1 | U35: =E33 -> 2003-12-12
M36: 0 | R36: 0 | U36: =E33 -> 2003-12-12
M37: 0 | R37: 0 | U37: =E33 -> 2003-12-12
M38: 0 | R38: 0 | U38: =E33 -> 2003-12-12
A39: 건설기술에 관한 특허 | B39: 0000000과000000에 대한 000기술 (000) | C39: 5 | D39: =IF(T39=0,"",IF(T39>0,T39/100)) -> 16 | E39: 2003-12-12 | F39: 00공사 | G39: 2007-12-11 | H39: 500 | I39: =IF(A39="","",IF(A39="건설신기술",1,IF(A39="건설기술에 관한 특허",0.6,IF(A39="건설기술에 관한 실용신안",0.3)))) -> 0.6 | J39: =IF(P39="","",I39*P39) -> 0.6 | M39: 0 | N39: =IF(C39="","",IF(C39>=5,1,IF(C39>=4,0.9,IF(C39>=3,0.8,IF(C39>=2,0.7,IF(C39>=1,0.6,IF(C39<1,0))))))) -> 1 | O39: =IF(D39="","",IF(D39>=20,1,IF(D39>=18,0.9,IF(D39>=16,0.8,IF(D39>=14,0.7,IF(D39>=12,0.6,IF(D39<12,0))))))) -> 0.8 | P39: =IF(N39>O39,N39,IF(N39<=O39,O39)) -> 1 | R39: FALSE | S39: =SUM(M39:M44) -> 1 | T39: =SUM(H39:H44) -> 1600 | U39: =E39 -> 2003-12-12
F40: 0000공사 | G40: 2008-02-04 | H40: 600 | M40: 0 | R40: FALSE | U40: =E39 -> 2003-12-12
F41: 0000공사 | G41: 2002-12-01 | H41: 500 | M41: 1 | R41: 1 | U41: =E39 -> 2003-12-12
M42: 0 | R42: 0 | U42: =E39 -> 2003-12-12
M43: 0 | R43: 0 | U43: =E39 -> 2003-12-12
M44: 0 | R44: 0 | U44: =E39 -> 2003-12-12
C45: =IF(S45=0,"",IF(S45>0,S45)) ->  | D45: =IF(T45=0,"",IF(T45>0,T45/100)) ->  | I45: =IF(A45="","",IF(A45="건설신기술",1,IF(A45="건설기술에 관한 특허",0.6,IF(A45="건설기술에 관한 실용신안",0.3)))) ->  | J45: =IF(P45="","",I45*P45) ->  | M45: 0 | N45: =IF(C45="","",IF(C45>=5,1,IF(C45>=4,0.9,IF(C45>=3,0.8,IF(C45>=2,0.7,IF(C45>=1,0.6,IF(C45<1,0))))))) ->  | O45: =IF(D45="","",IF(D45>=20,1,IF(D45>=18,0.9,IF(D45>=16,0.8,IF(D45>=14,0.7,IF(D45>=12,0.6,IF(D45<12,0))))))) ->  | P45: =IF(N45>O45,N45,IF(N45<=O45,O45)) ->  | R45: 0 | S45: =SUM(M45:M50) -> 0 | T45: =SUM(H45:H50) -> 0 | U45: =E45 -> 00:00:00
M46: 0 | R46: 0 | U46: =E45 -> 00:00:00
M47: 0 | R47: 0 | U47: =E45 -> 00:00:00
M48: 0 | R48: 0 | U48: =E45 -> 00:00:00
M49: 0 | R49: 0 | U49: =E45 -> 00:00:00
M50: 0 | R50: 0 | U50: =E45 -> 00:00:00
A53: 대 표 사 | B53: =참여업체현황!B7 -> B사 | D53: 환산지분율 | E53: =참여업체현황!C7 -> 0.3
A55: 구분 | B55: 권리내용 (지정번호) | C55: 활용건수 | D55: 활용금액 (억) | E55: 만료일자 | F55: 공사명 | G55: 활용년도 | H55: 건별활용금액 (백만원) | I55: 개발실적
I56: 배점 | J56: 자기평가 | K56: 확인
A57: 총 계 | C57: - | D57: - | E57: - | F57: - | G57: - | H57: - | I57: 3 | J57: =IF(ROUND(SUM(J58:J87),2)>=3,3,ROUND(SUM(J58:J87),2)) -> 1.68 | K57: =SUM(K58:K87) -> 0 | N57: 건수 | O57: 금액 | P57: 건수/금액비교 | R57: 기간도과여부 | S57: 활용건수 | T57: 금액
A58: 건설신기술 | B58: 00성방수제와 00을 이용한 콘크리트00의 00성향상기술 (332) | C58: =IF(S58=0,"",IF(S58>0,S58)) -> 4 | D58: =IF(T58=0,"",IF(T58>0,T58/100)) -> 16 | E58: 2008-12-02 | F58: 00건설공사 | G58: 2001-02-12 | H58: 300 | I58: =IF(A58="","",IF(A58="건설신기술",1,IF(A58="건설기술에 관한 특허",0.6,IF(A58="건설기술에 관한 실용신안",0.3)))) -> 1 | J58: =IF(P58="","",I58*P58) -> 0.9 | M58: =IF(F58="",0,1)*R58 -> 1 | N58: =IF(C58="","",IF(C58>=5,1,IF(C58>=4,0.9,IF(C58>=3,0.8,IF(C58>=2,0.7,IF(C58>=1,0.6,IF(C58<1,0))))))) -> 0.9 | O58: =IF(D58="","",IF(D58>=20,1,IF(D58>=18,0.9,IF(D58>=16,0.8,IF(D58>=14,0.7,IF(D58>=12,0.6,IF(D58<12,0))))))) -> 0.8 | P58: =IF(N58>O58,N58,IF(N58<=O58,O58)) -> 0.9 | R58: =IF(G58="",0,IF(U58="",0,IF(U58-G58>=1,1,IF(U58-G58>0,0)))) -> 1 | S58: =SUM(M58:M63) -> 4 | T58: =SUM(H58:H63) -> 1600 | U58: =E58 -> 2008-12-02
F59: 00공사 | G59: 2007-12-11 | H59: 500 | M59: 1 | R59: =IF(G59="",0,IF(U59="",0,IF(U59-G59>=1,1,IF(U59-G59>0,0)))) -> 1 | U59: =E58 -> 2008-12-02
F60: 0000공사 | G60: 2008-02-04 | H60: 600 | M60: 1 | R60: 1 | U60: =E58 -> 2008-12-02
F61: 0000공사 | G61: 2002-12-01 | H61: 200 | M61: 1 | R61: 1 | U61: =E58 -> 2008-12-02
M62: 0 | R62: 0 | U62: =E58 -> 2008-12-02
M63: 0 | R63: 0 | U63: =E58 -> 2008-12-02
A64: 건설기술에 관한 특허 | B64: 0000000과000000에 대한 000기술 (000) | C64: =IF(S64=0,"",IF(S64>0,S64)) -> 1 | D64: =IF(T64=0,"",IF(T64>0,T64/100)) -> 16 | E64: 2003-12-12 | F64: 00공사 | G64: 2007-12-11 | H64: 500 | I64: =IF(A64="","",IF(A64="건설신기술",1,IF(A64="건설기술에 관한 특허",0.6,IF(A64="건설기술에 관한 실용신안",0.3)))) -> 0.6 | J64: =IF(P64="","",I64*P64) -> 0.48 | M64: 0 | N64: =IF(C64="","",IF(C64>=5,1,IF(C64>=4,0.9,IF(C64>=3,0.8,IF(C64>=2,0.7,IF(C64>=1,0.6,IF(C64<1,0))))))) -> 0.6 | O64: =IF(D64="","",IF(D64>=20,1,IF(D64>=18,0.9,IF(D64>=16,0.8,IF(D64>=14,0.7,IF(D64>=12,0.6,IF(D64<12,0))))))) -> 0.8 | P64: =IF(N64>O64,N64,IF(N64<=O64,O64)) -> 0.8 | R64: FALSE | S64: =SUM(M64:M69) -> 1 | T64: =SUM(H64:H69) -> 1600 | U64: =E64 -> 2003-12-12
F65: 0000공사 | G65: 2008-02-04 | H65: 600 | M65: 0 | R65: FALSE | U65: =E64 -> 2003-12-12
F66: 0000공사 | G66: 2002-12-01 | H66: 500 | M66: 1 | R66: 1 | U66: =E64 -> 2003-12-12
M67: 0 | R67: 0 | U67: =E64 -> 2003-12-12
M68: 0 | R68: 0 | U68: =E64 -> 2003-12-12
M69: 0 | R69: 0 | U69: =E64 -> 2003-12-12
A70: 건설기술에 관한 실용신안 | B70: 0000000과000000에 대한 000기술 (000) | C70: =IF(S70=0,"",IF(S70>0,S70)) -> 4 | D70: =IF(T70=0,"",IF(T70>0,T70/100)) -> 21 | E70: 2556-12-29 | F70: 00공사 | G70: 2007-12-11 | H70: 500 | I70: =IF(A70="","",IF(A70="건설신기술",1,IF(A70="건설기술에 관한 특허",0.6,IF(A70="건설기술에 관한 실용신안",0.3)))) -> 0.3 | J70: =IF(P70="","",I70*P70) -> 0.3 | M70: =IF(F70="",0,1)*R70 -> 1 | N70: =IF(C70="","",IF(C70>=5,1,IF(C70>=4,0.9,IF(C70>=3,0.8,IF(C70>=2,0.7,IF(C70>=1,0.6,IF(C70<1,0))))))) -> 0.9 | O70: =IF(D70="","",IF(D70>=20,1,IF(D70>=18,0.9,IF(D70>=16,0.8,IF(D70>=14,0.7,IF(D70>=12,0.6,IF(D70<12,0))))))) -> 1 | P70: =IF(N70>O70,N70,IF(N70<=O70,O70)) -> 1 | R70: =IF(G70="",0,IF(U70="",0,IF(U70-G70>=1,1,IF(U70-G70>0,0)))) -> 1 | S70: =SUM(M70:M75) -> 4 | T70: =SUM(H70:H75) -> 2100 | U70: =E70 -> 2556-12-29
F71: 0000공사 | G71: 2008-02-04 | H71: 600 | M71: 1 | R71: 1 | U71: =E70 -> 2556-12-29
F72: 0000공사 | G72: 2002-12-01 | H72: 500 | M72: 1 | R72: 1 | U72: =E70 -> 2556-12-29
F73: 0000공사 | G73: 2002-12-01 | H73: 500 | M73: 1 | R73: 1 | U73: =E70 -> 2556-12-29
M74: 0 | R74: 0 | U74: =E70 -> 2556-12-29
M75: 0 | R75: 0 | U75: =E70 -> 2556-12-29
C76: =IF(S76=0,"",IF(S76>0,S76)) ->  | D76: =IF(T76=0,"",IF(T76>0,T76/100)) ->  | I76: =IF(A76="","",IF(A76="건설신기술",1,IF(A76="건설기술에 관한 특허",0.6,IF(A76="건설기술에 관한 실용신안",0.3)))) ->  | J76: =IF(P76="","",I76*P76) ->  | M76: 0 | N76: =IF(C76="","",IF(C76>=5,1,IF(C76>=4,0.9,IF(C76>=3,0.8,IF(C76>=2,0.7,IF(C76>=1,0.6,IF(C76<1,0))))))) ->  | O76: =IF(D76="","",IF(D76>=20,1,IF(D76>=18,0.9,IF(D76>=16,0.8,IF(D76>=14,0.7,IF(D76>=12,0.6,IF(D76<12,0))))))) ->  | P76: =IF(N76>O76,N76,IF(N76<=O76,O76)) ->  | R76: 0 | S76: =SUM(M76:M81) -> 0 | T76: =SUM(H76:H81) -> 0 | U76: =E76 -> 00:00:00
M77: 0 | R77: 0 | U77: =E76 -> 00:00:00
M78: 0 | R78: 0 | U78: =E76 -> 00:00:00
M79: 0 | R79: 0 | U79: =E76 -> 00:00:00
M80: 0 | R80: 0 | U80: =E76 -> 00:00:00
M81: 0 | R81: 0 | U81: =E76 -> 00:00:00
C82: =IF(S82=0,"",IF(S82>0,S82)) ->  | D82: =IF(T82=0,"",IF(T82>0,T82/100)) ->  | I82: =IF(A82="","",IF(A82="건설신기술",1,IF(A82="건설기술에 관한 특허",0.6,IF(A82="건설기술에 관한 실용신안",0.3)))) ->  | J82: =IF(P82="","",I82*P82) ->  | M82: 0 | N82: =IF(C82="","",IF(C82>=5,1,IF(C82>=4,0.9,IF(C82>=3,0.8,IF(C82>=2,0.7,IF(C82>=1,0.6,IF(C82<1,0))))))) ->  | O82: =IF(D82="","",IF(D82>=20,1,IF(D82>=18,0.9,IF(D82>=16,0.8,IF(D82>=14,0.7,IF(D82>=12,0.6,IF(D82<12,0))))))) ->  | P82: =IF(N82>O82,N82,IF(N82<=O82,O82)) ->  | R82: 0 | S82: =SUM(M82:M87) -> 0 | T82: =SUM(H82:H87) -> 0 | U82: =E82 -> 00:00:00
M83: 0 | R83: 0 | U83: =E82 -> 00:00:00
M84: 0 | R84: 0 | U84: =E82 -> 00:00:00
M85: 0 | R85: 0 | U85: =E82 -> 00:00:00
M86: 0 | R86: 0 | U86: =E82 -> 00:00:00
M87: 0 | R87: 0 | U87: =E82 -> 00:00:00
A90: 대 표 사 | B90: =참여업체현황!B9 -> C사 | D90: 환산지분율 | E90: =참여업체현황!C9 -> 0.2
A92: 구분 | B92: 권리내용 (지정번호) | C92: 활용건수 | D92: 활용금액 (억) | E92: 만료일자 | F92: 공사명 | G92: 활용년도 | H92: 건별활용금액 (백만원) | I92: 개발실적
I93: 배점 | J93: 자기평가 | K93: 확인
A94: 총 계 | C94: - | D94: - | E94: - | F94: - | G94: - | H94: - | I94: 3 | J94: =IF(ROUND(SUM(J95:J124),2)>=3,3,ROUND(SUM(J95:J124),2)) -> 1.68 | K94: =SUM(K95:K124) -> 0 | N94: 건수 | O94: 금액 | P94: 건수/금액비교 | R94: 기간도과여부 | S94: 활용건수 | T94: 금액
A95: 건설신기술 | B95: 00성방수제와 00을 이용한 콘크리트00의 00성향상기술 (332) | C95: =IF(S95=0,"",IF(S95>0,S95)) -> 4 | D95: =IF(T95=0,"",IF(T95>0,T95/100)) -> 16 | E95: 2008-12-02 | F95: 00건설공사 | G95: 2001-02-12 | H95: 300 | I95: =IF(A95="","",IF(A95="건설신기술",1,IF(A95="건설기술에 관한 특허",0.6,IF(A95="건설기술에 관한 실용신안",0.3)))) -> 1 | J95: =IF(P95="","",I95*P95) -> 0.9 | M95: =IF(F95="",0,1)*R95 -> 1 | N95: =IF(C95="","",IF(C95>=5,1,IF(C95>=4,0.9,IF(C95>=3,0.8,IF(C95>=2,0.7,IF(C95>=1,0.6,IF(C95<1,0))))))) -> 0.9 | O95: =IF(D95="","",IF(D95>=20,1,IF(D95>=18,0.9,IF(D95>=16,0.8,IF(D95>=14,0.7,IF(D95>=12,0.6,IF(D95<12,0))))))) -> 0.8 | P95: =IF(N95>O95,N95,IF(N95<=O95,O95)) -> 0.9 | R95: =IF(G95="",0,IF(U95="",0,IF(U95-G95>=1,1,IF(U95-G95>0,0)))) -> 1 | S95: =SUM(M95:M100) -> 4 | T95: =SUM(H95:H100) -> 1600 | U95: =E95 -> 2008-12-02
F96: 00공사 | G96: 2007-12-11 | H96: 500 | M96: 1 | R96: =IF(G96="",0,IF(U96="",0,IF(U96-G96>=1,1,IF(U96-G96>0,0)))) -> 1 | U96: =E95 -> 2008-12-02
F97: 0000공사 | G97: 2008-02-04 | H97: 600 | M97: 1 | R97: 1 | U97: =E95 -> 2008-12-02
F98: 0000공사 | G98: 2002-12-01 | H98: 200 | M98: 1 | R98: 1 | U98: =E95 -> 2008-12-02
M99: 0 | R99: 0 | U99: =E95 -> 2008-12-02
M100: 0 | R100: 0 | U100: =E95 -> 2008-12-02
A101: 건설기술에 관한 특허 | B101: 0000000과000000에 대한 000기술 (000) | C101: =IF(S101=0,"",IF(S101>0,S101)) -> 1 | D101: =IF(T101=0,"",IF(T101>0,T101/100)) -> 16 | E101: 2003-12-12 | F101: 00공사 | G101: 2007-12-11 | H101: 500 | I101: =IF(A101="","",IF(A101="건설신기술",1,IF(A101="건설기술에 관한 특허",0.6,IF(A101="건설기술에 관한 실용신안",0.3)))) -> 0.6 | J101: =IF(P101="","",I101*P101) -> 0.48 | M101: =IF(F101="",0,1)*R101 -> 0 | N101: =IF(C101="","",IF(C101>=5,1,IF(C101>=4,0.9,IF(C101>=3,0.8,IF(C101>=2,0.7,IF(C101>=1,0.6,IF(C101<1,0))))))) -> 0.6 | O101: =IF(D101="","",IF(D101>=20,1,IF(D101>=18,0.9,IF(D101>=16,0.8,IF(D101>=14,0.7,IF(D101>=12,0.6,IF(D101<12,0))))))) -> 0.8 | P101: =IF(N101>O101,N101,IF(N101<=O101,O101)) -> 0.8 | R101: =IF(G101="",0,IF(U101="",0,IF(U101-G101>=1,1,IF(U101-G101>0,0)))) -> FALSE | S101: =SUM(M101:M106) -> 1 | T101: =SUM(H101:H106) -> 1600 | U101: =E101 -> 2003-12-12
F102: 0000공사 | G102: 2008-02-04 | H102: 600 | M102: 0 | R102: FALSE | U102: =E101 -> 2003-12-12
F103: 0000공사 | G103: 2002-12-01 | H103: 500 | M103: 1 | R103: 1 | U103: =E101 -> 2003-12-12
M104: 0 | R104: 0 | U104: =E101 -> 2003-12-12
M105: 0 | R105: 0 | U105: =E101 -> 2003-12-12
M106: 0 | R106: 0 | U106: =E101 -> 2003-12-12
A107: 건설기술에 관한 실용신안 | B107: 0000000과000000에 대한 000기술 (000) | C107: =IF(S107=0,"",IF(S107>0,S107)) -> 4 | D107: =IF(T107=0,"",IF(T107>0,T107/100)) -> 21 | E107: 2556-12-29 | F107: 00공사 | G107: 2007-12-11 | H107: 500 | I107: =IF(A107="","",IF(A107="건설신기술",1,IF(A107="건설기술에 관한 특허",0.6,IF(A107="건설기술에 관한 실용신안",0.3)))) -> 0.3 | J107: =IF(P107="","",I107*P107) -> 0.3 | M107: 1 | N107: =IF(C107="","",IF(C107>=5,1,IF(C107>=4,0.9,IF(C107>=3,0.8,IF(C107>=2,0.7,IF(C107>=1,0.6,IF(C107<1,0))))))) -> 0.9 | O107: =IF(D107="","",IF(D107>=20,1,IF(D107>=18,0.9,IF(D107>=16,0.8,IF(D107>=14,0.7,IF(D107>=12,0.6,IF(D107<12,0))))))) -> 1 | P107: =IF(N107>O107,N107,IF(N107<=O107,O107)) -> 1 | R107: 1 | S107: =SUM(M107:M112) -> 4 | T107: =SUM(H107:H112) -> 2100 | U107: =E107 -> 2556-12-29
F108: 0000공사 | G108: 2008-02-04 | H108: 600 | M108: 1 | R108: 1 | U108: =E107 -> 2556-12-29
F109: 0000공사 | G109: 2002-12-01 | H109: 500 | M109: 1 | R109: 1 | U109: =E107 -> 2556-12-29
F110: 0000공사 | G110: 2002-12-01 | H110: 500 | M110: 1 | R110: 1 | U110: =E107 -> 2556-12-29
M111: 0 | R111: 0 | U111: =E107 -> 2556-12-29
M112: 0 | R112: 0 | U112: =E107 -> 2556-12-29
C113: =IF(S113=0,"",IF(S113>0,S113)) ->  | D113: =IF(T113=0,"",IF(T113>0,T113/100)) ->  | I113: =IF(A113="","",IF(A113="건설신기술",1,IF(A113="건설기술에 관한 특허",0.6,IF(A113="건설기술에 관한 실용신안",0.3)))) ->  | J113: =IF(P113="","",I113*P113) ->  | M113: 0 | N113: =IF(C113="","",IF(C113>=5,1,IF(C113>=4,0.9,IF(C113>=3,0.8,IF(C113>=2,0.7,IF(C113>=1,0.6,IF(C113<1,0))))))) ->  | O113: =IF(D113="","",IF(D113>=20,1,IF(D113>=18,0.9,IF(D113>=16,0.8,IF(D113>=14,0.7,IF(D113>=12,0.6,IF(D113<12,0))))))) ->  | P113: =IF(N113>O113,N113,IF(N113<=O113,O113)) ->  | R113: 0 | S113: =SUM(M113:M118) -> 0 | T113: =SUM(H113:H118) -> 0 | U113: =E113 -> 00:00:00
M114: 0 | R114: 0 | U114: =E113 -> 00:00:00
M115: 0 | R115: 0 | U115: =E113 -> 00:00:00
M116: 0 | R116: 0 | U116: =E113 -> 00:00:00
M117: 0 | R117: 0 | U117: =E113 -> 00:00:00
M118: 0 | R118: 0 | U118: =E113 -> 00:00:00
C119: =IF(S119=0,"",IF(S119>0,S119)) ->  | D119: =IF(T119=0,"",IF(T119>0,T119/100)) ->  | I119: =IF(A119="","",IF(A119="건설신기술",1,IF(A119="건설기술에 관한 특허",0.6,IF(A119="건설기술에 관한 실용신안",0.3)))) ->  | J119: =IF(P119="","",I119*P119) ->  | M119: 0 | N119: =IF(C119="","",IF(C119>=5,1,IF(C119>=4,0.9,IF(C119>=3,0.8,IF(C119>=2,0.7,IF(C119>=1,0.6,IF(C119<1,0))))))) ->  | O119: =IF(D119="","",IF(D119>=20,1,IF(D119>=18,0.9,IF(D119>=16,0.8,IF(D119>=14,0.7,IF(D119>=12,0.6,IF(D119<12,0))))))) ->  | P119: =IF(N119>O119,N119,IF(N119<=O119,O119)) ->  | R119: 0 | S119: =SUM(M119:M124) -> 0 | T119: =SUM(H119:H124) -> 0 | U119: =E119 -> 00:00:00
M120: 0 | R120: 0 | U120: =E119 -> 00:00:00
M121: 0 | R121: 0 | U121: =E119 -> 00:00:00
M122: 0 | R122: 0 | U122: =E119 -> 00:00:00
M123: 0 | R123: 0 | U123: =E119 -> 00:00:00
M124: 0 | R124: 0 | U124: =E119 -> 00:00:00
A127: 대 표 사 | B127: =참여업체현황!B11 -> D사 | D127: 환산지분율 | E127: =참여업체현황!C11 -> 0
A129: 구분 | B129: 권리내용 (지정번호) | C129: 활용건수 | D129: 활용금액 (억) | E129: 만료일자 | F129: 공사명 | G129: 활용년도 | H129: 건별활용금액 (백만원) | I129: 개발실적
I130: 배점 | J130: 자기평가 | K130: 확인
A131: 총 계 | C131: - | D131: - | E131: - | F131: - | G131: - | H131: - | I131: 3 | J131: =IF(ROUND(SUM(J132:J161),2)>=3,3,ROUND(SUM(J132:J161),2)) -> 0 | K131: =SUM(K132:K161) -> 0 | N131: 건수 | O131: 금액 | P131: 건수/금액비교 | R131: 기간도과여부 | S131: 활용건수 | T131: 금액
C132: =IF(S132=0,"",IF(S132>0,S132)) ->  | D132: =IF(T132=0,"",IF(T132>0,T132/100)) ->  | I132: =IF(A132="","",IF(A132="건설신기술",1,IF(A132="건설기술에 관한 특허",0.6,IF(A132="건설기술에 관한 실용신안",0.3)))) ->  | J132: =IF(P132="","",I132*P132) ->  | M132: =IF(F132="",0,1)*R132 -> 0 | N132: =IF(C132="","",IF(C132>=5,1,IF(C132>=4,0.9,IF(C132>=3,0.8,IF(C132>=2,0.7,IF(C132>=1,0.6,IF(C132<1,0))))))) ->  | O132: =IF(D132="","",IF(D132>=20,1,IF(D132>=18,0.9,IF(D132>=16,0.8,IF(D132>=14,0.7,IF(D132>=12,0.6,IF(D132<12,0))))))) ->  | P132: =IF(N132>O132,N132,IF(N132<=O132,O132)) ->  | R132: =IF(G132="",0,IF(U132="",0,IF(U132-G132>=1,1,IF(U132-G132>0,0)))) -> 0 | S132: =SUM(M132:M137) -> 0 | T132: =SUM(H132:H137) -> 0 | U132: =E132 -> 00:00:00
M133: 0 | R133: =IF(G133="",0,IF(U133="",0,IF(U133-G133>=1,1,IF(U133-G133>0,0)))) -> 0 | U133: =E132 -> 00:00:00
M134: 0 | R134: 0 | U134: =E132 -> 00:00:00
M135: 0 | R135: 0 | U135: =E132 -> 00:00:00
M136: 0 | R136: 0 | U136: =E132 -> 00:00:00
M137: 0 | R137: 0 | U137: =E132 -> 00:00:00
C138: =IF(S138=0,"",IF(S138>0,S138)) ->  | D138: =IF(T138=0,"",IF(T138>0,T138/100)) ->  | I138: =IF(A138="","",IF(A138="건설신기술",1,IF(A138="건설기술에 관한 특허",0.6,IF(A138="건설기술에 관한 실용신안",0.3)))) ->  | J138: =IF(P138="","",I138*P138) ->  | M138: =IF(F138="",0,1)*R138 -> 0 | N138: =IF(C138="","",IF(C138>=5,1,IF(C138>=4,0.9,IF(C138>=3,0.8,IF(C138>=2,0.7,IF(C138>=1,0.6,IF(C138<1,0))))))) ->  | O138: =IF(D138="","",IF(D138>=20,1,IF(D138>=18,0.9,IF(D138>=16,0.8,IF(D138>=14,0.7,IF(D138>=12,0.6,IF(D138<12,0))))))) ->  | P138: =IF(N138>O138,N138,IF(N138<=O138,O138)) ->  | R138: =IF(G138="",0,IF(U138="",0,IF(U138-G138>=1,1,IF(U138-G138>0,0)))) -> 0 | S138: =SUM(M138:M143) -> 0 | T138: =SUM(H138:H143) -> 0 | U138: =E138 -> 00:00:00
M139: 0 | R139: 0 | U139: =E138 -> 00:00:00
M140: 0 | R140: 0 | U140: =E138 -> 00:00:00
M141: 0 | R141: 0 | U141: =E138 -> 00:00:00
M142: 0 | R142: 0 | U142: =E138 -> 00:00:00
M143: 0 | R143: 0 | U143: =E138 -> 00:00:00
C144: =IF(S144=0,"",IF(S144>0,S144)) ->  | D144: =IF(T144=0,"",IF(T144>0,T144/100)) ->  | I144: =IF(A144="","",IF(A144="건설신기술",1,IF(A144="건설기술에 관한 특허",0.6,IF(A144="건설기술에 관한 실용신안",0.3)))) ->  | J144: =IF(P144="","",I144*P144) ->  | M144: 0 | N144: =IF(C144="","",IF(C144>=5,1,IF(C144>=4,0.9,IF(C144>=3,0.8,IF(C144>=2,0.7,IF(C144>=1,0.6,IF(C144<1,0))))))) ->  | O144: =IF(D144="","",IF(D144>=20,1,IF(D144>=18,0.9,IF(D144>=16,0.8,IF(D144>=14,0.7,IF(D144>=12,0.6,IF(D144<12,0))))))) ->  | P144: =IF(N144>O144,N144,IF(N144<=O144,O144)) ->  | R144: 0 | S144: =SUM(M144:M149) -> 0 | T144: =SUM(H144:H149) -> 0 | U144: =E144 -> 00:00:00
M145: 0 | R145: 0 | U145: =E144 -> 00:00:00
M146: 0 | R146: 0 | U146: =E144 -> 00:00:00
M147: 0 | R147: 0 | U147: =E144 -> 00:00:00
M148: 0 | R148: 0 | U148: =E144 -> 00:00:00
M149: 0 | R149: 0 | U149: =E144 -> 00:00:00
C150: =IF(S150=0,"",IF(S150>0,S150)) ->  | D150: =IF(T150=0,"",IF(T150>0,T150/100)) ->  | I150: =IF(A150="","",IF(A150="건설신기술",1,IF(A150="건설기술에 관한 특허",0.6,IF(A150="건설기술에 관한 실용신안",0.3)))) ->  | J150: =IF(P150="","",I150*P150) ->  | M150: 0 | N150: =IF(C150="","",IF(C150>=5,1,IF(C150>=4,0.9,IF(C150>=3,0.8,IF(C150>=2,0.7,IF(C150>=1,0.6,IF(C150<1,0))))))) ->  | O150: =IF(D150="","",IF(D150>=20,1,IF(D150>=18,0.9,IF(D150>=16,0.8,IF(D150>=14,0.7,IF(D150>=12,0.6,IF(D150<12,0))))))) ->  | P150: =IF(N150>O150,N150,IF(N150<=O150,O150)) ->  | R150: 0 | S150: =SUM(M150:M155) -> 0 | T150: =SUM(H150:H155) -> 0 | U150: =E150 -> 00:00:00
M151: 0 | R151: 0 | U151: =E150 -> 00:00:00
M152: 0 | R152: 0 | U152: =E150 -> 00:00:00
M153: 0 | R153: 0 | U153: =E150 -> 00:00:00
M154: 0 | R154: 0 | U154: =E150 -> 00:00:00
M155: 0 | R155: 0 | U155: =E150 -> 00:00:00
C156: =IF(S156=0,"",IF(S156>0,S156)) ->  | D156: =IF(T156=0,"",IF(T156>0,T156/100)) ->  | I156: =IF(A156="","",IF(A156="건설신기술",1,IF(A156="건설기술에 관한 특허",0.6,IF(A156="건설기술에 관한 실용신안",0.3)))) ->  | J156: =IF(P156="","",I156*P156) ->  | M156: 0 | N156: =IF(C156="","",IF(C156>=5,1,IF(C156>=4,0.9,IF(C156>=3,0.8,IF(C156>=2,0.7,IF(C156>=1,0.6,IF(C156<1,0))))))) ->  | O156: =IF(D156="","",IF(D156>=20,1,IF(D156>=18,0.9,IF(D156>=16,0.8,IF(D156>=14,0.7,IF(D156>=12,0.6,IF(D156<12,0))))))) ->  | P156: =IF(N156>O156,N156,IF(N156<=O156,O156)) ->  | R156: 0 | S156: =SUM(M156:M161) -> 0 | T156: =SUM(H156:H161) -> 0 | U156: =E156 -> 00:00:00
M157: 0 | R157: 0 | U157: =E156 -> 00:00:00
M158: 0 | R158: 0 | U158: =E156 -> 00:00:00
M159: 0 | R159: 0 | U159: =E156 -> 00:00:00
M160: 0 | R160: 0 | U160: =E156 -> 00:00:00
M161: 0 | R161: 0 | U161: =E156 -> 00:00:00
A164: 대 표 사 | B164: =참여업체현황!B13 -> E사 | D164: 환산지분율 | E164: =참여업체현황!C13 -> 0
A166: 구분 | B166: 권리내용 (지정번호) | C166: 활용건수 | D166: 활용금액 (억) | E166: 만료일자 | F166: 공사명 | G166: 활용년도 | H166: 건별활용금액 (백만원) | I166: 개발실적
I167: 배점 | J167: 자기평가 | K167: 확인
A168: 총 계 | C168: - | D168: - | E168: - | F168: - | G168: - | H168: - | I168: 3 | J168: =IF(ROUND(SUM(J169:J198),2)>=3,3,ROUND(SUM(J169:J198),2)) -> 0 | K168: =SUM(K169:K198) -> 0 | N168: 건수 | O168: 금액 | P168: 건수/금액비교 | R168: 기간도과여부 | S168: 활용건수 | T168: 금액
C169: =IF(S169=0,"",IF(S169>0,S169)) ->  | D169: =IF(T169=0,"",IF(T169>0,T169/100)) ->  | I169: =IF(A169="","",IF(A169="건설신기술",1,IF(A169="건설기술에 관한 특허",0.6,IF(A169="건설기술에 관한 실용신안",0.3)))) ->  | J169: =IF(P169="","",I169*P169) ->  | M169: =IF(F169="",0,1)*R169 -> 0 | N169: =IF(C169="","",IF(C169>=5,1,IF(C169>=4,0.9,IF(C169>=3,0.8,IF(C169>=2,0.7,IF(C169>=1,0.6,IF(C169<1,0))))))) ->  | O169: =IF(D169="","",IF(D169>=20,1,IF(D169>=18,0.9,IF(D169>=16,0.8,IF(D169>=14,0.7,IF(D169>=12,0.6,IF(D169<12,0))))))) ->  | P169: =IF(N169>O169,N169,IF(N169<=O169,O169)) ->  | R169: =IF(G169="",0,IF(U169="",0,IF(U169-G169>=1,1,IF(U169-G169>0,0)))) -> 0 | S169: =SUM(M169:M174) -> 0 | T169: =SUM(H169:H174) -> 0 | U169: =E169 -> 00:00:00
M170: 0 | R170: =IF(G170="",0,IF(U170="",0,IF(U170-G170>=1,1,IF(U170-G170>0,0)))) -> 0 | U170: =E169 -> 00:00:00
M171: 0 | R171: 0 | U171: =E169 -> 00:00:00
M172: 0 | R172: 0 | U172: =E169 -> 00:00:00
M173: 0 | R173: 0 | U173: =E169 -> 00:00:00
M174: 0 | R174: 0 | U174: =E169 -> 00:00:00
C175: =IF(S175=0,"",IF(S175>0,S175)) ->  | D175: =IF(T175=0,"",IF(T175>0,T175/100)) ->  | I175: =IF(A175="","",IF(A175="건설신기술",1,IF(A175="건설기술에 관한 특허",0.6,IF(A175="건설기술에 관한 실용신안",0.3)))) ->  | J175: =IF(P175="","",I175*P175) ->  | M175: =IF(F175="",0,1)*R175 -> 0 | N175: =IF(C175="","",IF(C175>=5,1,IF(C175>=4,0.9,IF(C175>=3,0.8,IF(C175>=2,0.7,IF(C175>=1,0.6,IF(C175<1,0))))))) ->  | O175: =IF(D175="","",IF(D175>=20,1,IF(D175>=18,0.9,IF(D175>=16,0.8,IF(D175>=14,0.7,IF(D175>=12,0.6,IF(D175<12,0))))))) ->  | P175: =IF(N175>O175,N175,IF(N175<=O175,O175)) ->  | R175: =IF(G175="",0,IF(U175="",0,IF(U175-G175>=1,1,IF(U175-G175>0,0)))) -> 0 | S175: =SUM(M175:M180) -> 0 | T175: =SUM(H175:H180) -> 0 | U175: =E175 -> 00:00:00
M176: 0 | R176: 0 | U176: =E175 -> 00:00:00
M177: 0 | R177: 0 | U177: =E175 -> 00:00:00
M178: 0 | R178: 0 | U178: =E175 -> 00:00:00
M179: 0 | R179: 0 | U179: =E175 -> 00:00:00
M180: 0 | R180: 0 | U180: =E175 -> 00:00:00
C181: =IF(S181=0,"",IF(S181>0,S181)) ->  | D181: =IF(T181=0,"",IF(T181>0,T181/100)) ->  | I181: =IF(A181="","",IF(A181="건설신기술",1,IF(A181="건설기술에 관한 특허",0.6,IF(A181="건설기술에 관한 실용신안",0.3)))) ->  | J181: =IF(P181="","",I181*P181) ->  | M181: 0 | N181: =IF(C181="","",IF(C181>=5,1,IF(C181>=4,0.9,IF(C181>=3,0.8,IF(C181>=2,0.7,IF(C181>=1,0.6,IF(C181<1,0))))))) ->  | O181: =IF(D181="","",IF(D181>=20,1,IF(D181>=18,0.9,IF(D181>=16,0.8,IF(D181>=14,0.7,IF(D181>=12,0.6,IF(D181<12,0))))))) ->  | P181: =IF(N181>O181,N181,IF(N181<=O181,O181)) ->  | R181: 0 | S181: =SUM(M181:M186) -> 0 | T181: =SUM(H181:H186) -> 0 | U181: =E181 -> 00:00:00
M182: 0 | R182: 0 | U182: =E181 -> 00:00:00
M183: 0 | R183: 0 | U183: =E181 -> 00:00:00
M184: 0 | R184: 0 | U184: =E181 -> 00:00:00
M185: 0 | R185: 0 | U185: =E181 -> 00:00:00
M186: 0 | R186: 0 | U186: =E181 -> 00:00:00
C187: =IF(S187=0,"",IF(S187>0,S187)) ->  | D187: =IF(T187=0,"",IF(T187>0,T187/100)) ->  | I187: =IF(A187="","",IF(A187="건설신기술",1,IF(A187="건설기술에 관한 특허",0.6,IF(A187="건설기술에 관한 실용신안",0.3)))) ->  | J187: =IF(P187="","",I187*P187) ->  | M187: 0 | N187: =IF(C187="","",IF(C187>=5,1,IF(C187>=4,0.9,IF(C187>=3,0.8,IF(C187>=2,0.7,IF(C187>=1,0.6,IF(C187<1,0))))))) ->  | O187: =IF(D187="","",IF(D187>=20,1,IF(D187>=18,0.9,IF(D187>=16,0.8,IF(D187>=14,0.7,IF(D187>=12,0.6,IF(D187<12,0))))))) ->  | P187: =IF(N187>O187,N187,IF(N187<=O187,O187)) ->  | R187: 0 | S187: =SUM(M187:M192) -> 0 | T187: =SUM(H187:H192) -> 0 | U187: =E187 -> 00:00:00
M188: 0 | R188: 0 | U188: =E187 -> 00:00:00
M189: 0 | R189: 0 | U189: =E187 -> 00:00:00
M190: 0 | R190: 0 | U190: =E187 -> 00:00:00
M191: 0 | R191: 0 | U191: =E187 -> 00:00:00
M192: 0 | R192: 0 | U192: =E187 -> 00:00:00
C193: =IF(S193=0,"",IF(S193>0,S193)) ->  | D193: =IF(T193=0,"",IF(T193>0,T193/100)) ->  | I193: =IF(A193="","",IF(A193="건설신기술",1,IF(A193="건설기술에 관한 특허",0.6,IF(A193="건설기술에 관한 실용신안",0.3)))) ->  | J193: =IF(P193="","",I193*P193) ->  | M193: 0 | N193: =IF(C193="","",IF(C193>=5,1,IF(C193>=4,0.9,IF(C193>=3,0.8,IF(C193>=2,0.7,IF(C193>=1,0.6,IF(C193<1,0))))))) ->  | O193: =IF(D193="","",IF(D193>=20,1,IF(D193>=18,0.9,IF(D193>=16,0.8,IF(D193>=14,0.7,IF(D193>=12,0.6,IF(D193<12,0))))))) ->  | P193: =IF(N193>O193,N193,IF(N193<=O193,O193)) ->  | R193: 0 | S193: =SUM(M193:M198) -> 0 | T193: =SUM(H193:H198) -> 0 | U193: =E193 -> 00:00:00
M194: 0 | R194: 0 | U194: =E193 -> 00:00:00
M195: 0 | R195: 0 | U195: =E193 -> 00:00:00
M196: 0 | R196: 0 | U196: =E193 -> 00:00:00
M197: 0 | R197: 0 | U197: =E193 -> 00:00:00
M198: 0 | R198: 0 | U198: =E193 -> 00:00:00
A205: 건설신기술
A206: 건설기술에 관한 특허
A207: 건설기술에 관한 실용신안

Sheet 5.업무중첩도
A1: 5. 업무중첩도
A3: 책임분야 | B3: 중첩기간 (개월) | C3: 배 점 | D3: 자기 평가 | E3: 확 인 | F3: 성 명 | G3: 용역명 | H3: 계약금액(원) | I3: 용역준공일 | J3: 중첩기간(일) | K3: 발주청 | L3: 기타
A5: 책 임 기 술 자 | B5: - | C5: =C6 -> 6 | D5: =D6 -> 6 | E5: =E6 -> 0 | F5: - | G5: - | H5: - | I5: - | J5: - | K5: - | L5: -
A6: 사업책임기술자 | B6: =ROUNDDOWN(SUM(J6:J9)/30,0) -> 12 | C6: 6 | D6: =IF(B6<15,6,IF(B6<20,5.4,IF(B6<24,4.8,IF(B6<36,4.2,IF(B6>=36,3.6))))) -> 6 | F6: 홍길동 | G6: 00설계 | H6: 00,000 | I6: 2013-10-18 | J6: =IF(I6="","",(I6-총괄표!$H$3+1)) -> 379 | K6: 00도시공사
J7: =IF(I7="","",(I7-총괄표!$H$3+1)) -> 
J8: =IF(I8="","",(I8-총괄표!$H$3+1)) -> 
J9: =IF(I9="","",(I9-총괄표!$H$3+1)) -> 
A10: 분야별 책임기술자 | B10: - | C10: 4 | D10: =ROUND(SUM(D11*0.5+D15*0.2+D19*0.1+D23*0.1+D27*0.1),2) -> 4 | E10: =ROUND(SUM(E11:E30),2) -> 0 | F10: - | G10: - | H10: - | I10: - | J10: - | K10: - | L10: -
A11: =참여업체현황!E4 -> 상하수도 | B11: =IF(ROUNDDOWN(SUM(J11:J14)/30,0)=0,0,ROUNDDOWN(SUM(J11:J14)/30,0)) -> 0 | C11: 4 | D11: =IF(B11<15,4,IF(B11<20,3.6,IF(B11<24,3.2,IF(B11<36,2.8,IF(B11>=36,2.4))))) -> 4 | F11: ㅇㅇㅇ | J11: =IF(I11="","",(I11-총괄표!$H$3+1)) -> 
J12: =IF(I12="","",(I12-총괄표!$H$3+1)) -> 
J13: =IF(I13="","",(I13-총괄표!$H$3+1)) -> 
J14: =IF(I14="","",(I14-총괄표!$H$3+1)) -> 
A15: =참여업체현황!F4 -> 구조 | B15: =IF(ROUNDDOWN(SUM(J15:J18)/30,0)=0,0,ROUNDDOWN(SUM(J15:J18)/30,0)) -> 0 | C15: 4 | D15: =IF(B15<15,4,IF(B15<20,3.6,IF(B15<24,3.2,IF(B15<36,2.8,IF(B15>=36,2.4))))) -> 4 | F15: ㅇㅇㅇㅇ | J15: =IF(I15="","",(I15-총괄표!$H$3+1)) -> 
J16: =IF(I16="","",(I16-총괄표!$H$3+1)) -> 
J17: =IF(I17="","",(I17-총괄표!$H$3+1)) -> 
J18: =IF(I18="","",(I18-총괄표!$H$3+1)) -> 
A19: =참여업체현황!G4 -> 토질 지질 | B19: =IF(ROUNDDOWN(SUM(J19:J22)/30,0)=0,0,ROUNDDOWN(SUM(J19:J22)/30,0)) -> 0 | C19: 4 | D19: =IF(B19<15,4,IF(B19<20,3.6,IF(B19<24,3.2,IF(B19<36,2.8,IF(B19>=36,2.4))))) -> 4 | F19: ㅇㅇㅇ | J19: =IF(I19="","",(I19-총괄표!$H$3+1)) -> 
J20: =IF(I20="","",(I20-총괄표!$H$3+1)) -> 
J21: =IF(I21="","",(I21-총괄표!$H$3+1)) -> 
J22: =IF(I22="","",(I22-총괄표!$H$3+1)) -> 
A23: =참여업체현황!H4 -> 일반기계 | B23: =IF(ROUNDDOWN(SUM(J23:J26)/30,0)=0,0,ROUNDDOWN(SUM(J23:J26)/30,0)) -> 0 | C23: 4 | D23: =IF(B23<15,4,IF(B23<20,3.6,IF(B23<24,3.2,IF(B23<36,2.8,IF(B23>=36,2.4))))) -> 4 | F23: ㅇㅇㅇ | J23: =IF(I23="","",(I23-총괄표!$H$3+1)) -> 
J24: =IF(I24="","",(I24-총괄표!$H$3+1)) -> 
J25: =IF(I25="","",(I25-총괄표!$H$3+1)) -> 
J26: =IF(I26="","",(I26-총괄표!$H$3+1)) -> 
A27: =참여업체현황!I4 -> 전기설비 | B27: =IF(ROUNDDOWN(SUM(J27:J30)/30,0)=0,0,ROUNDDOWN(SUM(J27:J30)/30,0)) -> 0 | C27: 4 | D27: =IF(B27<15,4,IF(B27<20,3.6,IF(B27<24,3.2,IF(B27<36,2.8,IF(B27>=36,2.4))))) -> 4 | F27: ㅇㅇㅇ | J27: =IF(I27="","",(I27-총괄표!$H$3+1)) -> 
J28: =IF(I28="","",(I28-총괄표!$H$3+1)) -> 
J29: =IF(I29="","",(I29-총괄표!$H$3+1)) -> 
J30: =IF(I30="","",(I30-총괄표!$H$3+1)) -> 
